OrganisationName,OrganisationCode,EffectiveDate,DirectorateService,SupplierName,PaymentDate,TransactionNumber,NetAmount,IrrecoverableVAT,PurposeOfSpend,CouncilProcurementCategoryName
Leeds City Council,http://opendatacommunities.org/id/metropolitan-district-council/leeds,29/09/2015,City Development,NARI EKTA LTD,13/05/2014,2014150001,"31,510.00",0,2013/14 Employment Grant,Supplies & Services
Leeds City Council,http://opendatacommunities.org/id/metropolitan-district-council/leeds,29/09/2015,City Development,LEEDS GRAND THEATRE & OPERA,24/03/2015,2014150002,"200,000.00",0,Arts Grant,Supplies & Services
Leeds City Council,http://opendatacommunities.org/id/metropolitan-district-council/leeds,29/09/2015,City Development,Invisble Flock,28/04/2014,2014150003,"2,000.00",0,Arts Grant,Supplies & Services
Leeds City Council,http://opendatacommunities.org/id/metropolitan-district-council/leeds,29/09/2015,City Development,ARTLINK WEST YORKSHIRE,08/04/2014,2014150004,"12,000.00",0,Arts Grant,Supplies & Services
Leeds City Council,http://opendatacommunities.org/id/metropolitan-district-council/leeds,29/09/2015,City Development,DAZL,08/04/2014,2014150005,"6,500.00",0,Arts Grant,Supplies & Services
Leeds City Council,http://opendatacommunities.org/id/metropolitan-district-council/leeds,29/09/2015,City Development,EAST STREET ARTS,08/04/2014,2014150006,"20,000.00",0,Arts Grant,Supplies & Services
Leeds City Council,http://opendatacommunities.org/id/metropolitan-district-council/leeds,29/09/2015,City Development,HYDE PARK UNITY DAY,07/04/2014,2014150007,"2,250.00",0,Arts Grant,Supplies & Services
Leeds City Council,http://opendatacommunities.org/id/metropolitan-district-council/leeds,29/09/2015,City Development,INTERPLAY THEATRE TRUST,08/04/2014,2014150008,"16,000.00",0,Arts Grant,Supplies & Services
Leeds City Council,http://opendatacommunities.org/id/metropolitan-district-council/leeds,29/09/2015,City Development,HEADS TOGETHER PRODUCTIONS LTD,07/04/2014,2014150009,"2,000.00",0,Arts Grant,Supplies & Services
Leeds City Council,http://opendatacommunities.org/id/metropolitan-district-council/leeds,29/09/2015,City Development,Headingley Litfest,07/04/2014,2014150010,"1,000.00",0,Arts Grant,Supplies & Services
Leeds City Council,http://opendatacommunities.org/id/metropolitan-district-council/leeds,29/09/2015,City Development,Irish Arts Foundation,07/04/2014,2014150011,"3,000.00",0,Arts Grant,Supplies & Services
Leeds City Council,http://opendatacommunities.org/id/metropolitan-district-council/leeds,29/09/2015,City Development,KIRKSTALL FESTIVAL,07/04/2014,2014150012,"1,000.00",0,Arts Grant,Supplies & Services
Leeds City Council,http://opendatacommunities.org/id/metropolitan-district-council/leeds,29/09/2015,City Development,LEEDS COMBINED ARTS,07/04/2014,2014150013,"1,000.00",0,Arts Grant,Supplies & Services
Leeds City Council,http://opendatacommunities.org/id/metropolitan-district-council/leeds,29/09/2015,City Development,LEEDS IRISH FESTIVAL COMMITTEE,08/04/2014,2014150014,"16,000.00",0,Arts Grant,Supplies & Services
Leeds City Council,http://opendatacommunities.org/id/metropolitan-district-council/leeds,29/09/2015,City Development,Leeds Pride,08/04/2014,2014150015,"15,000.00",0,Arts Grant,Supplies & Services
Leeds City Council,http://opendatacommunities.org/id/metropolitan-district-council/leeds,29/09/2015,City Development,Leeds Theatre In Education Company,07/04/2014,2014150016,"2,500.00",0,Arts Grant,Supplies & Services
Leeds City Council,http://opendatacommunities.org/id/metropolitan-district-council/leeds,29/09/2015,City Development,Left Bank Leeds,07/04/2014,2014150017,"2,000.00",0,Arts Grant,Supplies & Services
Leeds City Council,http://opendatacommunities.org/id/metropolitan-district-council/leeds,29/09/2015,City Development,LIFEFORCE PRODUCTIONS,07/04/2014,2014150018,"5,000.00",0,Arts Grant,Supplies & Services
Leeds City Council,http://opendatacommunities.org/id/metropolitan-district-council/leeds,29/09/2015,City Development,LITTLE LONDON ARTS,07/04/2014,2014150019,"4,000.00",0,Arts Grant,Supplies & Services
Leeds City Council,http://opendatacommunities.org/id/metropolitan-district-council/leeds,29/09/2015,City Development,Morley Literature Festival,07/04/2014,2014150020,"2,000.00",0,Arts Grant,Supplies & Services
Leeds City Council,http://opendatacommunities.org/id/metropolitan-district-council/leeds,29/09/2015,City Development,MUSICAL ARC,07/04/2014,2014150021,"3,000.00",0,Arts Grant,Supplies & Services
Leeds City Council,http://opendatacommunities.org/id/metropolitan-district-council/leeds,29/09/2015,City Development,Northern Ballet Theatre Limited,11/04/2014,2014150022,"250,000.00",0,Arts Grant,Supplies & Services
Leeds City Council,http://opendatacommunities.org/id/metropolitan-district-council/leeds,29/09/2015,City Development,NORTHERN SCHOOL OF CONTEMPORARY,08/04/2014,2014150023,"9,000.00",0,Arts Grant,Supplies & Services
Leeds City Council,http://opendatacommunities.org/id/metropolitan-district-council/leeds,29/09/2015,City Development,Opera North Ltd,11/04/2014,2014150024,"710,000.00",0,Arts Grant,Supplies & Services
Leeds City Council,http://opendatacommunities.org/id/metropolitan-district-council/leeds,29/09/2015,City Development,PHOENIX DANCE THEATRE,11/04/2014,2014150025,"75,000.00",0,Arts Grant,Supplies & Services
Leeds City Council,http://opendatacommunities.org/id/metropolitan-district-council/leeds,29/09/2015,City Development,PYRAMID OF ARTS,08/04/2014,2014150026,"5,500.00",0,Arts Grant,Supplies & Services
Leeds City Council,http://opendatacommunities.org/id/metropolitan-district-council/leeds,29/09/2015,City Development,RED LADDER THEATRE CO LTD,07/04/2014,2014150027,"5,000.00",0,Arts Grant,Supplies & Services
Leeds City Council,http://opendatacommunities.org/id/metropolitan-district-council/leeds,29/09/2015,City Development,RJC PRODUCTIONS LTD,08/04/2014,2014150028,"13,840.00",0,Arts Grant,Supplies & Services
Leeds City Council,http://opendatacommunities.org/id/metropolitan-district-council/leeds,29/09/2015,City Development,SAA - UK,08/04/2014,2014150029,"16,250.00",0,Arts Grant,Supplies & Services
Leeds City Council,http://opendatacommunities.org/id/metropolitan-district-council/leeds,29/09/2015,City Development,SKIPPKO ARTS TEAM,08/04/2014,2014150030,"6,000.00",0,Arts Grant,Supplies & Services
Leeds City Council,http://opendatacommunities.org/id/metropolitan-district-council/leeds,29/09/2015,City Development,Space2 Leeds,07/04/2014,2014150031,"2,000.00",0,Arts Grant,Supplies & Services
Leeds City Council,http://opendatacommunities.org/id/metropolitan-district-council/leeds,29/09/2015,City Development,The Leeds Music Hub,07/04/2014,2014150032,"1,000.00",0,Arts Grant,Supplies & Services
Leeds City Council,http://opendatacommunities.org/id/metropolitan-district-council/leeds,29/09/2015,City Development,Theatre Company Blah Blah Blah,08/04/2014,2014150033,"13,000.00",0,Arts Grant,Supplies & Services
Leeds City Council,http://opendatacommunities.org/id/metropolitan-district-council/leeds,29/09/2015,City Development,TOGETHER FOR PEACE,07/04/2014,2014150034,"2,000.00",0,Arts Grant,Supplies & Services
Leeds City Council,http://opendatacommunities.org/id/metropolitan-district-council/leeds,29/09/2015,City Development,URBAN SPRAWL,07/04/2014,2014150035,"1,500.00",0,Arts Grant,Supplies & Services
Leeds City Council,http://opendatacommunities.org/id/metropolitan-district-council/leeds,29/09/2015,City Development,WEST YORKSHIRE PLAYHOUSE,11/04/2014,2014150036,"710,000.00",0,Arts Grant,Supplies & Services
Leeds City Council,http://opendatacommunities.org/id/metropolitan-district-council/leeds,29/09/2015,City Development,Woolgather,07/04/2014,2014150037,"2,500.00",0,Arts Grant,Supplies & Services
Leeds City Council,http://opendatacommunities.org/id/metropolitan-district-council/leeds,29/09/2015,City Development,YORKSHIRE DANCE CENTRE TRUST CO LTD,11/04/2014,2014150038,"60,000.00",0,Arts Grant,Supplies & Services
Leeds City Council,http://opendatacommunities.org/id/metropolitan-district-council/leeds,29/09/2015,City Development,Youth Theatres Leeds,07/04/2014,2014150039,"2,500.00",0,Arts Grant,Supplies & Services
Leeds City Council,http://opendatacommunities.org/id/metropolitan-district-council/leeds,29/09/2015,City Development,MAKOR CHARITABLE TRUST,07/04/2014,2014150040,"1,000.00",0,Arts Grant,Supplies & Services
Leeds City Council,http://opendatacommunities.org/id/metropolitan-district-council/leeds,29/09/2015,City Development,St Patricks Day Parade,08/04/2014,2014150041,"6,000.00",0,Arts Grant,Supplies & Services
Leeds City Council,http://opendatacommunities.org/id/metropolitan-district-council/leeds,29/09/2015,City Development,Leeds West Indian Carnival,27/08/2014,2014150042,"25,000.00",0,Arts Grant,Supplies & Services
Leeds City Council,http://opendatacommunities.org/id/metropolitan-district-council/leeds,29/09/2015,City Development,Leeds West Indian Carnival,10/06/2014,2014150043,"25,000.00",0,Arts Grant,Supplies & Services
Leeds City Council,http://opendatacommunities.org/id/metropolitan-district-council/leeds,29/09/2015,City Development,Alchemy Anew,23/06/2014,2014150044,"1,000.00",0,Arts Grant,Supplies & Services
Leeds City Council,http://opendatacommunities.org/id/metropolitan-district-council/leeds,29/09/2015,City Development,Angel Of Youths,23/06/2014,2014150045,"1,000.00",0,Arts Grant,Supplies & Services
Leeds City Council,http://opendatacommunities.org/id/metropolitan-district-council/leeds,29/09/2015,City Development,Barnardos,03/04/2014,2014150046,"1,000.00",0,Arts Grant,Supplies & Services
Leeds City Council,http://opendatacommunities.org/id/metropolitan-district-council/leeds,29/09/2015,City Development,Hamara Healthy Living Centre,03/04/2014,2014150047,"1,000.00",0,Arts Grant,Supplies & Services
Leeds City Council,http://opendatacommunities.org/id/metropolitan-district-council/leeds,29/09/2015,City Development,Leeds South African Women Project,08/04/2014,2014150048,"1,000.00",0,Arts Grant,Supplies & Services
Leeds City Council,http://opendatacommunities.org/id/metropolitan-district-council/leeds,29/09/2015,City Development,RJC PRODUCTIONS LTD,08/04/2014,2014150049,"1,000.00",0,Arts Grant,Supplies & Services
Leeds City Council,http://opendatacommunities.org/id/metropolitan-district-council/leeds,29/09/2015,City Development,Womens Shield,11/04/2014,2014150050,"1,000.00",0,Arts Grant,Supplies & Services
Leeds City Council,http://opendatacommunities.org/id/metropolitan-district-council/leeds,29/09/2015,City Development,TOGETHER FOR PEACE,08/04/2014,2014150051,"1,000.00",0,Arts Grant,Supplies & Services
Leeds City Council,http://opendatacommunities.org/id/metropolitan-district-council/leeds,29/09/2015,City Development,LEEDS GRAND THEATRE & OPERA,16/12/2014,2014150052,"586,000.00",0,Arts Grant,Supplies & Services
Leeds City Council,http://opendatacommunities.org/id/metropolitan-district-council/leeds,29/09/2015,City Development,TOGETHER FOR PEACE,08/04/2014,2014150053,"1,000.00",0,Arts Grant,Supplies & Services
Leeds City Council,http://opendatacommunities.org/id/metropolitan-district-council/leeds,29/09/2015,City Development,YORKSHIRE SCULPTURE PARK,11/02/2015,2014150054,"75,000.00",0,Arts Grant,Supplies & Services
Leeds City Council,http://opendatacommunities.org/id/metropolitan-district-council/leeds,29/09/2015,City Development,Northern Ballet Theatre Limited,08/12/2014,2014150055,"2,000.00",0,Employment Grant,Supplies & Services
Leeds City Council,http://opendatacommunities.org/id/metropolitan-district-council/leeds,29/09/2015,City Development,EAST STREET ARTS,31/03/2015,2014150056,"4,775.00",0,Employment Grant,Supplies & Services
Leeds City Council,http://opendatacommunities.org/id/metropolitan-district-council/leeds,29/09/2015,City Development,LEEDS GRAND THEATRE & OPERA,10/04/2015,2014150057,"6,475.00",0,Employment Grant,Supplies & Services
Leeds City Council,http://opendatacommunities.org/id/metropolitan-district-council/leeds,29/09/2015,City Development,WEST YORKSHIRE PLAYHOUSE,19/03/2015,2014150058,"15,550.00",0,Employment Grant,Supplies & Services
Leeds City Council,http://opendatacommunities.org/id/metropolitan-district-council/leeds,29/09/2015,City Development,Renew Leeds Ltd,08/10/2014,2014150059,"12,785.26",0,Employment Grant,Supplies & Services
Leeds City Council,http://opendatacommunities.org/id/metropolitan-district-council/leeds,29/09/2015,City Development,PATH (YORKSHIRE) LTD,03/11/2014,2014150060,"40,595.84",0,Employment Grant,Supplies & Services
Leeds City Council,http://opendatacommunities.org/id/metropolitan-district-council/leeds,29/09/2015,City Development,NARI EKTA LTD,28/07/2014,2014150061,"29,740.00",0,Employment Grant,Supplies & Services
Leeds City Council,http://opendatacommunities.org/id/metropolitan-district-council/leeds,29/09/2015,City Development,PATH (YORKSHIRE) LTD,06/08/2014,2014150062,"16,075.50",0,Employment Grant,Supplies & Services
Leeds City Council,http://opendatacommunities.org/id/metropolitan-district-council/leeds,29/09/2015,City Development,NARI EKTA LTD,30/10/2014,2014150063,"26,030.00",0,Employment Grant,Supplies & Services
Leeds City Council,http://opendatacommunities.org/id/metropolitan-district-council/leeds,29/09/2015,City Development,NARI EKTA LTD,27/01/2015,2014150064,"21,155.00",0,Employment Grant,Supplies & Services
Leeds City Council,http://opendatacommunities.org/id/metropolitan-district-council/leeds,29/09/2015,City Development,PATH (YORKSHIRE) LTD,30/01/2015,2014150065,"24,456.16",0,Employment Grant,Supplies & Services
Leeds City Council,http://opendatacommunities.org/id/metropolitan-district-council/leeds,29/09/2015,City Development,PATH (YORKSHIRE) LTD,20/05/2014,2014150066,"16,209.12",0,Employment Grant,Supplies & Services
Leeds City Council,http://opendatacommunities.org/id/metropolitan-district-council/leeds,29/09/2015,City Development,BEESTON FESTIVAL & MELA,22/04/2014,2014150067,"3,000.00",0,Leeds Inspired Grant,Supplies & Services
Leeds City Council,http://opendatacommunities.org/id/metropolitan-district-council/leeds,29/09/2015,City Development,Carlton Village Residents Association,22/04/2014,2014150068,200,0,Leeds Inspired Grant,Supplies & Services
Leeds City Council,http://opendatacommunities.org/id/metropolitan-district-council/leeds,29/09/2015,City Development,COURTHOUSE PROJECT (OTLEY) LTD,22/04/2014,2014150069,"4,500.00",0,Leeds Inspired Grant,Supplies & Services
Leeds City Council,http://opendatacommunities.org/id/metropolitan-district-council/leeds,29/09/2015,City Development,No Gloss Film Festival,05/09/2014,2014150070,700,0,Leeds Inspired Grant,Supplies & Services
Leeds City Council,http://opendatacommunities.org/id/metropolitan-district-council/leeds,29/09/2015,City Development,Slanjayvah Danza,22/04/2014,2014150071,"1,000.00",0,Leeds Inspired Grant,Supplies & Services
Leeds City Council,http://opendatacommunities.org/id/metropolitan-district-council/leeds,29/09/2015,City Development,Touchstone - Leeds,22/04/2014,2014150072,"1,000.00",0,Leeds Inspired Grant,Supplies & Services
Leeds City Council,http://opendatacommunities.org/id/metropolitan-district-council/leeds,29/09/2015,City Development,Yorkshire Life Aquatic,05/09/2014,2014150073,750,0,Leeds Inspired Grant,Supplies & Services
Leeds City Council,http://opendatacommunities.org/id/metropolitan-district-council/leeds,29/09/2015,City Development,HEADS TOGETHER PRODUCTIONS LTD,03/04/2014,2014150074,"7,000.00",0,Leeds Inspired Grant,Supplies & Services
Leeds City Council,http://opendatacommunities.org/id/metropolitan-district-council/leeds,29/09/2015,City Development,Leeds West Indian Carnival,03/04/2014,2014150075,"12,000.00",0,Leeds Inspired Grant,Supplies & Services
Leeds City Council,http://opendatacommunities.org/id/metropolitan-district-council/leeds,29/09/2015,City Development,RadhaRaman Society,27/08/2014,2014150076,"1,000.00",0,Leeds Inspired Grant,Supplies & Services
Leeds City Council,http://opendatacommunities.org/id/metropolitan-district-council/leeds,29/09/2015,City Development,Saudha Society of Poetry and Indian,27/08/2014,2014150077,"1,000.00",0,Leeds Inspired Grant,Supplies & Services
Leeds City Council,http://opendatacommunities.org/id/metropolitan-district-council/leeds,29/09/2015,City Development,HYDE PARK UNITY DAY,26/06/2014,2014150078,"1,000.00",0,Leeds Inspired Grant,Supplies & Services
Leeds City Council,http://opendatacommunities.org/id/metropolitan-district-council/leeds,29/09/2015,City Development,Sinai Synagogue Leeds,26/06/2014,2014150079,"1,000.00",0,Leeds Inspired Grant,Supplies & Services
Leeds City Council,http://opendatacommunities.org/id/metropolitan-district-council/leeds,29/09/2015,City Development,ST KITTS & NEVIS ASSOCIATION,21/07/2014,2014150080,"1,000.00",0,Leeds Inspired Grant,Supplies & Services
Leeds City Council,http://opendatacommunities.org/id/metropolitan-district-council/leeds,29/09/2015,City Development,The Conservation Volunteers,07/07/2014,2014150081,550,0,Leeds Inspired Grant,Supplies & Services
Leeds City Council,http://opendatacommunities.org/id/metropolitan-district-council/leeds,29/09/2015,City Development,The Big Hoo-Ha Company,27/06/2014,2014150082,"1,000.00",0,Leeds Inspired Grant,Supplies & Services
Leeds City Council,http://opendatacommunities.org/id/metropolitan-district-council/leeds,29/09/2015,City Development,The Conservation Volunteers,26/02/2015,2014150083,702,0,Leeds Inspired Grant,Supplies & Services
Leeds City Council,http://opendatacommunities.org/id/metropolitan-district-council/leeds,29/09/2015,City Development,EAST STREET ARTS,16/03/2015,2014150084,"10,370.00",0,Leeds Inspired Grant,Supplies & Services
Leeds City Council,http://opendatacommunities.org/id/metropolitan-district-council/leeds,29/09/2015,City Development,Farsley Community Initiative,19/03/2015,2014150085,"8,449.00",0,Leeds Inspired Grant,Supplies & Services
Leeds City Council,http://opendatacommunities.org/id/metropolitan-district-council/leeds,29/09/2015,City Development,HEADS TOGETHER PRODUCTIONS LTD,16/03/2015,2014150086,"6,540.00",0,Leeds Inspired Grant,Supplies & Services
Leeds City Council,http://opendatacommunities.org/id/metropolitan-district-council/leeds,29/09/2015,City Development,Irish Arts Foundation,05/03/2015,2014150087,"5,295.00",0,Leeds Inspired Grant,Supplies & Services
Leeds City Council,http://opendatacommunities.org/id/metropolitan-district-council/leeds,29/09/2015,City Development,Leeds Mind,16/03/2015,2014150088,"6,000.00",0,Leeds Inspired Grant,Supplies & Services
Leeds City Council,http://opendatacommunities.org/id/metropolitan-district-council/leeds,29/09/2015,City Development,SOUTH LEEDS ALTERNATIVE TRADING,19/03/2015,2014150089,"5,625.00",0,Leeds Inspired Grant,Supplies & Services
Leeds City Council,http://opendatacommunities.org/id/metropolitan-district-council/leeds,29/09/2015,City Development,Space2 Leeds,05/03/2015,2014150090,"12,852.00",0,Leeds Inspired Grant,Supplies & Services
Leeds City Council,http://opendatacommunities.org/id/metropolitan-district-council/leeds,29/09/2015,City Development,The Big Hoo-Ha Company,12/03/2015,2014150091,"9,970.00",0,Leeds Inspired Grant,Supplies & Services
Leeds City Council,http://opendatacommunities.org/id/metropolitan-district-council/leeds,29/09/2015,City Development,Headingley Litfest,26/02/2015,2014150092,300,0,Leeds Inspired Grant,Supplies & Services
Leeds City Council,http://opendatacommunities.org/id/metropolitan-district-council/leeds,29/09/2015,City Development,COSMOPOLITAN PLAYERS,25/09/2014,2014150093,750,0,Leeds Inspired Grant,Supplies & Services
Leeds City Council,http://opendatacommunities.org/id/metropolitan-district-council/leeds,29/09/2015,City Development,Alchemy Anew,08/09/2014,2014150094,"12,500.00",0,Leeds Inspired Grant,Supplies & Services
Leeds City Council,http://opendatacommunities.org/id/metropolitan-district-council/leeds,29/09/2015,City Development,Buffalo,05/09/2014,2014150095,"5,000.00",0,Leeds Inspired Grant,Supplies & Services
Leeds City Council,http://opendatacommunities.org/id/metropolitan-district-council/leeds,29/09/2015,City Development,ST PETERS SINGERS,25/09/2014,2014150096,"1,000.00",0,Leeds Inspired Grant,Supplies & Services
Leeds City Council,http://opendatacommunities.org/id/metropolitan-district-council/leeds,29/09/2015,City Development,Harmony Community Choir,08/01/2015,2014150097,"1,000.00",0,Leeds Inspired Grant,Supplies & Services
Leeds City Council,http://opendatacommunities.org/id/metropolitan-district-council/leeds,29/09/2015,City Development,GAY ABANDON,10/11/2014,2014150098,63.43,0,Leeds Inspired Grant,Supplies & Services
Leeds City Council,http://opendatacommunities.org/id/metropolitan-district-council/leeds,29/09/2015,City Development,TOGETHER FOR PEACE,23/10/2014,2014150099,"1,000.00",0,Leeds Inspired Grant,Supplies & Services
Leeds City Council,http://opendatacommunities.org/id/metropolitan-district-council/leeds,29/09/2015,City Development,Together Women Projects,10/11/2014,2014150100,846,0,Leeds Inspired Grant,Supplies & Services
Leeds City Council,http://opendatacommunities.org/id/metropolitan-district-council/leeds,29/09/2015,City Development,Adam Hughes (writer),26/02/2015,2014150101,950,0,Leeds Inspired Grant,Supplies & Services
Leeds City Council,http://opendatacommunities.org/id/metropolitan-district-council/leeds,29/09/2015,City Development,Renew Leeds Ltd,06/11/2014,2014150102,"20,000.00",0,Regeneration grant,Supplies & Services
Leeds City Council,http://opendatacommunities.org/id/metropolitan-district-council/leeds,29/09/2015,City Development,Renew Leeds Ltd,21/07/2014,2014150103,"20,000.00",0,Regeneration grant,Supplies & Services
Leeds City Council,http://opendatacommunities.org/id/metropolitan-district-council/leeds,29/09/2015,City Development,Renew Leeds Ltd,26/08/2014,2014150104,"20,000.00",0,Regeneration grant,Supplies & Services
Leeds City Council,http://opendatacommunities.org/id/metropolitan-district-council/leeds,29/09/2015,City Development,Renew Leeds Ltd,16/01/2015,2014150105,"20,000.00",0,Regeneration grant,Supplies & Services
Leeds City Council,http://opendatacommunities.org/id/metropolitan-district-council/leeds,29/09/2015,City Development,City Of Leeds Gymnastics Club C I C,19/11/2014,2014150106,"25,000.00",0,Sports Grant,Supplies & Services
Leeds City Council,http://opendatacommunities.org/id/metropolitan-district-council/leeds,29/09/2015,City Development,LEEDS SPORTS FEDERATION,02/06/2014,2014150107,"9,700.00",0,Sports Grant,Supplies & Services
Leeds City Council,http://opendatacommunities.org/id/metropolitan-district-council/leeds,29/09/2015,Environment & Housing,Gotts Park Golf Club Community Interest,31/03/2015,2014150108,"35,000.00",0,Parks & Recreation grant,Supplies & Services
Leeds City Council,http://opendatacommunities.org/id/metropolitan-district-council/leeds,29/09/2015,Environment & Housing,GROUNDWORK LEEDS,17/07/2014,2014150109,"17,500.00",0,Horticultural grant,Supplies & Services
Leeds City Council,http://opendatacommunities.org/id/metropolitan-district-council/leeds,29/09/2015,Environment & Housing,GROUNDWORK LEEDS,06/08/2014,2014150110,"17,500.00",0,Horticultural grant,Supplies & Services
Leeds City Council,http://opendatacommunities.org/id/metropolitan-district-council/leeds,29/09/2015,Environment & Housing,GROUNDWORK LEEDS,21/11/2014,2014150111,"17,500.00",0,Horticultural grant,Supplies & Services
Leeds City Council,http://opendatacommunities.org/id/metropolitan-district-council/leeds,29/09/2015,Environment & Housing,GROUNDWORK LEEDS,27/02/2015,2014150112,"17,500.00",0,Horticultural grant,Supplies & Services
Leeds City Council,http://opendatacommunities.org/id/metropolitan-district-council/leeds,29/09/2015,Environment & Housing,GROUNDWORK LEEDS,28/07/2014,2014150113,"11,799.80",0,Horticultural grant,Supplies & Services
Leeds City Council,http://opendatacommunities.org/id/metropolitan-district-council/leeds,29/09/2015,Environment & Housing,GROUNDWORK LEEDS,16/09/2014,2014150114,"11,799.80",0,Horticultural grant,Supplies & Services
Leeds City Council,http://opendatacommunities.org/id/metropolitan-district-council/leeds,29/09/2015,Environment & Housing,GROUNDWORK LEEDS,12/01/2015,2014150115,"11,799.80",0,Horticultural grant,Supplies & Services
Leeds City Council,http://opendatacommunities.org/id/metropolitan-district-council/leeds,29/09/2015,Environment & Housing,LEEDS & DISTRICT GARDENERS FEDERATION,09/04/2014,2014150116,750,0,Horticultural grant,Supplies & Services
Leeds City Council,http://opendatacommunities.org/id/metropolitan-district-council/leeds,29/09/2015,Environment & Housing,Meanwood Valley Urban Farm Ltd,01/07/2014,2014150117,"62,000.00",0,Horticultural grant,Supplies & Services
Leeds City Council,http://opendatacommunities.org/id/metropolitan-district-council/leeds,29/09/2015,Environment & Housing,The Conservation Volunteers,06/08/2014,2014150118,562.2,0,Horticultural grant,Supplies & Services
Leeds City Council,http://opendatacommunities.org/id/metropolitan-district-council/leeds,29/09/2015,Environment & Housing,Barnardos,30/10/2014,2014150119,"3,750.00",0,Support grant,Supplies & Services
Leeds City Council,http://opendatacommunities.org/id/metropolitan-district-council/leeds,29/09/2015,Environment & Housing,Barnardos,30/10/2014,2014150120,"3,750.00",0,Support grant,Supplies & Services
Leeds City Council,http://opendatacommunities.org/id/metropolitan-district-council/leeds,29/09/2015,Environment & Housing,Barnardos,30/10/2014,2014150121,"3,750.00",0,Support grant,Supplies & Services
Leeds City Council,http://opendatacommunities.org/id/metropolitan-district-council/leeds,29/09/2015,Environment & Housing,Barnardos,10/02/2015,2014150122,"3,750.00",0,Support grant,Supplies & Services
Leeds City Council,http://opendatacommunities.org/id/metropolitan-district-council/leeds,29/09/2015,Environment & Housing,LEEDS & MOORTOWN FURNITURE STORE,02/05/2014,2014150123,"1,995.00",0,Support grant,Supplies & Services
Leeds City Council,http://opendatacommunities.org/id/metropolitan-district-council/leeds,29/09/2015,Environment & Housing,LEEDS & MOORTOWN FURNITURE STORE,14/08/2014,2014150124,"1,995.00",0,Support grant,Supplies & Services
Leeds City Council,http://opendatacommunities.org/id/metropolitan-district-council/leeds,29/09/2015,Environment & Housing,LEEDS & MOORTOWN FURNITURE STORE,05/02/2015,2014150125,"1,995.00",0,Support grant,Supplies & Services
Leeds City Council,http://opendatacommunities.org/id/metropolitan-district-council/leeds,29/09/2015,Environment & Housing,LEEDS & MOORTOWN FURNITURE STORE,02/05/2014,2014150126,"18,000.00",0,Support grant,Supplies & Services
Leeds City Council,http://opendatacommunities.org/id/metropolitan-district-council/leeds,29/09/2015,Environment & Housing,LEEDS & MOORTOWN FURNITURE STORE,14/08/2014,2014150127,"18,000.00",0,Support grant,Supplies & Services
Leeds City Council,http://opendatacommunities.org/id/metropolitan-district-council/leeds,29/09/2015,Environment & Housing,LEEDS & MOORTOWN FURNITURE STORE,25/11/2014,2014150128,"19,995.00",0,Support grant,Supplies & Services
Leeds City Council,http://opendatacommunities.org/id/metropolitan-district-council/leeds,29/09/2015,Environment & Housing,LEEDS & MOORTOWN FURNITURE STORE,05/02/2015,2014150129,"18,000.00",0,Support grant,Supplies & Services
Leeds City Council,http://opendatacommunities.org/id/metropolitan-district-council/leeds,29/09/2015,Environment & Housing,ST JUDES FURNITURE STORE,10/02/2015,2014150130,"18,000.00",0,Support grant,Supplies & Services
Leeds City Council,http://opendatacommunities.org/id/metropolitan-district-council/leeds,29/09/2015,Environment & Housing,ST JUDES FURNITURE STORE,10/11/2014,2014150131,"54,000.00",0,Support grant,Supplies & Services
Leeds City Council,http://opendatacommunities.org/id/metropolitan-district-council/leeds,29/09/2015,Environment & Housing,LEEDS CITIZENS ADVICE BUREAU,11/04/2014,2014150132,"411,250.00",0,Advice agencies grant ,Supplies & Services
Leeds City Council,http://opendatacommunities.org/id/metropolitan-district-council/leeds,29/09/2015,Environment & Housing,LEEDS CITIZENS ADVICE BUREAU,19/02/2015,2014150133,"30,000.00",0,Advice agencies grant ,Supplies & Services
Leeds City Council,http://opendatacommunities.org/id/metropolitan-district-council/leeds,29/09/2015,Environment & Housing,LEEDS CITIZENS ADVICE BUREAU,29/09/2014,2014150134,"411,250.00",0,Advice agencies grant ,Supplies & Services
Leeds City Council,http://opendatacommunities.org/id/metropolitan-district-council/leeds,29/09/2015,Environment & Housing,LEEDS CITIZENS ADVICE BUREAU,07/01/2015,2014150135,"411,250.00",0,Advice agencies grant ,Supplies & Services
Leeds City Council,http://opendatacommunities.org/id/metropolitan-district-council/leeds,29/09/2015,Environment & Housing,LEEDS CITIZENS ADVICE BUREAU,03/07/2014,2014150136,"402,655.00",0,Advice agencies grant ,Supplies & Services
Leeds City Council,http://opendatacommunities.org/id/metropolitan-district-council/leeds,29/09/2015,Environment & Housing,RSPB,24/06/2014,2014150137,"3,360.00",0,Support grant,Supplies & Services
Leeds City Council,http://opendatacommunities.org/id/metropolitan-district-council/leeds,29/09/2015,Environment & Housing,RSPB,19/12/2014,2014150138,"3,360.00",0,Support grant,Supplies & Services
Leeds City Council,http://opendatacommunities.org/id/metropolitan-district-council/leeds,29/09/2015,Environment & Housing,The Conservation Volunteers,24/06/2014,2014150139,"5,145.00",0,Support grant,Supplies & Services
Leeds City Council,http://opendatacommunities.org/id/metropolitan-district-council/leeds,29/09/2015,Environment & Housing,The Conservation Volunteers,24/06/2014,2014150140,"5,125.00",0,Support grant,Supplies & Services
Leeds City Council,http://opendatacommunities.org/id/metropolitan-district-council/leeds,29/09/2015,Environment & Housing,The Conservation Volunteers,08/12/2014,2014150141,"5,145.00",0,Support grant,Supplies & Services
Leeds City Council,http://opendatacommunities.org/id/metropolitan-district-council/leeds,29/09/2015,Environment & Housing,The Conservation Volunteers,08/12/2014,2014150142,"5,125.00",0,Support grant,Supplies & Services
Leeds City Council,http://opendatacommunities.org/id/metropolitan-district-council/leeds,29/09/2015,Environment & Housing,Care & Repair Leeds,24/07/2014,2014150143,"5,000.00",0,Support grant,Supplies & Services
Leeds City Council,http://opendatacommunities.org/id/metropolitan-district-council/leeds,29/09/2015,Environment & Housing,Care & Repair Leeds,17/09/2014,2014150144,"5,000.00",0,Support grant,Supplies & Services
Leeds City Council,http://opendatacommunities.org/id/metropolitan-district-council/leeds,29/09/2015,Environment & Housing,Care & Repair Leeds,27/10/2014,2014150145,"5,000.00",0,Support grant,Supplies & Services
Leeds City Council,http://opendatacommunities.org/id/metropolitan-district-council/leeds,29/09/2015,Environment & Housing,Care & Repair Leeds,27/10/2014,2014150146,"5,000.00",0,Support grant,Supplies & Services
Leeds City Council,http://opendatacommunities.org/id/metropolitan-district-council/leeds,29/09/2015,Environment & Housing,Care & Repair Leeds,15/01/2015,2014150147,"5,000.00",0,Support grant,Supplies & Services
Leeds City Council,http://opendatacommunities.org/id/metropolitan-district-council/leeds,29/09/2015,Environment & Housing,Care & Repair Leeds,15/01/2015,2014150148,"5,000.00",0,Support grant,Supplies & Services
Leeds City Council,http://opendatacommunities.org/id/metropolitan-district-council/leeds,29/09/2015,Environment & Housing,Care & Repair Leeds,19/03/2015,2014150149,"5,000.00",0,Support grant,Supplies & Services
Leeds City Council,http://opendatacommunities.org/id/metropolitan-district-council/leeds,29/09/2015,Environment & Housing,Care & Repair Leeds,19/03/2015,2014150150,"5,000.00",0,Support grant,Supplies & Services
Leeds City Council,http://opendatacommunities.org/id/metropolitan-district-council/leeds,29/09/2015,Environment & Housing,Care & Repair Leeds,07/04/2014,2014150151,"5,000.00",0,Support grant,Supplies & Services
Leeds City Council,http://opendatacommunities.org/id/metropolitan-district-council/leeds,29/09/2015,Environment & Housing,GROUNDWORK LEEDS,27/06/2014,2014150152,"10,000.00",0,Support grant,Supplies & Services
Leeds City Council,http://opendatacommunities.org/id/metropolitan-district-council/leeds,29/09/2015,Environment & Housing,GROUNDWORK LEEDS,27/10/2014,2014150153,"10,000.00",0,Support grant,Supplies & Services
Leeds City Council,http://opendatacommunities.org/id/metropolitan-district-council/leeds,29/09/2015,Environment & Housing,GROUNDWORK LEEDS,13/01/2015,2014150154,"10,000.00",0,Support grant,Supplies & Services
Leeds City Council,http://opendatacommunities.org/id/metropolitan-district-council/leeds,29/09/2015,Environment & Housing,GROUNDWORK LEEDS,04/02/2015,2014150155,"10,000.00",0,Support grant,Supplies & Services
Leeds City Council,http://opendatacommunities.org/id/metropolitan-district-council/leeds,29/09/2015,Environment & Housing,GROUNDWORK LEEDS,18/12/2014,2014150156,"2,750.00",0,Capital Grant,Capital Expenditure
Leeds City Council,http://opendatacommunities.org/id/metropolitan-district-council/leeds,29/09/2015,Environment & Housing,GROUNDWORK LEEDS,30/03/2015,2014150157,"13,565.73",0,Capital Grant,Capital Expenditure
Leeds City Council,http://opendatacommunities.org/id/metropolitan-district-council/leeds,29/09/2015,Environment & Housing,GROUNDWORK LEEDS,30/03/2015,2014150158,"12,250.00",0,Capital Grant,Capital Expenditure
Leeds City Council,http://opendatacommunities.org/id/metropolitan-district-council/leeds,29/09/2015,Environment & Housing,GROUNDWORK LEEDS,30/03/2015,2014150159,"8,000.00",0,Capital Grant,Capital Expenditure
Leeds City Council,http://opendatacommunities.org/id/metropolitan-district-council/leeds,29/09/2015,Environment & Housing,GROUNDWORK LEEDS,01/04/2015,2014150160,"13,000.00",0,Capital Grant,Capital Expenditure
Leeds City Council,http://opendatacommunities.org/id/metropolitan-district-council/leeds,29/09/2015,Environment & Housing,GROUNDWORK LEEDS,01/04/2015,2014150161,"6,000.00",0,Capital Grant,Capital Expenditure
Leeds City Council,http://opendatacommunities.org/id/metropolitan-district-council/leeds,29/09/2015,Environment & Housing,GROUNDWORK LEEDS,01/04/2015,2014150162,"11,434.27",0,Capital Grant,Capital Expenditure
Leeds City Council,http://opendatacommunities.org/id/metropolitan-district-council/leeds,29/09/2015,Environment & Housing,GROUNDWORK LEEDS,27/08/2014,2014150163,"2,391.00",0,Capital Grant,Capital Expenditure
Leeds City Council,http://opendatacommunities.org/id/metropolitan-district-council/leeds,29/09/2015,Children's Services,Community Leeds After School,26/08/2014,2014150164,"1,929.40",0,Education Grant,Supplies & Services
Leeds City Council,http://opendatacommunities.org/id/metropolitan-district-council/leeds,29/09/2015,Children's Services,Hamara Healthy Living Centre,26/08/2014,2014150165,"4,200.00",0,Education Grant,Supplies & Services
Leeds City Council,http://opendatacommunities.org/id/metropolitan-district-council/leeds,29/09/2015,Children's Services,Leeds Latvian Community Centre,26/08/2014,2014150166,250,0,Education Grant,Supplies & Services
Leeds City Council,http://opendatacommunities.org/id/metropolitan-district-council/leeds,29/09/2015,Children's Services,Leeds Refugee Forum,26/08/2014,2014150167,166.5,0,Education Grant,Supplies & Services
Leeds City Council,http://opendatacommunities.org/id/metropolitan-district-council/leeds,29/09/2015,Children's Services,LEEDS SCHOOLS FOOTBALL ASSOC,26/03/2015,2014150168,"5,000.00",0,Education Grant,Supplies & Services
Leeds City Council,http://opendatacommunities.org/id/metropolitan-district-council/leeds,29/09/2015,Children's Services,Leeds Swahili Cultural Community,26/08/2014,2014150169,"1,800.00",0,Education Grant,Supplies & Services
Leeds City Council,http://opendatacommunities.org/id/metropolitan-district-council/leeds,29/09/2015,Children's Services,Baltica,17/12/2014,2014150170,379.6,0,Education Grant,Supplies & Services
Leeds City Council,http://opendatacommunities.org/id/metropolitan-district-council/leeds,29/09/2015,Children's Services,Al Haqq Supplementary School,26/08/2014,2014150171,"2,260.00",0,Education Grant,Supplies & Services
Leeds City Council,http://opendatacommunities.org/id/metropolitan-district-council/leeds,29/09/2015,Children's Services,The Works Skatepark Charity,16/01/2015,2014150172,"2,380.00",0,Youth services grant,Supplies & Services
Leeds City Council,http://opendatacommunities.org/id/metropolitan-district-council/leeds,29/09/2015,Children's Services,LEEDS FOSTER CARERS ASSOCATION,03/06/2014,2014150173,300,0,Early years grant,Supplies & Services
Leeds City Council,http://opendatacommunities.org/id/metropolitan-district-council/leeds,29/09/2015,Children's Services,LEEDS FOSTER CARERS ASSOCATION,29/05/2014,2014150174,"3,000.00",0,Early years grant,Supplies & Services
Leeds City Council,http://opendatacommunities.org/id/metropolitan-district-council/leeds,29/09/2015,Children's Services,4 Children Direct Ltd,28/04/2014,2014150175,"39,047.75",0,Early years grant,Supplies & Services
Leeds City Council,http://opendatacommunities.org/id/metropolitan-district-council/leeds,29/09/2015,Children's Services,4 Children Direct Ltd,29/07/2014,2014150176,"39,047.75",0,Early years grant,Supplies & Services
Leeds City Council,http://opendatacommunities.org/id/metropolitan-district-council/leeds,29/09/2015,Children's Services,4 Children Direct Ltd,23/09/2014,2014150177,"39,047.75",0,Early years grant,Supplies & Services
Leeds City Council,http://opendatacommunities.org/id/metropolitan-district-council/leeds,29/09/2015,Children's Services,4 Children Direct Ltd,18/12/2014,2014150178,"39,047.75",0,Early years grant,Supplies & Services
Leeds City Council,http://opendatacommunities.org/id/metropolitan-district-council/leeds,29/09/2015,Children's Services,Diocese Of West Yorkshire & The Dales,05/11/2014,2014150179,"36,000.00",0,Early Years Start Up Grant,Supplies & Services
Leeds City Council,http://opendatacommunities.org/id/metropolitan-district-council/leeds,29/09/2015,Children's Services,Ducklings Pre-School Learning Centre,14/05/2014,2014150180,"2,000.00",0,Early Years Start Up Grant,Supplies & Services
Leeds City Council,http://opendatacommunities.org/id/metropolitan-district-council/leeds,29/09/2015,Children's Services,FAITH TOGETHER IN LEEDS 11,19/06/2014,2014150181,"10,000.00",0,Early Years Start Up Grant,Supplies & Services
Leeds City Council,http://opendatacommunities.org/id/metropolitan-district-council/leeds,29/09/2015,Children's Services,BURMANTOFTS COMMUNITY NURSERY,28/07/2014,2014150182,"23,000.00",0,Early Years Start Up Grant,Supplies & Services
Leeds City Council,http://opendatacommunities.org/id/metropolitan-district-council/leeds,29/09/2015,Children's Services,BURMANTOFTS COMMUNITY NURSERY,14/05/2014,2014150183,"40,000.00",0,Early Years Start Up Grant,Supplies & Services
Leeds City Council,http://opendatacommunities.org/id/metropolitan-district-council/leeds,29/09/2015,Children's Services,BRIGHT SPARKS PRE-SCHOOL,29/10/2014,2014150184,"2,000.00",0,Early Years Start Up Grant,Supplies & Services
Leeds City Council,http://opendatacommunities.org/id/metropolitan-district-council/leeds,29/09/2015,Children's Services,IRELAND WOOD CHILDRENS CENTRE,05/08/2014,2014150185,"32,000.00",0,Early Years Start Up Grant,Supplies & Services
Leeds City Council,http://opendatacommunities.org/id/metropolitan-district-council/leeds,29/09/2015,Children's Services,4 Children Direct Ltd,29/10/2014,2014150186,"48,000.00",0,Early Years Start Up Grant,Supplies & Services
Leeds City Council,http://opendatacommunities.org/id/metropolitan-district-council/leeds,29/09/2015,Children's Services,Abc Daycare And Ozone Out Of School,28/07/2014,2014150187,"8,000.00",0,Early Years Start Up Grant,Supplies & Services
Leeds City Council,http://opendatacommunities.org/id/metropolitan-district-council/leeds,29/09/2015,Children's Services,POOL PRE-SCHOOL GROUP,29/09/2014,2014150188,"1,000.00",0,Early Years Start Up Grant,Supplies & Services
Leeds City Council,http://opendatacommunities.org/id/metropolitan-district-council/leeds,29/09/2015,Children's Services,SHANTONA WOMENS CENTRE,27/10/2014,2014150189,"14,000.00",0,Early Years Start Up Grant,Supplies & Services
Leeds City Council,http://opendatacommunities.org/id/metropolitan-district-council/leeds,29/09/2015,Children's Services,SALVATION ARMY,05/08/2014,2014150190,"16,000.00",0,Early Years Start Up Grant,Supplies & Services
Leeds City Council,http://opendatacommunities.org/id/metropolitan-district-council/leeds,29/09/2015,Children's Services,VOLUNTARY ACTION-LEEDS,22/08/2014,2014150191,"23,750.00",0,Children's social care grant,Supplies & Services
Leeds City Council,http://opendatacommunities.org/id/metropolitan-district-council/leeds,29/09/2015,Children's Services,VOLUNTARY ACTION-LEEDS,12/01/2015,2014150192,"23,750.00",0,Children's social care grant,Supplies & Services
Leeds City Council,http://opendatacommunities.org/id/metropolitan-district-council/leeds,29/09/2015,Children's Services,VOLUNTARY ACTION-LEEDS,15/01/2015,2014150193,"22,167.00",0,Children's social care grant,Supplies & Services
Leeds City Council,http://opendatacommunities.org/id/metropolitan-district-council/leeds,29/09/2015,Children's Services,VOLUNTARY ACTION-LEEDS,31/03/2015,2014150194,"21,375.00",0,Children's social care grant,Supplies & Services
Leeds City Council,http://opendatacommunities.org/id/metropolitan-district-council/leeds,29/09/2015,Children's Services,Epic Leeds,01/10/2014,2014150195,"10,000.00",0,Education grant,Supplies & Services
Leeds City Council,http://opendatacommunities.org/id/metropolitan-district-council/leeds,29/09/2015,Children's Services,4 Children Direct Ltd,19/09/2014,2014150196,"5,988.67",0,Children's Services capital grant,Capital Expenditure
Leeds City Council,http://opendatacommunities.org/id/metropolitan-district-council/leeds,29/09/2015,Children's Services,4 Children Direct Ltd,19/09/2014,2014150197,"29,943.30",0,Children's Services capital grant,Capital Expenditure
Leeds City Council,http://opendatacommunities.org/id/metropolitan-district-council/leeds,29/09/2015,Children's Services,4 Children Direct Ltd,22/01/2015,2014150198,"17,967.60",0,Children's Services capital grant,Capital Expenditure
Leeds City Council,http://opendatacommunities.org/id/metropolitan-district-council/leeds,29/09/2015,Children's Services,4 Children Direct Ltd,27/03/2015,2014150199,"3,835.20",0,Children's Services capital grant,Capital Expenditure
Leeds City Council,http://opendatacommunities.org/id/metropolitan-district-council/leeds,29/09/2015,Children's Services,BURMANTOFTS COMMUNITY NURSERY,05/03/2015,2014150200,"62,700.00",0,Children's Services capital grant,Capital Expenditure
Leeds City Council,http://opendatacommunities.org/id/metropolitan-district-council/leeds,29/09/2015,Children's Services,BURMANTOFTS COMMUNITY NURSERY,01/04/2015,2014150201,"160,740.00",0,Children's Services capital grant,Capital Expenditure
Leeds City Council,http://opendatacommunities.org/id/metropolitan-district-council/leeds,29/09/2015,Children's Services,BURMANTOFTS COMMUNITY NURSERY,13/11/2014,2014150202,"28,080.00",0,Children's Services capital grant,Capital Expenditure
Leeds City Council,http://opendatacommunities.org/id/metropolitan-district-council/leeds,29/09/2015,Children's Services,BURMANTOFTS COMMUNITY NURSERY,17/11/2014,2014150203,"50,850.00",0,Children's Services capital grant,Capital Expenditure
Leeds City Council,http://opendatacommunities.org/id/metropolitan-district-council/leeds,29/09/2015,Adult Social Care,Leeds Involving People,22/07/2014,2014150204,"1,250.00",0,Adult Social Care grant,Supplies & Services
Leeds City Council,http://opendatacommunities.org/id/metropolitan-district-council/leeds,29/09/2015,Adult Social Care,Leeds Involving People,23/01/2015,2014150205,"1,700.00",0,Adult Social Care grant,Supplies & Services
Leeds City Council,http://opendatacommunities.org/id/metropolitan-district-council/leeds,29/09/2015,Adult Social Care,Leeds Involving People,22/07/2014,2014150206,"3,208.55",0,Adult Social Care grant,Supplies & Services
Leeds City Council,http://opendatacommunities.org/id/metropolitan-district-council/leeds,29/09/2015,Adult Social Care,Black Health Initiative,26/09/2014,2014150207,"5,650.00",0,Adult Social Care grant,Supplies & Services
Leeds City Council,http://opendatacommunities.org/id/metropolitan-district-council/leeds,29/09/2015,Adult Social Care,ARTLINK WEST YORKSHIRE,16/06/2014,2014150208,"5,000.00",0,Adult Social Care grant,Supplies & Services
Leeds City Council,http://opendatacommunities.org/id/metropolitan-district-council/leeds,29/09/2015,Adult Social Care,Elmet Carers Group,20/08/2014,2014150209,300,0,Carers' Small Group Grant,Supplies & Services
Leeds City Council,http://opendatacommunities.org/id/metropolitan-district-council/leeds,29/09/2015,Adult Social Care,CROSSGATES CARERS GROUP,28/10/2014,2014150210,300,0,Carers' Small Group Grant,Supplies & Services
Leeds City Council,http://opendatacommunities.org/id/metropolitan-district-council/leeds,29/09/2015,Adult Social Care,Holbeck Elderly Aid Carers Group,16/01/2015,2014150211,300,0,Carers' Small Group Grant,Supplies & Services
Leeds City Council,http://opendatacommunities.org/id/metropolitan-district-council/leeds,29/09/2015,Adult Social Care,HOPE,20/08/2014,2014150212,300,0,Carers' Small Group Grant,Supplies & Services
Leeds City Council,http://opendatacommunities.org/id/metropolitan-district-council/leeds,29/09/2015,Adult Social Care,WRVS ST JAMES LUNCHEON CLUB,16/05/2014,2014150213,"1,262.00",0,Luncheon Club grant,Supplies & Services
Leeds City Council,http://opendatacommunities.org/id/metropolitan-district-council/leeds,29/09/2015,Adult Social Care,LJWB Mental Health Carers Group,20/08/2014,2014150214,200,0,Luncheon Club grant,Supplies & Services
Leeds City Council,http://opendatacommunities.org/id/metropolitan-district-council/leeds,29/09/2015,Adult Social Care,CARING TOGETHER IN WOODHOUSE AND LITTLE,20/08/2014,2014150215,300,0,Carers' Small Group Grant,Supplies & Services
Leeds City Council,http://opendatacommunities.org/id/metropolitan-district-council/leeds,29/09/2015,Adult Social Care,Carers Reference Group (B.A.F.F.),20/08/2014,2014150216,300,0,Carers' Small Group Grant,Supplies & Services
Leeds City Council,http://opendatacommunities.org/id/metropolitan-district-council/leeds,29/09/2015,Adult Social Care,MORLEY LEARNING DISABILITIES CARERS,09/09/2014,2014150217,300,0,Carers' Small Group Grant,Supplies & Services
Leeds City Council,http://opendatacommunities.org/id/metropolitan-district-council/leeds,29/09/2015,Adult Social Care,Woodhouse Hill Luncheon Club,16/05/2014,2014150218,"1,425.00",0,Luncheon Club grant,Supplies & Services
Leeds City Council,http://opendatacommunities.org/id/metropolitan-district-council/leeds,29/09/2015,Adult Social Care,Whitkirk Silver Lining Luncheon Club,15/08/2014,2014150219,"1,282.00",0,Luncheon Club grant,Supplies & Services
Leeds City Council,http://opendatacommunities.org/id/metropolitan-district-council/leeds,29/09/2015,Adult Social Care,WHINGATE METHODIST LUNCHEON CLUB,20/06/2014,2014150220,"2,195.00",0,Luncheon Club grant,Supplies & Services
Leeds City Council,http://opendatacommunities.org/id/metropolitan-district-council/leeds,29/09/2015,Adult Social Care,North & West Yorkshire ASBAH,09/09/2014,2014150221,300,0,Luncheon Club grant,Supplies & Services
Leeds City Council,http://opendatacommunities.org/id/metropolitan-district-council/leeds,29/09/2015,Adult Social Care,OLDER PEOPLES ACTION IN THE LOCALITY,20/08/2014,2014150222,300,0,Carers' Small Group Grant,Supplies & Services
Leeds City Council,http://opendatacommunities.org/id/metropolitan-district-council/leeds,29/09/2015,Adult Social Care,South Leeds Carers Support Group,09/09/2014,2014150223,77,0,Carers' Small Group Grant,Supplies & Services
Leeds City Council,http://opendatacommunities.org/id/metropolitan-district-council/leeds,29/09/2015,Adult Social Care,Town St Carers Group,21/11/2014,2014150224,300,0,Carers' Small Group Grant,Supplies & Services
Leeds City Council,http://opendatacommunities.org/id/metropolitan-district-council/leeds,29/09/2015,Adult Social Care,LEEDS IRISH HEALTH & HOMES,19/03/2014,2014150225,"8,462.00",0,Adult Social Care grant,Supplies & Services
Leeds City Council,http://opendatacommunities.org/id/metropolitan-district-council/leeds,29/09/2015,Adult Social Care,LEEDS IRISH HEALTH & HOMES,19/06/2014,2014150226,"8,462.00",0,Adult Social Care grant,Supplies & Services
Leeds City Council,http://opendatacommunities.org/id/metropolitan-district-council/leeds,29/09/2015,Adult Social Care,LEEDS IRISH HEALTH & HOMES,17/09/2014,2014150227,"8,462.00",0,Adult Social Care grant,Supplies & Services
Leeds City Council,http://opendatacommunities.org/id/metropolitan-district-council/leeds,29/09/2015,Adult Social Care,LEEDS IRISH HEALTH & HOMES,19/09/2014,2014150228,"-8,462.00",0,Adult Social Care grant,Supplies & Services
Leeds City Council,http://opendatacommunities.org/id/metropolitan-district-council/leeds,29/09/2015,Adult Social Care,Hamara Healthy Living Centre,25/03/2014,2014150229,"37,726.75",0,Adult Social Care grant,Supplies & Services
Leeds City Council,http://opendatacommunities.org/id/metropolitan-district-council/leeds,29/09/2015,Adult Social Care,Health For All (Leeds) Ltd,25/03/2014,2014150230,"46,058.88",0,Adult Social Care grant,Supplies & Services
Leeds City Council,http://opendatacommunities.org/id/metropolitan-district-council/leeds,29/09/2015,Adult Social Care,Leep1,21/11/2014,2014150231,"2,845.06",0,Adult Social Care grant,Supplies & Services
Leeds City Council,http://opendatacommunities.org/id/metropolitan-district-council/leeds,29/09/2015,Adult Social Care,Leep1,14/07/2014,2014150232,"2,845.06",0,Adult Social Care grant,Supplies & Services
Leeds City Council,http://opendatacommunities.org/id/metropolitan-district-council/leeds,29/09/2015,Adult Social Care,Leep1,29/12/2014,2014150233,"2,845.06",0,Adult Social Care grant,Supplies & Services
Leeds City Council,http://opendatacommunities.org/id/metropolitan-district-council/leeds,29/09/2015,Adult Social Care,OPEN COUNTRY,04/11/2014,2014150234,"8,106.25",0,Adult Social Care grant,Supplies & Services
Leeds City Council,http://opendatacommunities.org/id/metropolitan-district-council/leeds,29/09/2015,Adult Social Care,OPEN COUNTRY,29/12/2014,2014150235,"8,106.25",0,Adult Social Care grant,Supplies & Services
Leeds City Council,http://opendatacommunities.org/id/metropolitan-district-council/leeds,29/09/2015,Adult Social Care,OPEN COUNTRY,23/06/2014,2014150236,"8,106.25",0,Adult Social Care grant,Supplies & Services
Leeds City Council,http://opendatacommunities.org/id/metropolitan-district-council/leeds,29/09/2015,Adult Social Care,OPEN COUNTRY,25/03/2014,2014150237,"8,106.25",0,Adult Social Care grant,Supplies & Services
Leeds City Council,http://opendatacommunities.org/id/metropolitan-district-council/leeds,29/09/2015,Adult Social Care,PEOPLE IN ACTION (LEEDS) Ltd,25/03/2014,2014150238,"7,500.00",0,Adult Social Care grant,Supplies & Services
Leeds City Council,http://opendatacommunities.org/id/metropolitan-district-council/leeds,29/09/2015,Adult Social Care,PYRAMID OF ARTS,29/12/2014,2014150239,"9,000.00",0,Adult Social Care grant,Supplies & Services
Leeds City Council,http://opendatacommunities.org/id/metropolitan-district-council/leeds,29/09/2015,Adult Social Care,PYRAMID OF ARTS,25/03/2014,2014150240,"9,984.75",0,Adult Social Care grant,Supplies & Services
Leeds City Council,http://opendatacommunities.org/id/metropolitan-district-council/leeds,29/09/2015,Adult Social Care,Royal Mencap Society Education &,27/03/2014,2014150241,"10,000.00",0,Adult Social Care grant,Supplies & Services
Leeds City Council,http://opendatacommunities.org/id/metropolitan-district-council/leeds,29/09/2015,Adult Social Care,ARTICULATE ADVOCACY,25/03/2014,2014150242,"14,345.06",0,Adult Social Care grant,Supplies & Services
Leeds City Council,http://opendatacommunities.org/id/metropolitan-district-council/leeds,29/09/2015,Adult Social Care,The Conservation Volunteers,25/03/2014,2014150243,"7,634.50",0,Adult Social Care grant,Supplies & Services
Leeds City Council,http://opendatacommunities.org/id/metropolitan-district-council/leeds,29/09/2015,Adult Social Care,YAMSEN,25/03/2014,2014150244,"1,366.25",0,Adult Social Care grant,Supplies & Services
Leeds City Council,http://opendatacommunities.org/id/metropolitan-district-council/leeds,29/09/2015,Adult Social Care,YORKSHIRE DANCE CENTRE TRUST CO LTD,04/11/2014,2014150245,"7,697.25",0,Adult Social Care grant,Supplies & Services
Leeds City Council,http://opendatacommunities.org/id/metropolitan-district-council/leeds,29/09/2015,Adult Social Care,YORKSHIRE DANCE CENTRE TRUST CO LTD,29/12/2014,2014150246,"7,697.25",0,Adult Social Care grant,Supplies & Services
Leeds City Council,http://opendatacommunities.org/id/metropolitan-district-council/leeds,29/09/2015,Adult Social Care,YORKSHIRE DANCE CENTRE TRUST CO LTD,23/06/2014,2014150247,"7,697.25",0,Adult Social Care grant,Supplies & Services
Leeds City Council,http://opendatacommunities.org/id/metropolitan-district-council/leeds,29/09/2015,Adult Social Care,Wednesday Luncheon Club (Owls),12/05/2014,2014150248,"2,195.00",0,Luncheon Club grant,Supplies & Services
Leeds City Council,http://opendatacommunities.org/id/metropolitan-district-council/leeds,29/09/2015,Adult Social Care,YORKSHIRE DANCE CENTRE TRUST CO LTD,25/03/2014,2014150249,"7,697.25",0,Luncheon Club grant,Supplies & Services
Leeds City Council,http://opendatacommunities.org/id/metropolitan-district-council/leeds,29/09/2015,Adult Social Care,ACCESS COMMITTEE FOR LEEDS,02/06/2014,2014150250,"2,000.00",0,Adult Social Care grant,Supplies & Services
Leeds City Council,http://opendatacommunities.org/id/metropolitan-district-council/leeds,29/09/2015,Adult Social Care,WILLIAM MERRITT CENTRE,19/03/2014,2014150251,"8,131.00",0,Adult Social Care grant,Supplies & Services
Leeds City Council,http://opendatacommunities.org/id/metropolitan-district-council/leeds,29/09/2015,Adult Social Care,WILLIAM MERRITT CENTRE,19/06/2014,2014150252,"8,131.00",0,Adult Social Care grant,Supplies & Services
Leeds City Council,http://opendatacommunities.org/id/metropolitan-district-council/leeds,29/09/2015,Adult Social Care,WILLIAM MERRITT CENTRE,17/09/2014,2014150253,"8,131.00",0,Adult Social Care grant,Supplies & Services
Leeds City Council,http://opendatacommunities.org/id/metropolitan-district-council/leeds,29/09/2015,Adult Social Care,WILLIAM MERRITT CENTRE,11/12/2014,2014150254,"8,131.00",0,Adult Social Care grant,Supplies & Services
Leeds City Council,http://opendatacommunities.org/id/metropolitan-district-council/leeds,29/09/2015,Adult Social Care,FARSLEY LIVE AT HOME LUNCH CLUB,02/05/2014,2014150255,"2,195.00",0,Luncheon Club grant,Supplies & Services
Leeds City Council,http://opendatacommunities.org/id/metropolitan-district-council/leeds,29/09/2015,Adult Social Care,FARSLEY HELPING HANDS,02/05/2014,2014150256,"1,425.00",0,Luncheon Club grant,Supplies & Services
Leeds City Council,http://opendatacommunities.org/id/metropolitan-district-council/leeds,29/09/2015,Adult Social Care,FARNLEY LUNCHEON CLUB,02/05/2014,2014150257,"2,195.00",0,Luncheon Club grant,Supplies & Services
Leeds City Council,http://opendatacommunities.org/id/metropolitan-district-council/leeds,29/09/2015,Adult Social Care,Fairfield Community Centre Partnership,28/05/2014,2014150258,"2,195.00",0,Luncheon Club grant,Supplies & Services
Leeds City Council,http://opendatacommunities.org/id/metropolitan-district-council/leeds,29/09/2015,Adult Social Care,EBOR GARDENS LUNCHEON CLUB,16/05/2014,2014150259,"2,195.00",0,Luncheon Club grant,Supplies & Services
Leeds City Council,http://opendatacommunities.org/id/metropolitan-district-council/leeds,29/09/2015,Adult Social Care,EBENEZER METHODIST CHURCH LUNCHEON CLUB,02/05/2014,2014150260,"2,195.00",0,Luncheon Club grant,Supplies & Services
Leeds City Council,http://opendatacommunities.org/id/metropolitan-district-council/leeds,29/09/2015,Adult Social Care,EAST ARDSLEY LUNCHEON CLUB,02/05/2014,2014150261,"1,425.00",0,Luncheon Club grant,Supplies & Services
Leeds City Council,http://opendatacommunities.org/id/metropolitan-district-council/leeds,29/09/2015,Adult Social Care,COOKRIDGE LUNCHEON CLUB,02/05/2014,2014150262,"2,195.00",0,Luncheon Club grant,Supplies & Services
Leeds City Council,http://opendatacommunities.org/id/metropolitan-district-council/leeds,29/09/2015,Adult Social Care,CONVENT OF MERCY,12/05/2014,2014150263,"1,425.00",0,Luncheon Club grant,Supplies & Services
Leeds City Council,http://opendatacommunities.org/id/metropolitan-district-council/leeds,29/09/2015,Adult Social Care,GREAT & LITTLE PRESTON LUNCHEON CLUB,02/05/2014,2014150264,"2,195.00",0,Luncheon Club grant,Supplies & Services
Leeds City Council,http://opendatacommunities.org/id/metropolitan-district-council/leeds,29/09/2015,Adult Social Care,HALLIDAY COURT LUNCHEON CLUB,16/05/2014,2014150265,"2,195.00",0,Luncheon Club grant,Supplies & Services
Leeds City Council,http://opendatacommunities.org/id/metropolitan-district-council/leeds,29/09/2015,Adult Social Care,Hamwattan Centre Luncheon Club,02/05/2014,2014150266,"3,850.00",0,Luncheon Club grant,Supplies & Services
Leeds City Council,http://opendatacommunities.org/id/metropolitan-district-council/leeds,29/09/2015,Adult Social Care,Hawksworth Oldies Lunch Club,12/05/2014,2014150267,"2,195.00",0,Luncheon Club grant,Supplies & Services
Leeds City Council,http://opendatacommunities.org/id/metropolitan-district-council/leeds,29/09/2015,Adult Social Care,Hawksworth Tuesday Luncheon Club,02/05/2014,2014150268,"2,195.00",0,Luncheon Club grant,Supplies & Services
Leeds City Council,http://opendatacommunities.org/id/metropolitan-district-council/leeds,29/09/2015,Adult Social Care,HEADINGLEY METHODIST CHURCH,12/05/2014,2014150269,"2,195.00",0,Luncheon Club grant,Supplies & Services
Leeds City Council,http://opendatacommunities.org/id/metropolitan-district-council/leeds,29/09/2015,Adult Social Care,HOLBECK ELDERLY AID,02/05/2014,2014150270,"1,425.00",0,Luncheon Club grant,Supplies & Services
Leeds City Council,http://opendatacommunities.org/id/metropolitan-district-council/leeds,29/09/2015,Adult Social Care,HOLBECK ELDERLY AID,28/05/2014,2014150271,"1,425.00",0,Luncheon Club grant,Supplies & Services
Leeds City Council,http://opendatacommunities.org/id/metropolitan-district-council/leeds,29/09/2015,Adult Social Care,HOLLINS GROVE LUNCH CLUB,02/05/2014,2014150272,"2,195.00",0,Luncheon Club grant,Supplies & Services
Leeds City Council,http://opendatacommunities.org/id/metropolitan-district-council/leeds,29/09/2015,Adult Social Care,Horsforth Live @ Home Luncheon Club,12/05/2014,2014150273,"3,850.00",0,Luncheon Club grant,Supplies & Services
Leeds City Council,http://opendatacommunities.org/id/metropolitan-district-council/leeds,29/09/2015,Adult Social Care,CLEVELEYS COURT SOCIAL FUND,02/05/2014,2014150274,"2,657.00",0,Luncheon Club grant,Supplies & Services
Leeds City Council,http://opendatacommunities.org/id/metropolitan-district-council/leeds,29/09/2015,Adult Social Care,International Caribbean Luncheon Club,02/05/2014,2014150275,"1,425.00",0,Luncheon Club grant,Supplies & Services
Leeds City Council,http://opendatacommunities.org/id/metropolitan-district-council/leeds,29/09/2015,Adult Social Care,Kentmere Centre Luncheon Club,02/05/2014,2014150276,"3,850.00",0,Luncheon Club grant,Supplies & Services
Leeds City Council,http://opendatacommunities.org/id/metropolitan-district-council/leeds,29/09/2015,Adult Social Care,L.I.H.H. Friday Club,02/05/2014,2014150277,"2,195.00",0,Luncheon Club grant,Supplies & Services
Leeds City Council,http://opendatacommunities.org/id/metropolitan-district-council/leeds,29/09/2015,Adult Social Care,Leeds Chinese Community Elderley,02/05/2014,2014150278,"3,850.00",0,Luncheon Club grant,Supplies & Services
Leeds City Council,http://opendatacommunities.org/id/metropolitan-district-council/leeds,29/09/2015,Adult Social Care,Leeds Involving People,19/03/2014,2014150279,"16,025.00",0,Adult Social Care grant,Supplies & Services
Leeds City Council,http://opendatacommunities.org/id/metropolitan-district-council/leeds,29/09/2015,Adult Social Care,Leeds Involving People,19/06/2014,2014150280,"16,025.00",0,Adult Social Care grant,Supplies & Services
Leeds City Council,http://opendatacommunities.org/id/metropolitan-district-council/leeds,29/09/2015,Adult Social Care,Leeds Involving People,11/12/2014,2014150281,"16,025.00",0,Adult Social Care grant,Supplies & Services
Leeds City Council,http://opendatacommunities.org/id/metropolitan-district-council/leeds,29/09/2015,Adult Social Care,Leeds Involving People,17/09/2014,2014150282,"16,025.00",0,Adult Social Care grant,Supplies & Services
Leeds City Council,http://opendatacommunities.org/id/metropolitan-district-council/leeds,29/09/2015,Adult Social Care,Christ Church L/Club,02/05/2014,2014150283,"2,195.00",0,Adult Social Care grant,Supplies & Services
Leeds City Council,http://opendatacommunities.org/id/metropolitan-district-council/leeds,29/09/2015,Adult Social Care,LEEDS VIETNAMESE ELDERLY GROUP,02/05/2014,2014150284,926,0,Luncheon Club grant,Supplies & Services
Leeds City Council,http://opendatacommunities.org/id/metropolitan-district-council/leeds,29/09/2015,Adult Social Care,Thorner over 60s Luncheon Club,14/07/2014,2014150285,926,0,Luncheon Club grant,Supplies & Services
Leeds City Council,http://opendatacommunities.org/id/metropolitan-district-council/leeds,29/09/2015,Adult Social Care,CHAPEL ALLERTON TOWN STREET LUNCH CLUB,12/05/2014,2014150286,"2,195.00",0,Luncheon Club grant,Supplies & Services
Leeds City Council,http://opendatacommunities.org/id/metropolitan-district-council/leeds,29/09/2015,Adult Social Care,The Grove Luncheon Club,12/05/2014,2014150287,"1,425.00",0,Luncheon Club grant,Supplies & Services
Leeds City Council,http://opendatacommunities.org/id/metropolitan-district-council/leeds,29/09/2015,Adult Social Care,Calverley Lunch Club,31/07/2014,2014150288,"1,646.00",0,Luncheon Club grant,Supplies & Services
Leeds City Council,http://opendatacommunities.org/id/metropolitan-district-council/leeds,29/09/2015,Adult Social Care,Calverley Lunch Club,12/05/2014,2014150289,"1,646.00",0,Luncheon Club grant,Supplies & Services
Leeds City Council,http://opendatacommunities.org/id/metropolitan-district-council/leeds,29/09/2015,Adult Social Care,Burmantofts Lunch Club,12/05/2014,2014150290,"2,195.00",0,Luncheon Club grant,Supplies & Services
Leeds City Council,http://opendatacommunities.org/id/metropolitan-district-council/leeds,29/09/2015,Adult Social Care,Mahila Samiti Kitchen Luncheon Club,02/05/2014,2014150291,"2,195.00",0,Luncheon Club grant,Supplies & Services
Leeds City Council,http://opendatacommunities.org/id/metropolitan-district-council/leeds,29/09/2015,Adult Social Care,Middleton Elderly Aid Luncheon Club,02/05/2014,2014150292,"3,850.00",0,Luncheon Club grant,Supplies & Services
Leeds City Council,http://opendatacommunities.org/id/metropolitan-district-council/leeds,29/09/2015,Adult Social Care,Moorside TARA Luncheon Club,12/05/2014,2014150293,"2,195.00",0,Luncheon Club grant,Supplies & Services
Leeds City Council,http://opendatacommunities.org/id/metropolitan-district-council/leeds,29/09/2015,Adult Social Care,MOORTOWN BAPTIST CHURCH LUNCHEON CLUB,02/05/2014,2014150294,"1,425.00",0,Luncheon Club grant,Supplies & Services
Leeds City Council,http://opendatacommunities.org/id/metropolitan-district-council/leeds,29/09/2015,Adult Social Care,Morley Elderly Action Luncheon Club,02/05/2014,2014150295,"2,195.00",0,Luncheon Club grant,Supplies & Services
Leeds City Council,http://opendatacommunities.org/id/metropolitan-district-council/leeds,29/09/2015,Adult Social Care,MORLEY ST PETERS LUNCHEON CLUB,20/06/2014,2014150296,"2,195.00",0,Luncheon Club grant,Supplies & Services
Leeds City Council,http://opendatacommunities.org/id/metropolitan-district-council/leeds,29/09/2015,Adult Social Care,NAMASTE,02/05/2014,2014150297,"2,195.00",0,Luncheon Club grant,Supplies & Services
Leeds City Council,http://opendatacommunities.org/id/metropolitan-district-council/leeds,29/09/2015,Adult Social Care,Neighbourhood Elders Team,02/05/2014,2014150298,"3,850.00",0,Luncheon Club grant,Supplies & Services
Leeds City Council,http://opendatacommunities.org/id/metropolitan-district-council/leeds,29/09/2015,Adult Social Care,NEW WORTLEY COMMUNITY ASSOCIATION,16/05/2014,2014150299,"2,195.00",0,Luncheon Club grant,Supplies & Services
Leeds City Council,http://opendatacommunities.org/id/metropolitan-district-council/leeds,29/09/2015,Adult Social Care,Northcall Swingers Luncheon Club,12/05/2014,2014150300,"2,195.00",0,Luncheon Club grant,Supplies & Services
Leeds City Council,http://opendatacommunities.org/id/metropolitan-district-council/leeds,29/09/2015,Adult Social Care,OAKWOOD LUNCHEON CLUB,02/05/2014,2014150301,"2,195.00",0,Luncheon Club grant,Supplies & Services
Leeds City Council,http://opendatacommunities.org/id/metropolitan-district-council/leeds,29/09/2015,Adult Social Care,OPAL Luncheon Club,14/07/2014,2014150302,"2,195.00",0,Luncheon Club grant,Supplies & Services
Leeds City Council,http://opendatacommunities.org/id/metropolitan-district-council/leeds,29/09/2015,Adult Social Care,OTLEY ACTION FOR OLDER PEOPLE,02/05/2014,2014150303,"2,195.00",0,Luncheon Club grant,Supplies & Services
Leeds City Council,http://opendatacommunities.org/id/metropolitan-district-council/leeds,29/09/2015,Adult Social Care,Otley Action Friendship Group,12/05/2014,2014150304,"2,195.00",0,Luncheon Club grant,Supplies & Services
Leeds City Council,http://opendatacommunities.org/id/metropolitan-district-council/leeds,29/09/2015,Adult Social Care,Parivar (Family) Lunch Club,02/05/2014,2014150305,"1,282.00",0,Luncheon Club grant,Supplies & Services
Leeds City Council,http://opendatacommunities.org/id/metropolitan-district-council/leeds,29/09/2015,Adult Social Care,BRAMLEY COMMUNITY CENTRE LUNCHEON CLUB,30/04/2014,2014150306,"3,850.00",0,Luncheon Club grant,Supplies & Services
Leeds City Council,http://opendatacommunities.org/id/metropolitan-district-council/leeds,29/09/2015,Adult Social Care,POLISH DAY CENTRE,12/05/2014,2014150307,"2,195.00",0,Luncheon Club grant,Supplies & Services
Leeds City Council,http://opendatacommunities.org/id/metropolitan-district-council/leeds,29/09/2015,Adult Social Care,POOL & ARTHINGTON LUNCH CLUB,02/05/2014,2014150308,"2,195.00",0,Luncheon Club grant,Supplies & Services
Leeds City Council,http://opendatacommunities.org/id/metropolitan-district-council/leeds,29/09/2015,Adult Social Care,Pudsey Live @ Home Friday Luncheon Club,02/05/2014,2014150309,"2,195.00",0,Luncheon Club grant,Supplies & Services
Leeds City Council,http://opendatacommunities.org/id/metropolitan-district-council/leeds,29/09/2015,Adult Social Care,Black Health Initiative,30/04/2014,2014150310,"3,850.00",0,Luncheon Club grant,Supplies & Services
Leeds City Council,http://opendatacommunities.org/id/metropolitan-district-council/leeds,29/09/2015,Adult Social Care,BHOJAN SANGAM GROUP,12/05/2014,2014150311,"2,195.00",0,Luncheon Club grant,Supplies & Services
Leeds City Council,http://opendatacommunities.org/id/metropolitan-district-council/leeds,29/09/2015,Adult Social Care,Belle Isle Elderly Winter Aid L/Club,30/04/2014,2014150312,"2,195.00",0,Luncheon Club grant,Supplies & Services
Leeds City Council,http://opendatacommunities.org/id/metropolitan-district-council/leeds,29/09/2015,Adult Social Care,Richmond Hill Sunday Luncheon Club,02/05/2014,2014150313,"1,646.00",0,Luncheon Club grant,Supplies & Services
Leeds City Council,http://opendatacommunities.org/id/metropolitan-district-council/leeds,29/09/2015,Adult Social Care,Richmond Hill Thursday Luncheon Club,28/05/2014,2014150314,"1,425.00",0,Luncheon Club grant,Supplies & Services
Leeds City Council,http://opendatacommunities.org/id/metropolitan-district-council/leeds,29/09/2015,Adult Social Care,ROSCOE LUNCHEON CLUB ACTIVITY ORGANISER,02/05/2014,2014150315,"3,850.00",0,Luncheon Club grant,Supplies & Services
Leeds City Council,http://opendatacommunities.org/id/metropolitan-district-council/leeds,29/09/2015,Adult Social Care,Rothwell & District Live At Home Scheme,02/05/2014,2014150316,997,0,Luncheon Club grant,Supplies & Services
Leeds City Council,http://opendatacommunities.org/id/metropolitan-district-council/leeds,29/09/2015,Adult Social Care,Saheli Women'S Group,12/05/2014,2014150317,"1,425.00",0,Luncheon Club grant,Supplies & Services
Leeds City Council,http://opendatacommunities.org/id/metropolitan-district-council/leeds,29/09/2015,Adult Social Care,SALVATION ARMY LEEDS WEST HUNSLET,12/05/2014,2014150318,"3,850.00",0,Luncheon Club grant,Supplies & Services
Leeds City Council,http://opendatacommunities.org/id/metropolitan-district-council/leeds,29/09/2015,Adult Social Care,SHANTONA WOMENS CENTRE,02/05/2014,2014150319,"1,425.00",0,Luncheon Club grant,Supplies & Services
Leeds City Council,http://opendatacommunities.org/id/metropolitan-district-council/leeds,29/09/2015,Adult Social Care,Smile Project Luncheon Club,12/05/2014,2014150320,"1,425.00",0,Luncheon Club grant,Supplies & Services
Leeds City Council,http://opendatacommunities.org/id/metropolitan-district-council/leeds,29/09/2015,Adult Social Care,South Seacroft Friends & Neighbours,02/05/2014,2014150321,"3,850.00",0,Luncheon Club grant,Supplies & Services
Leeds City Council,http://opendatacommunities.org/id/metropolitan-district-council/leeds,29/09/2015,Adult Social Care,Armley Helping Hands Luncheon Club,30/04/2014,2014150322,"3,427.00",0,Luncheon Club grant,Supplies & Services
Leeds City Council,http://opendatacommunities.org/id/metropolitan-district-council/leeds,29/09/2015,Adult Social Care,ALWOODLEY PARK METHODIST LUNCHEON CLUB,30/04/2014,2014150323,"1,426.00",0,Luncheon Club grant,Supplies & Services
Leeds City Council,http://opendatacommunities.org/id/metropolitan-district-council/leeds,29/09/2015,Adult Social Care,Al Khidmat Centre,30/04/2014,2014150324,"3,850.00",0,Luncheon Club grant,Supplies & Services
Leeds City Council,http://opendatacommunities.org/id/metropolitan-district-council/leeds,29/09/2015,Adult Social Care,ST ANDREWS LUNCHEON CLUB,16/05/2014,2014150325,"2,195.00",0,Luncheon Club grant,Supplies & Services
Leeds City Council,http://opendatacommunities.org/id/metropolitan-district-council/leeds,29/09/2015,Adult Social Care,ST BENEDICTS LUNCHEON CLUB,02/05/2014,2014150326,"2,195.00",0,Luncheon Club grant,Supplies & Services
Leeds City Council,http://opendatacommunities.org/id/metropolitan-district-council/leeds,29/09/2015,Adult Social Care,ST CHADS LUNCH CLUB,12/05/2014,2014150327,"1,425.00",0,Luncheon Club grant,Supplies & Services
Leeds City Council,http://opendatacommunities.org/id/metropolitan-district-council/leeds,29/09/2015,Adult Social Care,St Johns (Stanningley) Luncheon Club,19/06/2014,2014150328,"3,850.00",0,Luncheon Club grant,Supplies & Services
Leeds City Council,http://opendatacommunities.org/id/metropolitan-district-council/leeds,29/09/2015,Adult Social Care,St Johns (Stanningley) Luncheon Club,12/05/2014,2014150329,"2,195.00",0,Luncheon Club grant,Supplies & Services
Leeds City Council,http://opendatacommunities.org/id/metropolitan-district-council/leeds,29/09/2015,Adult Social Care,St Marys Lunch Club Beeston,12/05/2014,2014150330,"2,195.00",0,Luncheon Club grant,Supplies & Services
Leeds City Council,http://opendatacommunities.org/id/metropolitan-district-council/leeds,29/09/2015,Adult Social Care,ST PETERS DAY CENTRE AND LUNCH CLUB,12/05/2014,2014150331,"2,195.00",0,Luncheon Club grant,Supplies & Services
Leeds City Council,http://opendatacommunities.org/id/metropolitan-district-council/leeds,29/09/2015,Adult Social Care,STAINBECK DAY CENTRE,02/05/2014,2014150332,"1,425.00",0,Luncheon Club grant,Supplies & Services
Leeds City Council,http://opendatacommunities.org/id/metropolitan-district-council/leeds,29/09/2015,Adult Social Care,Sumangal Group Luncheon Club,02/05/2014,2014150333,"2,195.00",0,Luncheon Club grant,Supplies & Services
Leeds City Council,http://opendatacommunities.org/id/metropolitan-district-council/leeds,29/09/2015,Adult Social Care,Swarcliffe Good Neighbours Luncheon Club,02/05/2014,2014150334,"3,850.00",0,Luncheon Club grant,Supplies & Services
Leeds City Council,http://opendatacommunities.org/id/metropolitan-district-council/leeds,29/09/2015,Adult Social Care,The 88 Lunch Club,12/05/2014,2014150335,"2,195.00",0,Luncheon Club grant,Supplies & Services
Leeds City Council,http://opendatacommunities.org/id/metropolitan-district-council/leeds,29/09/2015,Adult Social Care,WOODSLEY KASHMIRI ELDERS,17/09/2014,2014150336,"2,763.00",0,Adult Social Care grant,Supplies & Services
Leeds City Council,http://opendatacommunities.org/id/metropolitan-district-council/leeds,29/09/2015,Adult Social Care,WOODSLEY KASHMIRI ELDERS,11/12/2014,2014150337,"2,762.00",0,Adult Social Care grant,Supplies & Services
Leeds City Council,http://opendatacommunities.org/id/metropolitan-district-council/leeds,29/09/2015,Adult Social Care,WOODSLEY KASHMIRI ELDERS,19/06/2014,2014150338,"2,763.00",0,Adult Social Care grant,Supplies & Services
Leeds City Council,http://opendatacommunities.org/id/metropolitan-district-council/leeds,29/09/2015,Adult Social Care,WOODSLEY KASHMIRI ELDERS,19/03/2014,2014150339,"2,763.00",0,Adult Social Care grant,Supplies & Services
Leeds City Council,http://opendatacommunities.org/id/metropolitan-district-council/leeds,29/09/2015,Adult Social Care,LEEDS COMMUNITY FOUNDATION,14/03/2014,2014150340,"90,000.00",0,Adult Social Care grant,Supplies & Services
Leeds City Council,http://opendatacommunities.org/id/metropolitan-district-council/leeds,29/09/2015,Adult Social Care,LEEDS COMMUNITY FOUNDATION,07/07/2014,2014150341,"14,889.00",0,Adult Social Care grant,Supplies & Services
Leeds City Council,http://opendatacommunities.org/id/metropolitan-district-council/leeds,29/09/2015,Adult Social Care,Hamwattan Elderly Centre,11/12/2014,2014150342,"7,517.00",0,Adult Social Care grant,Supplies & Services
Leeds City Council,http://opendatacommunities.org/id/metropolitan-district-council/leeds,29/09/2015,Adult Social Care,Hamwattan Elderly Centre,19/03/2014,2014150343,"7,518.00",0,Adult Social Care grant,Supplies & Services
Leeds City Council,http://opendatacommunities.org/id/metropolitan-district-council/leeds,29/09/2015,Adult Social Care,Hamwattan Elderly Centre,19/06/2014,2014150344,"7,517.00",0,Adult Social Care grant,Supplies & Services
Leeds City Council,http://opendatacommunities.org/id/metropolitan-district-council/leeds,29/09/2015,Adult Social Care,Hamwattan Elderly Centre,17/09/2014,2014150345,"7,517.00",0,Adult Social Care grant,Supplies & Services
Leeds City Council,http://opendatacommunities.org/id/metropolitan-district-council/leeds,29/09/2015,Adult Social Care,Al Khidmat Centre,19/03/2014,2014150346,"3,000.00",0,Adult Social Care grant,Supplies & Services
Leeds City Council,http://opendatacommunities.org/id/metropolitan-district-council/leeds,29/09/2015,Adult Social Care,Al Khidmat Centre,19/06/2014,2014150347,"3,000.00",0,Adult Social Care grant,Supplies & Services
Leeds City Council,http://opendatacommunities.org/id/metropolitan-district-council/leeds,29/09/2015,Adult Social Care,Al Khidmat Centre,11/12/2014,2014150348,"3,000.00",0,Adult Social Care grant,Supplies & Services
Leeds City Council,http://opendatacommunities.org/id/metropolitan-district-council/leeds,29/09/2015,Adult Social Care,Al Khidmat Centre,17/09/2014,2014150349,"3,000.00",0,Adult Social Care grant,Supplies & Services
Leeds City Council,http://opendatacommunities.org/id/metropolitan-district-council/leeds,29/09/2015,Adult Social Care,LEEDS OLDER PEOPLES FORUM,13/05/2014,2014150350,"1,000.00",0,Adult Social Care grant,Supplies & Services
Leeds City Council,http://opendatacommunities.org/id/metropolitan-district-council/leeds,29/09/2015,Adult Social Care,Roscoe Methodist West Indian Family,19/03/2014,2014150351,"3,365.00",0,Adult Social Care grant,Supplies & Services
Leeds City Council,http://opendatacommunities.org/id/metropolitan-district-council/leeds,29/09/2015,Adult Social Care,Roscoe Methodist West Indian Family,19/06/2014,2014150352,"3,365.00",0,Adult Social Care grant,Supplies & Services
Leeds City Council,http://opendatacommunities.org/id/metropolitan-district-council/leeds,29/09/2015,Adult Social Care,Roscoe Methodist West Indian Family,11/12/2014,2014150353,"3,365.00",0,Adult Social Care grant,Supplies & Services
Leeds City Council,http://opendatacommunities.org/id/metropolitan-district-council/leeds,29/09/2015,Adult Social Care,Roscoe Methodist West Indian Family,17/09/2014,2014150354,"3,365.00",0,Adult Social Care grant,Supplies & Services
Leeds City Council,http://opendatacommunities.org/id/metropolitan-district-council/leeds,29/09/2015,Adult Social Care,LEEDS PEOPLE FIRST,02/06/2014,2014150355,"2,177.75",0,2013/14 Social Services Pooled Budget grant,Supplies & Services
Leeds City Council,http://opendatacommunities.org/id/metropolitan-district-council/leeds,29/09/2015,Adult Social Care,PEOPLE IN ACTION (LEEDS) Ltd,10/10/2014,2014150356,"5,000.00",0,Social Services Pooled Budget grant,Supplies & Services
Leeds City Council,http://opendatacommunities.org/id/metropolitan-district-council/leeds,29/09/2015,Adult Social Care,LEEDS PEOPLE FIRST,08/10/2014,2014150357,"2,177.75",0,Social Services Pooled Budget grant,Supplies & Services
Leeds City Council,http://opendatacommunities.org/id/metropolitan-district-council/leeds,29/09/2015,Adult Social Care,LEEDS PEOPLE FIRST,17/04/2014,2014150358,"2,177.75",0,Social Services Pooled Budget grant,Supplies & Services
Leeds City Council,http://opendatacommunities.org/id/metropolitan-district-council/leeds,29/09/2015,Adult Social Care,LEEDS PEOPLE FIRST,01/08/2014,2014150359,"2,177.75",0,Social Services Pooled Budget grant,Supplies & Services
Leeds City Council,http://opendatacommunities.org/id/metropolitan-district-council/leeds,29/09/2015,Adult Social Care,LEEDS PEOPLE FIRST,06/01/2015,2014150360,"2,177.75",0,Social Services Pooled Budget grant,Supplies & Services
Leeds City Council,http://opendatacommunities.org/id/metropolitan-district-council/leeds,29/09/2015,Adult Social Care,Meanwood Valley Urban Farm Ltd,08/10/2014,2014150361,"17,826.08",0,Social Services Pooled Budget grant,Supplies & Services
Leeds City Council,http://opendatacommunities.org/id/metropolitan-district-council/leeds,29/09/2015,Adult Social Care,Meanwood Valley Urban Farm Ltd,06/01/2015,2014150362,"17,826.08",0,Social Services Pooled Budget grant,Supplies & Services
Leeds City Council,http://opendatacommunities.org/id/metropolitan-district-council/leeds,29/09/2015,Adult Social Care,Meanwood Valley Urban Farm Ltd,01/08/2014,2014150363,"17,826.08",0,Social Services Pooled Budget grant,Supplies & Services
Leeds City Council,http://opendatacommunities.org/id/metropolitan-district-council/leeds,29/09/2015,Adult Social Care,Meanwood Valley Urban Farm Ltd,17/04/2014,2014150364,"17,826.08",0,Social Services Pooled Budget grant,Supplies & Services
Leeds City Council,http://opendatacommunities.org/id/metropolitan-district-council/leeds,29/09/2015,Adult Social Care,PEOPLE IN ACTION (LEEDS) Ltd,30/05/2014,2014150365,"24,975.00",0,Social Services Pooled Budget grant,Supplies & Services
Leeds City Council,http://opendatacommunities.org/id/metropolitan-district-council/leeds,29/09/2015,Adult Social Care,PEOPLE IN ACTION (LEEDS) Ltd,02/09/2014,2014150366,"23,975.00",0,Social Services Pooled Budget grant,Supplies & Services
Leeds City Council,http://opendatacommunities.org/id/metropolitan-district-council/leeds,29/09/2015,Adult Social Care,PEOPLE IN ACTION (LEEDS) Ltd,05/11/2014,2014150367,"25,975.00",0,Social Services Pooled Budget grant,Supplies & Services
Leeds City Council,http://opendatacommunities.org/id/metropolitan-district-council/leeds,29/09/2015,Adult Social Care,PEOPLE IN ACTION (LEEDS) Ltd,27/03/2015,2014150368,"24,975.00",0,Social Services Pooled Budget grant,Supplies & Services
Leeds City Council,http://opendatacommunities.org/id/metropolitan-district-council/leeds,29/09/2015,Adult Social Care,Tenfold,13/03/2015,2014150369,"1,000.00",0,Social Services Pooled Budget grant,Supplies & Services
Leeds City Council,http://opendatacommunities.org/id/metropolitan-district-council/leeds,29/09/2015,Central & Corporate,Radio Asian Fever Ltd,26/08/2014,2014150370,"5,000.00",0,Communications grant,Supplies & Services
Leeds City Council,http://opendatacommunities.org/id/metropolitan-district-council/leeds,29/09/2015,Central & Corporate,Radio Asian Fever Ltd,16/10/2014,2014150371,"5,000.00",0,Communications grant,Supplies & Services
Leeds City Council,http://opendatacommunities.org/id/metropolitan-district-council/leeds,29/09/2015,Central & Corporate,Radio Asian Fever Ltd,12/01/2015,2014150372,"5,000.00",0,Communications grant,Supplies & Services
Leeds City Council,http://opendatacommunities.org/id/metropolitan-district-council/leeds,29/09/2015,Central & Corporate,Radio Asian Fever Ltd,10/03/2015,2014150373,"5,000.00",0,Communications grant,Supplies & Services
Leeds City Council,http://opendatacommunities.org/id/metropolitan-district-council/leeds,29/09/2015,Central & Corporate,Equality Leeds,09/07/2014,2014150374,"8,039.85",0,Equality grant,Supplies & Services
Leeds City Council,http://opendatacommunities.org/id/metropolitan-district-council/leeds,29/09/2015,Central & Corporate,Equality Leeds,06/01/2015,2014150375,"8,039.85",0,Equality grant,Supplies & Services
Leeds City Council,http://opendatacommunities.org/id/metropolitan-district-council/leeds,29/09/2015,Central & Corporate,Equality Leeds,03/11/2014,2014150376,"16,079.70",0,Equality grant,Supplies & Services
Leeds City Council,http://opendatacommunities.org/id/metropolitan-district-council/leeds,29/09/2015,Central & Corporate,RETAS LEEDS,17/02/2015,2014150377,"5,472.00",0,Equality grant,Supplies & Services
Leeds City Council,http://opendatacommunities.org/id/metropolitan-district-council/leeds,29/09/2015,Central & Corporate,The Osmondthorpe Hub,22/12/2014,2014150378,500,0,Equality grant,Supplies & Services
Leeds City Council,http://opendatacommunities.org/id/metropolitan-district-council/leeds,29/09/2015,Central & Corporate,Cow Close Community Corner,22/12/2014,2014150379,"1,250.00",0,Neighbourhood grant,Supplies & Services
Leeds City Council,http://opendatacommunities.org/id/metropolitan-district-council/leeds,29/09/2015,Central & Corporate,LEEDS COMMUNITY FOUNDATION,16/07/2014,2014150380,"200,000.00",0,Neighbourhood grant,Supplies & Services
Leeds City Council,http://opendatacommunities.org/id/metropolitan-district-council/leeds,29/09/2015,Central & Corporate,VOLUNTARY ACTION-LEEDS,06/01/2015,2014150381,"74,640.00",0,Neighbourhood grant,Supplies & Services
Leeds City Council,http://opendatacommunities.org/id/metropolitan-district-council/leeds,29/09/2015,Central & Corporate,VOLUNTARY ACTION-LEEDS,14/07/2014,2014150382,"99,520.00",0,Neighbourhood grant,Supplies & Services
Leeds City Council,http://opendatacommunities.org/id/metropolitan-district-council/leeds,29/09/2015,Central & Corporate,VOLUNTARY ACTION-LEEDS,10/09/2014,2014150383,"74,640.00",0,Neighbourhood grant,Supplies & Services
Leeds City Council,http://opendatacommunities.org/id/metropolitan-district-council/leeds,29/09/2015,Central & Corporate,VOLUNTARY ACTION-LEEDS,30/07/2014,2014150384,"14,000.00",0,Neighbourhood grant,Supplies & Services
Leeds City Council,http://opendatacommunities.org/id/metropolitan-district-council/leeds,29/09/2015,Central & Corporate,VOLUNTARY ACTION-LEEDS,17/04/2014,2014150385,"49,759.00",0,Neighbourhood grant,Supplies & Services
Leeds City Council,http://opendatacommunities.org/id/metropolitan-district-council/leeds,29/09/2015,Central & Corporate,WYCAS,06/01/2015,2014150386,"10,073.00",0,Neighbourhood grant,Supplies & Services
Leeds City Council,http://opendatacommunities.org/id/metropolitan-district-council/leeds,29/09/2015,Central & Corporate,WYCAS,14/07/2014,2014150387,"10,133.00",0,Neighbourhood grant,Supplies & Services
Leeds City Council,http://opendatacommunities.org/id/metropolitan-district-council/leeds,29/09/2015,Central & Corporate,WYCAS,10/09/2014,2014150388,"10,133.00",0,Neighbourhood grant,Supplies & Services
Leeds City Council,http://opendatacommunities.org/id/metropolitan-district-council/leeds,29/09/2015,Central & Corporate,WYCAS,17/04/2014,2014150389,"10,113.00",0,Neighbourhood grant,Supplies & Services
Leeds City Council,http://opendatacommunities.org/id/metropolitan-district-council/leeds,29/09/2015,Central & Corporate,GUISELEY METHODIST CHURCH,16/01/2015,2014150390,35,0,Neighbourhood grant,Supplies & Services
Leeds City Council,http://opendatacommunities.org/id/metropolitan-district-council/leeds,29/09/2015,Central & Corporate,EBOR GARDENS ADVICE CENTRE,15/01/2015,2014150391,"2,662.50",0,Neighbourhood grant,Supplies & Services
Leeds City Council,http://opendatacommunities.org/id/metropolitan-district-council/leeds,29/09/2015,Central & Corporate,Get Cooking!,08/01/2015,2014150392,396.87,0,Neighbourhood grant,Supplies & Services
Leeds City Council,http://opendatacommunities.org/id/metropolitan-district-council/leeds,29/09/2015,Central & Corporate,Holbeck In Bloom,17/12/2014,2014150393,500,0,Neighbourhood grant,Supplies & Services
Leeds City Council,http://opendatacommunities.org/id/metropolitan-district-council/leeds,29/09/2015,Central & Corporate,Holbeck Neighbourhood Forum,29/10/2014,2014150394,320,0,Neighbourhood grant,Supplies & Services
Leeds City Council,http://opendatacommunities.org/id/metropolitan-district-council/leeds,29/09/2015,Central & Corporate,Kidz & Co,19/08/2014,2014150395,354,0,Neighbourhood grant,Supplies & Services
Leeds City Council,http://opendatacommunities.org/id/metropolitan-district-council/leeds,29/09/2015,Central & Corporate,Lady Pit Lane Model Allotment Associatio,15/04/2014,2014150396,500,0,Neighbourhood grant,Supplies & Services
Leeds City Council,http://opendatacommunities.org/id/metropolitan-district-council/leeds,29/09/2015,Central & Corporate,Beeston Parish Centre,31/10/2014,2014150397,500,0,Neighbourhood grant,Supplies & Services
Leeds City Council,http://opendatacommunities.org/id/metropolitan-district-council/leeds,29/09/2015,Central & Corporate,Leeds Christian Community Trust,27/05/2014,2014150398,489.2,0,Neighbourhood grant,Supplies & Services
Leeds City Council,http://opendatacommunities.org/id/metropolitan-district-council/leeds,29/09/2015,Central & Corporate,Middleton Park Baptist Church,19/06/2014,2014150399,250,0,Neighbourhood grant,Supplies & Services
Leeds City Council,http://opendatacommunities.org/id/metropolitan-district-council/leeds,29/09/2015,Central & Corporate,ST ANDREWS METHODIST CHURCH,09/12/2014,2014150400,500,0,Neighbourhood grant,Supplies & Services
Leeds City Council,http://opendatacommunities.org/id/metropolitan-district-council/leeds,29/09/2015,Central & Corporate,St Lukes Church,30/04/2014,2014150401,500,0,Neighbourhood grant,Supplies & Services
Leeds City Council,http://opendatacommunities.org/id/metropolitan-district-council/leeds,29/09/2015,Central & Corporate,FRIENDS OF CROSS FLATTS PARK,19/12/2014,2014150402,"2,300.00",0,Neighbourhood grant,Supplies & Services
Leeds City Council,http://opendatacommunities.org/id/metropolitan-district-council/leeds,29/09/2015,Central & Corporate,Friends Of Middleton Park,24/02/2015,2014150403,"3,070.00",0,Neighbourhood grant,Supplies & Services
Leeds City Council,http://opendatacommunities.org/id/metropolitan-district-council/leeds,29/09/2015,Central & Corporate,GROUNDWORK LEEDS,17/06/2014,2014150404,"3,699.00",0,Neighbourhood grant,Supplies & Services
Leeds City Council,http://opendatacommunities.org/id/metropolitan-district-council/leeds,29/09/2015,Central & Corporate,GROUNDWORK LEEDS,01/10/2014,2014150405,"3,500.00",0,Neighbourhood grant,Supplies & Services
Leeds City Council,http://opendatacommunities.org/id/metropolitan-district-council/leeds,29/09/2015,Central & Corporate,Hamara Healthy Living Centre,10/10/2014,2014150406,"4,080.00",0,Neighbourhood grant,Supplies & Services
Leeds City Council,http://opendatacommunities.org/id/metropolitan-district-council/leeds,29/09/2015,Central & Corporate,Hamara Healthy Living Centre,13/02/2015,2014150407,"4,080.00",0,Neighbourhood grant,Supplies & Services
Leeds City Council,http://opendatacommunities.org/id/metropolitan-district-council/leeds,29/09/2015,Central & Corporate,Health For All (Leeds) Ltd,04/11/2014,2014150408,"2,869.00",0,Neighbourhood grant,Supplies & Services
Leeds City Council,http://opendatacommunities.org/id/metropolitan-district-council/leeds,29/09/2015,Central & Corporate,Health For All (Leeds) Ltd,20/05/2014,2014150409,"2,726.25",0,Neighbourhood grant,Supplies & Services
Leeds City Council,http://opendatacommunities.org/id/metropolitan-district-council/leeds,29/09/2015,Central & Corporate,Health For All (Leeds) Ltd,20/05/2014,2014150410,"1,091.58",0,Neighbourhood grant,Supplies & Services
Leeds City Council,http://opendatacommunities.org/id/metropolitan-district-council/leeds,29/09/2015,Central & Corporate,Health For All (Leeds) Ltd,02/06/2014,2014150411,"1,091.58",0,Neighbourhood grant,Supplies & Services
Leeds City Council,http://opendatacommunities.org/id/metropolitan-district-council/leeds,29/09/2015,Central & Corporate,Health For All (Leeds) Ltd,03/06/2014,2014150412,"2,726.25",0,Neighbourhood grant,Supplies & Services
Leeds City Council,http://opendatacommunities.org/id/metropolitan-district-council/leeds,29/09/2015,Central & Corporate,Health For All (Leeds) Ltd,06/08/2014,2014150413,"1,115.58",0,Neighbourhood grant,Supplies & Services
Leeds City Council,http://opendatacommunities.org/id/metropolitan-district-council/leeds,29/09/2015,Central & Corporate,Health For All (Leeds) Ltd,21/08/2014,2014150414,"2,726.25",0,Neighbourhood grant,Supplies & Services
Leeds City Council,http://opendatacommunities.org/id/metropolitan-district-council/leeds,29/09/2015,Central & Corporate,Health For All (Leeds) Ltd,14/08/2014,2014150415,"1,091.58",0,Neighbourhood grant,Supplies & Services
Leeds City Council,http://opendatacommunities.org/id/metropolitan-district-council/leeds,29/09/2015,Central & Corporate,Health For All (Leeds) Ltd,14/08/2014,2014150416,"2,726.25",0,Neighbourhood grant,Supplies & Services
Leeds City Council,http://opendatacommunities.org/id/metropolitan-district-council/leeds,29/09/2015,Central & Corporate,Health For All (Leeds) Ltd,03/09/2014,2014150417,48.02,0,Neighbourhood grant,Supplies & Services
Leeds City Council,http://opendatacommunities.org/id/metropolitan-district-council/leeds,29/09/2015,Central & Corporate,Health For All (Leeds) Ltd,03/09/2014,2014150418,"2,726.25",0,Neighbourhood grant,Supplies & Services
Leeds City Council,http://opendatacommunities.org/id/metropolitan-district-council/leeds,29/09/2015,Central & Corporate,Health For All (Leeds) Ltd,20/10/2014,2014150419,"2,726.25",0,Neighbourhood grant,Supplies & Services
Leeds City Council,http://opendatacommunities.org/id/metropolitan-district-council/leeds,29/09/2015,Central & Corporate,Health For All (Leeds) Ltd,07/11/2014,2014150420,"2,726.25",0,Neighbourhood grant,Supplies & Services
Leeds City Council,http://opendatacommunities.org/id/metropolitan-district-council/leeds,29/09/2015,Central & Corporate,Health For All (Leeds) Ltd,09/12/2014,2014150421,"1,578.18",0,Neighbourhood grant,Supplies & Services
Leeds City Council,http://opendatacommunities.org/id/metropolitan-district-council/leeds,29/09/2015,Central & Corporate,Health For All (Leeds) Ltd,09/12/2014,2014150422,"2,726.25",0,Neighbourhood grant,Supplies & Services
Leeds City Council,http://opendatacommunities.org/id/metropolitan-district-council/leeds,29/09/2015,Central & Corporate,Health For All (Leeds) Ltd,14/01/2015,2014150423,"1,129.02",0,Neighbourhood grant,Supplies & Services
Leeds City Council,http://opendatacommunities.org/id/metropolitan-district-council/leeds,29/09/2015,Central & Corporate,Health For All (Leeds) Ltd,14/01/2015,2014150424,"2,795.97",0,Neighbourhood grant,Supplies & Services
Leeds City Council,http://opendatacommunities.org/id/metropolitan-district-council/leeds,29/09/2015,Central & Corporate,Health For All (Leeds) Ltd,11/03/2015,2014150425,"5,000.00",0,Neighbourhood grant,Supplies & Services
Leeds City Council,http://opendatacommunities.org/id/metropolitan-district-council/leeds,29/09/2015,Central & Corporate,Health For All (Leeds) Ltd,09/03/2015,2014150426,"1,094.28",0,Neighbourhood grant,Supplies & Services
Leeds City Council,http://opendatacommunities.org/id/metropolitan-district-council/leeds,29/09/2015,Central & Corporate,Health For All (Leeds) Ltd,09/03/2015,2014150427,"2,726.25",0,Neighbourhood grant,Supplies & Services
Leeds City Council,http://opendatacommunities.org/id/metropolitan-district-council/leeds,29/09/2015,Central & Corporate,Health For All (Leeds) Ltd,31/03/2015,2014150428,"1,091.58",0,Neighbourhood grant,Supplies & Services
Leeds City Council,http://opendatacommunities.org/id/metropolitan-district-council/leeds,29/09/2015,Central & Corporate,Health For All (Leeds) Ltd,31/03/2015,2014150429,"2,726.25",0,Neighbourhood grant,Supplies & Services
Leeds City Council,http://opendatacommunities.org/id/metropolitan-district-council/leeds,29/09/2015,Central & Corporate,Health For All (Leeds) Ltd,31/03/2015,2014150430,50,0,Neighbourhood grant,Supplies & Services
Leeds City Council,http://opendatacommunities.org/id/metropolitan-district-council/leeds,29/09/2015,Central & Corporate,Health For All (Leeds) Ltd,01/04/2015,2014150431,"1,091.58",0,Neighbourhood grant,Supplies & Services
Leeds City Council,http://opendatacommunities.org/id/metropolitan-district-council/leeds,29/09/2015,Central & Corporate,Health For All (Leeds) Ltd,01/04/2015,2014150432,"2,726.25",0,Neighbourhood grant,Supplies & Services
Leeds City Council,http://opendatacommunities.org/id/metropolitan-district-council/leeds,29/09/2015,Central & Corporate,Health For All (Leeds) Ltd,30/05/2014,2014150433,"1,930.94",0,Neighbourhood grant,Supplies & Services
Leeds City Council,http://opendatacommunities.org/id/metropolitan-district-council/leeds,29/09/2015,Central & Corporate,Health For All (Leeds) Ltd,30/05/2014,2014150434,"3,052.50",0,Neighbourhood grant,Supplies & Services
Leeds City Council,http://opendatacommunities.org/id/metropolitan-district-council/leeds,29/09/2015,Central & Corporate,Health For All (Leeds) Ltd,30/05/2014,2014150435,120,0,Neighbourhood grant,Supplies & Services
Leeds City Council,http://opendatacommunities.org/id/metropolitan-district-council/leeds,29/09/2015,Central & Corporate,Holbeck Gala,03/03/2015,2014150436,"3,500.00",0,Neighbourhood grant,Supplies & Services
Leeds City Council,http://opendatacommunities.org/id/metropolitan-district-council/leeds,29/09/2015,Central & Corporate,Hunslet Club,18/08/2014,2014150437,"10,560.00",0,Neighbourhood grant,Supplies & Services
Leeds City Council,http://opendatacommunities.org/id/metropolitan-district-council/leeds,29/09/2015,Central & Corporate,Hunslet Club,02/06/2014,2014150438,"1,569.50",0,Neighbourhood grant,Supplies & Services
Leeds City Council,http://opendatacommunities.org/id/metropolitan-district-council/leeds,29/09/2015,Central & Corporate,Hunslet Club,18/08/2014,2014150439,"7,892.82",0,Neighbourhood grant,Supplies & Services
Leeds City Council,http://opendatacommunities.org/id/metropolitan-district-council/leeds,29/09/2015,Central & Corporate,Hunslet Club,13/10/2014,2014150440,"7,920.43",0,Neighbourhood grant,Supplies & Services
Leeds City Council,http://opendatacommunities.org/id/metropolitan-district-council/leeds,29/09/2015,Central & Corporate,Hunslet Club,19/12/2014,2014150441,"5,280.20",0,Neighbourhood grant,Supplies & Services
Leeds City Council,http://opendatacommunities.org/id/metropolitan-district-council/leeds,29/09/2015,Central & Corporate,Hunslet Club,31/03/2015,2014150442,"6,597.00",0,Neighbourhood grant,Supplies & Services
Leeds City Council,http://opendatacommunities.org/id/metropolitan-district-council/leeds,29/09/2015,Central & Corporate,HUNSLET FESTIVAL,21/08/2014,2014150443,"1,000.00",0,Neighbourhood grant,Supplies & Services
Leeds City Council,http://opendatacommunities.org/id/metropolitan-district-council/leeds,29/09/2015,Central & Corporate,Irish Arts Foundation,18/12/2014,2014150444,951.74,0,Neighbourhood grant,Supplies & Services
Leeds City Council,http://opendatacommunities.org/id/metropolitan-district-council/leeds,29/09/2015,Central & Corporate,Better Leeds Communities,26/01/2015,2014150445,"2,170.36",0,Neighbourhood grant,Supplies & Services
Leeds City Council,http://opendatacommunities.org/id/metropolitan-district-council/leeds,29/09/2015,Central & Corporate,LCCT,12/08/2014,2014150446,"2,971.54",0,Neighbourhood grant,Supplies & Services
Leeds City Council,http://opendatacommunities.org/id/metropolitan-district-council/leeds,29/09/2015,Central & Corporate,BELLE ISLE ELDERLY WINTER AID,31/03/2015,2014150447,40,0,Neighbourhood grant,Supplies & Services
Leeds City Council,http://opendatacommunities.org/id/metropolitan-district-council/leeds,29/09/2015,Central & Corporate,BEESTON FESTIVAL & MELA,21/10/2014,2014150448,"5,000.00",0,Neighbourhood grant,Supplies & Services
Leeds City Council,http://opendatacommunities.org/id/metropolitan-district-council/leeds,29/09/2015,Central & Corporate,Leeds Christian Community Trust,10/07/2014,2014150449,"1,961.41",0,Neighbourhood grant,Supplies & Services
Leeds City Council,http://opendatacommunities.org/id/metropolitan-district-council/leeds,29/09/2015,Central & Corporate,MIDDLETON NEIGHBOURHOOD & FAMILY,19/08/2014,2014150450,750,0,Neighbourhood grant,Supplies & Services
Leeds City Council,http://opendatacommunities.org/id/metropolitan-district-council/leeds,29/09/2015,Central & Corporate,OLD CHAPEL MUSIC CIC,03/06/2014,2014150451,"1,000.00",0,Neighbourhood grant,Supplies & Services
Leeds City Council,http://opendatacommunities.org/id/metropolitan-district-council/leeds,29/09/2015,Central & Corporate,Playful Anywhere CIC,04/02/2015,2014150452,"6,995.00",0,Neighbourhood grant,Supplies & Services
Leeds City Council,http://opendatacommunities.org/id/metropolitan-district-council/leeds,29/09/2015,Central & Corporate,Slate Cafe And Furniture Store,01/04/2015,2014150453,"9,000.00",0,Neighbourhood grant,Supplies & Services
Leeds City Council,http://opendatacommunities.org/id/metropolitan-district-council/leeds,29/09/2015,Central & Corporate,South Leeds Community Radio,26/09/2014,2014150454,115,0,Neighbourhood grant,Supplies & Services
Leeds City Council,http://opendatacommunities.org/id/metropolitan-district-council/leeds,29/09/2015,Central & Corporate,South Leeds Community Radio,10/11/2014,2014150455,100,0,Neighbourhood grant,Supplies & Services
Leeds City Council,http://opendatacommunities.org/id/metropolitan-district-council/leeds,29/09/2015,Central & Corporate,ST JOHN AMBULANCE,07/11/2014,2014150456,52,0,Neighbourhood grant,Supplies & Services
Leeds City Council,http://opendatacommunities.org/id/metropolitan-district-council/leeds,29/09/2015,Central & Corporate,WOMENS HEALTH MATTERS,30/09/2014,2014150457,"8,059.32",0,Neighbourhood grant,Supplies & Services
Leeds City Council,http://opendatacommunities.org/id/metropolitan-district-council/leeds,29/09/2015,Central & Corporate,51st Leeds (Hunslet Parish Church),16/01/2015,2014150458,600,0,Neighbourhood grant,Supplies & Services
Leeds City Council,http://opendatacommunities.org/id/metropolitan-district-council/leeds,29/09/2015,Central & Corporate,Burley RUFC Ltd,22/07/2014,2014150459,500,0,Neighbourhood grant,Supplies & Services
Leeds City Council,http://opendatacommunities.org/id/metropolitan-district-council/leeds,29/09/2015,Central & Corporate,Bramley Buffaloes Rugby League Community,01/07/2014,2014150460,300,0,Neighbourhood grant,Supplies & Services
Leeds City Council,http://opendatacommunities.org/id/metropolitan-district-council/leeds,29/09/2015,Central & Corporate,Leeds Esprit Gymnastics Club,01/07/2014,2014150461,300,0,Neighbourhood grant,Supplies & Services
Leeds City Council,http://opendatacommunities.org/id/metropolitan-district-council/leeds,29/09/2015,Central & Corporate,NEW WORTLEY COMMUNITY ASSOCIATION,23/10/2014,2014150462,450,0,Neighbourhood grant,Supplies & Services
Leeds City Council,http://opendatacommunities.org/id/metropolitan-district-council/leeds,29/09/2015,Central & Corporate,NEW WORTLEY COMMUNITY ASSOCIATION,20/02/2015,2014150463,500,0,Neighbourhood grant,Supplies & Services
Leeds City Council,http://opendatacommunities.org/id/metropolitan-district-council/leeds,29/09/2015,Central & Corporate,NEW WORTLEY COMMUNITY ASSOCIATION,20/03/2015,2014150464,500,0,Neighbourhood grant,Supplies & Services
Leeds City Council,http://opendatacommunities.org/id/metropolitan-district-council/leeds,29/09/2015,Central & Corporate,NEW WORTLEY COMMUNITY ASSOCIATION,08/08/2014,2014150465,500,0,Neighbourhood grant,Supplies & Services
Leeds City Council,http://opendatacommunities.org/id/metropolitan-district-council/leeds,29/09/2015,Central & Corporate,17th South West Leeds Scout Group,27/03/2014,2014150466,270,0,Neighbourhood grant,Supplies & Services
Leeds City Council,http://opendatacommunities.org/id/metropolitan-district-council/leeds,29/09/2015,Central & Corporate,17th South West Leeds Scout Group,19/02/2015,2014150467,289,0,Neighbourhood grant,Supplies & Services
Leeds City Council,http://opendatacommunities.org/id/metropolitan-district-council/leeds,29/09/2015,Central & Corporate,EBOR GARDENS ADVICE CENTRE,28/07/2014,2014150468,"2,130.00",0,Neighbourhood grant,Supplies & Services
Leeds City Council,http://opendatacommunities.org/id/metropolitan-district-council/leeds,29/09/2015,Central & Corporate,EBOR GARDENS ADVICE CENTRE,28/07/2014,2014150469,"2,380.00",0,Neighbourhood grant,Supplies & Services
Leeds City Council,http://opendatacommunities.org/id/metropolitan-district-council/leeds,29/09/2015,Central & Corporate,FAIRFIELD COMMUNITY PARTNERSHIP LTD,25/11/2014,2014150470,"1,250.00",0,Neighbourhood grant,Supplies & Services
Leeds City Council,http://opendatacommunities.org/id/metropolitan-district-council/leeds,29/09/2015,Central & Corporate,FAIRFIELD COMMUNITY PARTNERSHIP LTD,06/08/2014,2014150471,"1,250.00",0,Neighbourhood grant,Supplies & Services
Leeds City Council,http://opendatacommunities.org/id/metropolitan-district-council/leeds,29/09/2015,Central & Corporate,FAIRFIELD COMMUNITY PARTNERSHIP LTD,07/11/2014,2014150472,0,0,Neighbourhood grant,Supplies & Services
Leeds City Council,http://opendatacommunities.org/id/metropolitan-district-council/leeds,29/09/2015,Central & Corporate,FAIRFIELD COMMUNITY PARTNERSHIP LTD,14/01/2015,2014150473,"1,250.00",0,Neighbourhood grant,Supplies & Services
Leeds City Council,http://opendatacommunities.org/id/metropolitan-district-council/leeds,29/09/2015,Central & Corporate,FAIRFIELD COMMUNITY PARTNERSHIP LTD,31/03/2015,2014150474,"1,250.00",0,Neighbourhood grant,Supplies & Services
Leeds City Council,http://opendatacommunities.org/id/metropolitan-district-council/leeds,29/09/2015,Central & Corporate,FAIRFIELD COMMUNITY PARTNERSHIP LTD,15/04/2014,2014150475,210,0,Neighbourhood grant,Supplies & Services
Leeds City Council,http://opendatacommunities.org/id/metropolitan-district-council/leeds,29/09/2015,Central & Corporate,FAIRFIELD COMMUNITY PARTNERSHIP LTD,17/10/2014,2014150476,250,0,Neighbourhood grant,Supplies & Services
Leeds City Council,http://opendatacommunities.org/id/metropolitan-district-council/leeds,29/09/2015,Central & Corporate,Christ Church Armley Community Projects,11/12/2014,2014150477,"1,888.32",0,Neighbourhood grant,Supplies & Services
Leeds City Council,http://opendatacommunities.org/id/metropolitan-district-council/leeds,29/09/2015,Central & Corporate,BTCV ENTERPRISES TOOLS & TRADING,31/10/2014,2014150478,"1,618.16",0,Neighbourhood grant,Supplies & Services
Leeds City Council,http://opendatacommunities.org/id/metropolitan-district-council/leeds,29/09/2015,Central & Corporate,BTCV ENTERPRISES TOOLS & TRADING,04/08/2014,2014150479,399,0,Neighbourhood grant,Supplies & Services
Leeds City Council,http://opendatacommunities.org/id/metropolitan-district-council/leeds,29/09/2015,Central & Corporate,Girl Guiding Armley District,30/07/2014,2014150480,"1,000.00",0,Neighbourhood grant,Supplies & Services
Leeds City Council,http://opendatacommunities.org/id/metropolitan-district-council/leeds,29/09/2015,Central & Corporate,Bramley Music Festival,27/05/2014,2014150481,"2,500.00",0,Neighbourhood grant,Supplies & Services
Leeds City Council,http://opendatacommunities.org/id/metropolitan-district-council/leeds,29/09/2015,Central & Corporate,Bramley Lights Project,07/10/2014,2014150482,"1,425.00",0,Neighbourhood grant,Supplies & Services
Leeds City Council,http://opendatacommunities.org/id/metropolitan-district-council/leeds,29/09/2015,Central & Corporate,Bramley Carnival,07/07/2014,2014150483,"3,000.00",0,Neighbourhood grant,Supplies & Services
Leeds City Council,http://opendatacommunities.org/id/metropolitan-district-council/leeds,29/09/2015,Central & Corporate,LEEDS PLAY NETWORK,28/10/2014,2014150484,"2,000.00",0,Neighbourhood grant,Supplies & Services
Leeds City Council,http://opendatacommunities.org/id/metropolitan-district-council/leeds,29/09/2015,Central & Corporate,BARCA LEEDS,21/11/2014,2014150485,"3,547.00",0,Neighbourhood grant,Supplies & Services
Leeds City Council,http://opendatacommunities.org/id/metropolitan-district-council/leeds,29/09/2015,Central & Corporate,BARCA LEEDS,02/06/2014,2014150486,891,0,Neighbourhood grant,Supplies & Services
Leeds City Council,http://opendatacommunities.org/id/metropolitan-district-council/leeds,29/09/2015,Central & Corporate,BARCA LEEDS,04/11/2014,2014150487,"1,820.38",0,Neighbourhood grant,Supplies & Services
Leeds City Council,http://opendatacommunities.org/id/metropolitan-district-council/leeds,29/09/2015,Central & Corporate,BARCA LEEDS,26/02/2015,2014150488,"1,289.36",0,Neighbourhood grant,Supplies & Services
Leeds City Council,http://opendatacommunities.org/id/metropolitan-district-council/leeds,29/09/2015,Central & Corporate,BARCA LEEDS,02/12/2014,2014150489,"1,832.16",0,Neighbourhood grant,Supplies & Services
Leeds City Council,http://opendatacommunities.org/id/metropolitan-district-council/leeds,29/09/2015,Central & Corporate,BARCA LEEDS,04/08/2014,2014150490,312.5,0,Neighbourhood grant,Supplies & Services
Leeds City Council,http://opendatacommunities.org/id/metropolitan-district-council/leeds,29/09/2015,Central & Corporate,ARMLEY HELPING HANDS,16/02/2015,2014150491,135,0,Neighbourhood grant,Supplies & Services
Leeds City Council,http://opendatacommunities.org/id/metropolitan-district-council/leeds,29/09/2015,Central & Corporate,Armley Common Right Trust,14/01/2015,2014150492,950,0,Neighbourhood grant,Supplies & Services
Leeds City Council,http://opendatacommunities.org/id/metropolitan-district-council/leeds,29/09/2015,Central & Corporate,Angel Of Youths,19/12/2014,2014150493,"5,000.00",0,Neighbourhood grant,Supplies & Services
Leeds City Council,http://opendatacommunities.org/id/metropolitan-district-council/leeds,29/09/2015,Central & Corporate,NEW WORTLEY COMMUNITY ASSOCIATION,31/07/2014,2014150494,"2,000.00",0,Neighbourhood grant,Supplies & Services
Leeds City Council,http://opendatacommunities.org/id/metropolitan-district-council/leeds,29/09/2015,Central & Corporate,NEW WORTLEY COMMUNITY ASSOCIATION,04/11/2014,2014150495,"2,000.00",0,Neighbourhood grant,Supplies & Services
Leeds City Council,http://opendatacommunities.org/id/metropolitan-district-council/leeds,29/09/2015,Central & Corporate,NEW WORTLEY COMMUNITY ASSOCIATION,26/02/2015,2014150496,"2,000.00",0,Neighbourhood grant,Supplies & Services
Leeds City Council,http://opendatacommunities.org/id/metropolitan-district-council/leeds,29/09/2015,Central & Corporate,NEW WORTLEY COMMUNITY ASSOCIATION,31/03/2015,2014150497,"2,000.00",0,Neighbourhood grant,Supplies & Services
Leeds City Council,http://opendatacommunities.org/id/metropolitan-district-council/leeds,29/09/2015,Central & Corporate,NEW WORTLEY COMMUNITY ASSOCIATION,10/07/2014,2014150498,245,0,Neighbourhood grant,Supplies & Services
Leeds City Council,http://opendatacommunities.org/id/metropolitan-district-council/leeds,29/09/2015,Central & Corporate,NEW WORTLEY COMMUNITY ASSOCIATION,06/08/2014,2014150499,"1,557.00",0,Neighbourhood grant,Supplies & Services
Leeds City Council,http://opendatacommunities.org/id/metropolitan-district-council/leeds,29/09/2015,Central & Corporate,St George's Crypt,09/01/2015,2014150500,"2,000.00",0,Neighbourhood grant,Supplies & Services
Leeds City Council,http://opendatacommunities.org/id/metropolitan-district-council/leeds,29/09/2015,Central & Corporate,The Cardigan Centre,15/01/2015,2014150501,180,0,Neighbourhood grant,Supplies & Services
Leeds City Council,http://opendatacommunities.org/id/metropolitan-district-council/leeds,29/09/2015,Central & Corporate,The Conservation Volunteers,20/01/2015,2014150502,"2,041.92",0,Neighbourhood grant,Supplies & Services
Leeds City Council,http://opendatacommunities.org/id/metropolitan-district-council/leeds,29/09/2015,Central & Corporate,UPBEAT SOCIAL ENTERPRISES CIC,20/11/2014,2014150503,"4,000.00",0,Neighbourhood grant,Supplies & Services
Leeds City Council,http://opendatacommunities.org/id/metropolitan-district-council/leeds,29/09/2015,Central & Corporate,UPBEAT SOCIAL ENTERPRISES CIC,16/02/2015,2014150504,"2,932.50",0,Neighbourhood grant,Supplies & Services
Leeds City Council,http://opendatacommunities.org/id/metropolitan-district-council/leeds,29/09/2015,Central & Corporate,UPBEAT SOCIAL ENTERPRISES CIC,25/09/2014,2014150505,"3,493.53",0,Neighbourhood grant,Supplies & Services
Leeds City Council,http://opendatacommunities.org/id/metropolitan-district-council/leeds,29/09/2015,Central & Corporate,11th Leeds Boys Brigade,24/09/2014,2014150506,"1,500.00",0,Neighbourhood grant,Supplies & Services
Leeds City Council,http://opendatacommunities.org/id/metropolitan-district-council/leeds,29/09/2015,Central & Corporate,Deen Enterprises Community Forum,22/01/2015,2014150507,500,0,Neighbourhood grant,Supplies & Services
Leeds City Council,http://opendatacommunities.org/id/metropolitan-district-council/leeds,29/09/2015,Central & Corporate,Fforde Grene Fc,29/01/2015,2014150508,500,0,Neighbourhood grant,Supplies & Services
Leeds City Council,http://opendatacommunities.org/id/metropolitan-district-council/leeds,29/09/2015,Central & Corporate,CLOTH CAT STUDIOS LTD,04/02/2015,2014150509,250,0,Neighbourhood grant,Supplies & Services
Leeds City Council,http://opendatacommunities.org/id/metropolitan-district-council/leeds,29/09/2015,Central & Corporate,Chapeltown Development Trust,06/01/2015,2014150510,500,0,Neighbourhood grant,Supplies & Services
Leeds City Council,http://opendatacommunities.org/id/metropolitan-district-council/leeds,29/09/2015,Central & Corporate,Chapeltown Cougars Junior League Rugby,12/11/2014,2014150511,500,0,Neighbourhood grant,Supplies & Services
Leeds City Council,http://opendatacommunities.org/id/metropolitan-district-council/leeds,29/09/2015,Central & Corporate,CFYDC (Chance),04/03/2015,2014150512,499,0,Neighbourhood grant,Supplies & Services
Leeds City Council,http://opendatacommunities.org/id/metropolitan-district-council/leeds,29/09/2015,Central & Corporate,Button Hill Residents Association,21/08/2014,2014150513,500,0,Neighbourhood grant,Supplies & Services
Leeds City Council,http://opendatacommunities.org/id/metropolitan-district-council/leeds,29/09/2015,Central & Corporate,Black Health Initiative,05/08/2014,2014150514,500,0,Neighbourhood grant,Supplies & Services
Leeds City Council,http://opendatacommunities.org/id/metropolitan-district-council/leeds,29/09/2015,Central & Corporate,LEEDS BLACK ELDERS ASSOCIATION,25/06/2014,2014150515,500,0,Neighbourhood grant,Supplies & Services
Leeds City Council,http://opendatacommunities.org/id/metropolitan-district-council/leeds,29/09/2015,Central & Corporate,LEEDS BLACK ELDERS ASSOCIATION,15/08/2014,2014150516,385,0,Neighbourhood grant,Supplies & Services
Leeds City Council,http://opendatacommunities.org/id/metropolitan-district-council/leeds,29/09/2015,Central & Corporate,Leeds Kabaddi Club,09/10/2014,2014150517,133,0,Neighbourhood grant,Supplies & Services
Leeds City Council,http://opendatacommunities.org/id/metropolitan-district-council/leeds,29/09/2015,Central & Corporate,LEEDS WEST INDIAN CENTRE CHARITABLE TRUS,05/12/2014,2014150518,300,0,Neighbourhood grant,Supplies & Services
Leeds City Council,http://opendatacommunities.org/id/metropolitan-district-council/leeds,29/09/2015,Central & Corporate,Meanwood Junior Playscheme,14/07/2014,2014150519,500,0,Neighbourhood grant,Supplies & Services
Leeds City Council,http://opendatacommunities.org/id/metropolitan-district-council/leeds,29/09/2015,Central & Corporate,RJC PRODUCTIONS LTD,15/01/2015,2014150520,320,0,Neighbourhood grant,Supplies & Services
Leeds City Council,http://opendatacommunities.org/id/metropolitan-district-council/leeds,29/09/2015,Central & Corporate,Roundhay Primary Schools Fun Run Fund,25/06/2014,2014150521,500,0,Neighbourhood grant,Supplies & Services
Leeds City Council,http://opendatacommunities.org/id/metropolitan-district-council/leeds,29/09/2015,Central & Corporate,St Martin's Church,28/08/2014,2014150522,500,0,Neighbourhood grant,Supplies & Services
Leeds City Council,http://opendatacommunities.org/id/metropolitan-district-council/leeds,29/09/2015,Central & Corporate,The Executives Club,15/01/2015,2014150523,50,0,Neighbourhood grant,Supplies & Services
Leeds City Council,http://opendatacommunities.org/id/metropolitan-district-council/leeds,29/09/2015,Central & Corporate,Woodcraft Folk North Leeds Woodchips,04/03/2015,2014150524,250,0,Neighbourhood grant,Supplies & Services
Leeds City Council,http://opendatacommunities.org/id/metropolitan-district-council/leeds,29/09/2015,Central & Corporate,FEEL GOOD FACTOR,02/03/2015,2014150525,"2,321.25",0,Neighbourhood grant,Supplies & Services
Leeds City Council,http://opendatacommunities.org/id/metropolitan-district-council/leeds,29/09/2015,Central & Corporate,FEEL GOOD FACTOR,07/11/2014,2014150526,"2,871.00",0,Neighbourhood grant,Supplies & Services
Leeds City Council,http://opendatacommunities.org/id/metropolitan-district-council/leeds,29/09/2015,Central & Corporate,FEEL GOOD FACTOR,26/03/2015,2014150527,"2,871.00",0,Neighbourhood grant,Supplies & Services
Leeds City Council,http://opendatacommunities.org/id/metropolitan-district-council/leeds,29/09/2015,Central & Corporate,FEEL GOOD FACTOR,07/08/2014,2014150528,"3,095.00",0,Neighbourhood grant,Supplies & Services
Leeds City Council,http://opendatacommunities.org/id/metropolitan-district-council/leeds,29/09/2015,Central & Corporate,FEEL GOOD FACTOR,07/08/2014,2014150529,"3,828.00",0,Neighbourhood grant,Supplies & Services
Leeds City Council,http://opendatacommunities.org/id/metropolitan-district-council/leeds,29/09/2015,Central & Corporate,Chapeltown Development Trust,12/08/2014,2014150530,"3,000.00",0,Neighbourhood grant,Supplies & Services
Leeds City Council,http://opendatacommunities.org/id/metropolitan-district-council/leeds,29/09/2015,Central & Corporate,Chapeltown Community Netball Club,29/08/2014,2014150531,"1,600.00",0,Neighbourhood grant,Supplies & Services
Leeds City Council,http://opendatacommunities.org/id/metropolitan-district-council/leeds,29/09/2015,Central & Corporate,Chapeltown Community Netball Club,17/10/2014,2014150532,500,0,Neighbourhood grant,Supplies & Services
Leeds City Council,http://opendatacommunities.org/id/metropolitan-district-council/leeds,29/09/2015,Central & Corporate,Chapeltown Community CMC Play Scheme,27/11/2014,2014150533,"1,306.00",0,Neighbourhood grant,Supplies & Services
Leeds City Council,http://opendatacommunities.org/id/metropolitan-district-council/leeds,29/09/2015,Central & Corporate,Chapel Allerton Festival,29/10/2014,2014150534,"3,500.00",0,Neighbourhood grant,Supplies & Services
Leeds City Council,http://opendatacommunities.org/id/metropolitan-district-council/leeds,29/09/2015,Central & Corporate,CFYDC (Chance),29/01/2015,2014150535,"2,321.25",0,Neighbourhood grant,Supplies & Services
Leeds City Council,http://opendatacommunities.org/id/metropolitan-district-council/leeds,29/09/2015,Central & Corporate,CFYDC (Chance),08/09/2014,2014150536,"2,664.25",0,Neighbourhood grant,Supplies & Services
Leeds City Council,http://opendatacommunities.org/id/metropolitan-district-council/leeds,29/09/2015,Central & Corporate,GETAWAY GIRLS,03/11/2014,2014150537,"2,291.66",0,Neighbourhood grant,Supplies & Services
Leeds City Council,http://opendatacommunities.org/id/metropolitan-district-council/leeds,29/09/2015,Central & Corporate,GROUNDWORK LEEDS,25/06/2014,2014150538,"2,800.00",0,Neighbourhood grant,Supplies & Services
Leeds City Council,http://opendatacommunities.org/id/metropolitan-district-council/leeds,29/09/2015,Central & Corporate,GROUNDWORK LEEDS,03/11/2014,2014150539,"1,964.75",0,Neighbourhood grant,Supplies & Services
Leeds City Council,http://opendatacommunities.org/id/metropolitan-district-council/leeds,29/09/2015,Central & Corporate,Irish Arts Foundation,12/05/2014,2014150540,"1,150.00",0,Neighbourhood grant,Supplies & Services
Leeds City Council,http://opendatacommunities.org/id/metropolitan-district-council/leeds,29/09/2015,Central & Corporate,Irish Arts Foundation,24/03/2015,2014150541,"1,194.82",0,Neighbourhood grant,Supplies & Services
Leeds City Council,http://opendatacommunities.org/id/metropolitan-district-council/leeds,29/09/2015,Central & Corporate,Irish Arts Foundation,26/03/2015,2014150542,"-1,194.82",0,Neighbourhood grant,Supplies & Services
Leeds City Council,http://opendatacommunities.org/id/metropolitan-district-council/leeds,29/09/2015,Central & Corporate,Irish Arts Foundation,07/04/2015,2014150543,"1,194.82",0,Neighbourhood grant,Supplies & Services
Leeds City Council,http://opendatacommunities.org/id/metropolitan-district-council/leeds,29/09/2015,Central & Corporate,Irish Arts Foundation,11/12/2014,2014150544,"1,305.18",0,Neighbourhood grant,Supplies & Services
Leeds City Council,http://opendatacommunities.org/id/metropolitan-district-council/leeds,29/09/2015,Central & Corporate,Karate for Inner City Kids (KICK),30/04/2014,2014150545,"1,500.00",0,Neighbourhood grant,Supplies & Services
Leeds City Council,http://opendatacommunities.org/id/metropolitan-district-council/leeds,29/09/2015,Central & Corporate,Leeds West Indian Carnival,16/01/2015,2014150546,"3,050.00",0,Neighbourhood grant,Supplies & Services
Leeds City Council,http://opendatacommunities.org/id/metropolitan-district-council/leeds,29/09/2015,Central & Corporate,LIFEFORCE PRODUCTIONS,21/08/2014,2014150547,"3,246.00",0,Neighbourhood grant,Supplies & Services
Leeds City Council,http://opendatacommunities.org/id/metropolitan-district-council/leeds,29/09/2015,Central & Corporate,Al Khidmat Centre,06/06/2014,2014150548,"2,500.00",0,Neighbourhood grant,Supplies & Services
Leeds City Council,http://opendatacommunities.org/id/metropolitan-district-council/leeds,29/09/2015,Central & Corporate,MEANWOOD INSTITUTE,04/07/2014,2014150549,"4,056.00",0,Neighbourhood grant,Supplies & Services
Leeds City Council,http://opendatacommunities.org/id/metropolitan-district-council/leeds,29/09/2015,Central & Corporate,Meanwood Junior Playscheme,23/02/2015,2014150550,375,0,Neighbourhood grant,Supplies & Services
Leeds City Council,http://opendatacommunities.org/id/metropolitan-district-council/leeds,29/09/2015,Central & Corporate,Meanwood Junior Playscheme,27/11/2014,2014150551,"1,449.00",0,Neighbourhood grant,Supplies & Services
Leeds City Council,http://opendatacommunities.org/id/metropolitan-district-council/leeds,29/09/2015,Central & Corporate,Meanwood Junior Playscheme,14/01/2015,2014150552,518.52,0,Neighbourhood grant,Supplies & Services
Leeds City Council,http://opendatacommunities.org/id/metropolitan-district-council/leeds,29/09/2015,Central & Corporate,Meanwood Junior Playscheme,14/01/2015,2014150553,654,0,Neighbourhood grant,Supplies & Services
Leeds City Council,http://opendatacommunities.org/id/metropolitan-district-council/leeds,29/09/2015,Central & Corporate,Meanwood Junior Playscheme,27/11/2014,2014150554,272,0,Neighbourhood grant,Supplies & Services
Leeds City Council,http://opendatacommunities.org/id/metropolitan-district-council/leeds,29/09/2015,Central & Corporate,Meanwood Parkside Road Allotments,12/05/2014,2014150555,180,0,Neighbourhood grant,Supplies & Services
Leeds City Council,http://opendatacommunities.org/id/metropolitan-district-council/leeds,29/09/2015,Central & Corporate,Meanwood Valley Urban Farm Ltd,22/08/2014,2014150556,"4,000.00",0,Neighbourhood grant,Supplies & Services
Leeds City Council,http://opendatacommunities.org/id/metropolitan-district-council/leeds,29/09/2015,Central & Corporate,MOOR ALLERTON ELDERLY CARE,24/03/2015,2014150557,625,0,Neighbourhood grant,Supplies & Services
Leeds City Council,http://opendatacommunities.org/id/metropolitan-district-council/leeds,29/09/2015,Central & Corporate,MOOR ALLERTON ELDERLY CARE,24/03/2015,2014150558,625,0,Neighbourhood grant,Supplies & Services
Leeds City Council,http://opendatacommunities.org/id/metropolitan-district-council/leeds,29/09/2015,Central & Corporate,MOOR ALLERTON ELDERLY CARE,25/09/2014,2014150559,625,0,Neighbourhood grant,Supplies & Services
Leeds City Council,http://opendatacommunities.org/id/metropolitan-district-council/leeds,29/09/2015,Central & Corporate,MOOR ALLERTON ELDERLY CARE,30/10/2014,2014150560,625,0,Neighbourhood grant,Supplies & Services
Leeds City Council,http://opendatacommunities.org/id/metropolitan-district-council/leeds,29/09/2015,Central & Corporate,NACRO,13/11/2014,2014150561,"1,212.42",0,Neighbourhood grant,Supplies & Services
Leeds City Council,http://opendatacommunities.org/id/metropolitan-district-council/leeds,29/09/2015,Central & Corporate,NORTHERN SCHOOL OF CONTEMPORARY,23/02/2015,2014150562,150,0,Neighbourhood grant,Supplies & Services
Leeds City Council,http://opendatacommunities.org/id/metropolitan-district-council/leeds,29/09/2015,Central & Corporate,Oakwood Traders and Residents Ass,21/08/2014,2014150563,"2,500.00",0,Neighbourhood grant,Supplies & Services
Leeds City Council,http://opendatacommunities.org/id/metropolitan-district-council/leeds,29/09/2015,Central & Corporate,RJC PRODUCTIONS LTD,23/03/2015,2014150564,"2,200.10",0,Neighbourhood grant,Supplies & Services
Leeds City Council,http://opendatacommunities.org/id/metropolitan-district-council/leeds,29/09/2015,Central & Corporate,RJC PRODUCTIONS LTD,18/11/2014,2014150565,"1,529.80",0,Neighbourhood grant,Supplies & Services
Leeds City Council,http://opendatacommunities.org/id/metropolitan-district-council/leeds,29/09/2015,Central & Corporate,ROUNDHAY ENVIRONMENTAL ACTION PROJECT,07/08/2014,2014150566,"1,500.00",0,Neighbourhood grant,Supplies & Services
Leeds City Council,http://opendatacommunities.org/id/metropolitan-district-council/leeds,29/09/2015,Central & Corporate,Street Work Soccer Academy Ltd,24/09/2014,2014150567,"3,600.00",0,Neighbourhood grant,Supplies & Services
Leeds City Council,http://opendatacommunities.org/id/metropolitan-district-council/leeds,29/09/2015,Central & Corporate,Street Work Soccer Academy Ltd,19/08/2014,2014150568,"1,267.72",0,Neighbourhood grant,Supplies & Services
Leeds City Council,http://opendatacommunities.org/id/metropolitan-district-council/leeds,29/09/2015,Central & Corporate,TOGETHER FOR PEACE,06/06/2014,2014150569,"1,814.36",0,Neighbourhood grant,Supplies & Services
Leeds City Council,http://opendatacommunities.org/id/metropolitan-district-council/leeds,29/09/2015,Central & Corporate,ZEST HEALTH FOR LIFE,25/09/2014,2014150570,"3,900.00",0,Neighbourhood grant,Supplies & Services
Leeds City Council,http://opendatacommunities.org/id/metropolitan-district-council/leeds,29/09/2015,Central & Corporate,Council of Christians and Jews,08/09/2014,2014150571,255,0,Neighbourhood grant,Supplies & Services
Leeds City Council,http://opendatacommunities.org/id/metropolitan-district-council/leeds,29/09/2015,Central & Corporate,HEADINGLEY DEVELOPMENT TRUST LTD,19/06/2014,2014150572,500,0,Neighbourhood grant,Supplies & Services
Leeds City Council,http://opendatacommunities.org/id/metropolitan-district-council/leeds,29/09/2015,Central & Corporate,Hyde Park And Woodhouse FC,01/07/2014,2014150573,750,0,Neighbourhood grant,Supplies & Services
Leeds City Council,http://opendatacommunities.org/id/metropolitan-district-council/leeds,29/09/2015,Central & Corporate,Better Leeds Communities,16/09/2014,2014150574,500,0,Neighbourhood grant,Supplies & Services
Leeds City Council,http://opendatacommunities.org/id/metropolitan-district-council/leeds,29/09/2015,Central & Corporate,Better Leeds Communities,17/12/2014,2014150575,654,0,Neighbourhood grant,Supplies & Services
Leeds City Council,http://opendatacommunities.org/id/metropolitan-district-council/leeds,29/09/2015,Central & Corporate,LEEDS COMBINED ARTS,19/12/2014,2014150576,497.2,0,Neighbourhood grant,Supplies & Services
Leeds City Council,http://opendatacommunities.org/id/metropolitan-district-council/leeds,29/09/2015,Central & Corporate,MUSICAL ARC,09/05/2014,2014150577,445,0,Neighbourhood grant,Supplies & Services
Leeds City Council,http://opendatacommunities.org/id/metropolitan-district-council/leeds,29/09/2015,Central & Corporate,VANDAN GROUP,12/08/2014,2014150578,500,0,Neighbourhood grant,Supplies & Services
Leeds City Council,http://opendatacommunities.org/id/metropolitan-district-council/leeds,29/09/2015,Central & Corporate,CITY OF LEEDS YMCA,07/04/2015,2014150579,"1,129.00",0,Neighbourhood grant,Supplies & Services
Leeds City Council,http://opendatacommunities.org/id/metropolitan-district-council/leeds,29/09/2015,Central & Corporate,CITY OF LEEDS YMCA,05/03/2015,2014150580,"1,360.00",0,Neighbourhood grant,Supplies & Services
Leeds City Council,http://opendatacommunities.org/id/metropolitan-district-council/leeds,29/09/2015,Central & Corporate,CITY OF LEEDS YMCA,11/12/2014,2014150581,810,0,Neighbourhood grant,Supplies & Services
Leeds City Council,http://opendatacommunities.org/id/metropolitan-district-council/leeds,29/09/2015,Central & Corporate,CITY OF LEEDS YMCA,05/03/2015,2014150582,"1,360.00",0,Neighbourhood grant,Supplies & Services
Leeds City Council,http://opendatacommunities.org/id/metropolitan-district-council/leeds,29/09/2015,Central & Corporate,CITY OF LEEDS YMCA,12/05/2014,2014150583,855.2,0,Neighbourhood grant,Supplies & Services
Leeds City Council,http://opendatacommunities.org/id/metropolitan-district-council/leeds,29/09/2015,Central & Corporate,CARING TOGETHER IN WOODHOUSE AND LITTLE,02/04/2015,2014150584,"1,051.00",0,Neighbourhood grant,Supplies & Services
Leeds City Council,http://opendatacommunities.org/id/metropolitan-district-council/leeds,29/09/2015,Central & Corporate,CARING TOGETHER IN WOODHOUSE AND LITTLE,27/01/2015,2014150585,"2,128.00",0,Neighbourhood grant,Supplies & Services
Leeds City Council,http://opendatacommunities.org/id/metropolitan-district-council/leeds,29/09/2015,Central & Corporate,CARING TOGETHER IN WOODHOUSE AND LITTLE,05/11/2014,2014150586,"1,904.00",0,Neighbourhood grant,Supplies & Services
Leeds City Council,http://opendatacommunities.org/id/metropolitan-district-council/leeds,29/09/2015,Central & Corporate,CARING TOGETHER IN WOODHOUSE AND LITTLE,21/07/2014,2014150587,"1,492.00",0,Neighbourhood grant,Supplies & Services
Leeds City Council,http://opendatacommunities.org/id/metropolitan-district-council/leeds,29/09/2015,Central & Corporate,GROUNDWORK LEEDS,06/10/2014,2014150588,"3,000.00",0,Neighbourhood grant,Supplies & Services
Leeds City Council,http://opendatacommunities.org/id/metropolitan-district-council/leeds,29/09/2015,Central & Corporate,Headingley Network LitFest,24/03/2015,2014150589,700,0,Neighbourhood grant,Supplies & Services
Leeds City Council,http://opendatacommunities.org/id/metropolitan-district-council/leeds,29/09/2015,Central & Corporate,Headingley Litfest,07/04/2015,2014150590,"2,800.00",0,Neighbourhood grant,Supplies & Services
Leeds City Council,http://opendatacommunities.org/id/metropolitan-district-council/leeds,29/09/2015,Central & Corporate,HYDE PARK UNITY DAY,08/07/2014,2014150591,"5,000.00",0,Neighbourhood grant,Supplies & Services
Leeds City Council,http://opendatacommunities.org/id/metropolitan-district-council/leeds,29/09/2015,Central & Corporate,INVIZIBLE CIRCLE EDUCATION,02/05/2014,2014150592,251,0,Neighbourhood grant,Supplies & Services
Leeds City Council,http://opendatacommunities.org/id/metropolitan-district-council/leeds,29/09/2015,Central & Corporate,Better Leeds Communities,13/03/2015,2014150593,"1,988.00",0,Neighbourhood grant,Supplies & Services
Leeds City Council,http://opendatacommunities.org/id/metropolitan-district-council/leeds,29/09/2015,Central & Corporate,Better Leeds Communities,06/08/2014,2014150594,895,0,Neighbourhood grant,Supplies & Services
Leeds City Council,http://opendatacommunities.org/id/metropolitan-district-council/leeds,29/09/2015,Central & Corporate,Better Leeds Communities,02/04/2015,2014150595,"3,969.50",0,Neighbourhood grant,Supplies & Services
Leeds City Council,http://opendatacommunities.org/id/metropolitan-district-council/leeds,29/09/2015,Central & Corporate,Better Leeds Communities,28/11/2014,2014150596,"3,969.50",0,Neighbourhood grant,Supplies & Services
Leeds City Council,http://opendatacommunities.org/id/metropolitan-district-council/leeds,29/09/2015,Central & Corporate,Better Leeds Communities,11/06/2014,2014150597,"3,969.50",0,Neighbourhood grant,Supplies & Services
Leeds City Council,http://opendatacommunities.org/id/metropolitan-district-council/leeds,29/09/2015,Central & Corporate,KIRKSTALL FESTIVAL,26/08/2014,2014150598,"5,900.00",0,Neighbourhood grant,Supplies & Services
Leeds City Council,http://opendatacommunities.org/id/metropolitan-district-council/leeds,29/09/2015,Central & Corporate,Behno Group (Sisters),19/01/2015,2014150599,"1,113.01",0,Neighbourhood grant,Supplies & Services
Leeds City Council,http://opendatacommunities.org/id/metropolitan-district-council/leeds,29/09/2015,Central & Corporate,Behno Group (Sisters),19/01/2015,2014150600,"3,443.00",0,Neighbourhood grant,Supplies & Services
Leeds City Council,http://opendatacommunities.org/id/metropolitan-district-council/leeds,29/09/2015,Central & Corporate,Behno Group (Sisters),06/05/2014,2014150601,"2,669.74",0,Neighbourhood grant,Supplies & Services
Leeds City Council,http://opendatacommunities.org/id/metropolitan-district-council/leeds,29/09/2015,Central & Corporate,Leeds Beckett SU,06/08/2014,2014150602,"1,972.74",0,Neighbourhood grant,Supplies & Services
Leeds City Council,http://opendatacommunities.org/id/metropolitan-district-council/leeds,29/09/2015,Central & Corporate,Leeds Beckett SU,31/03/2015,2014150603,670.5,0,Neighbourhood grant,Supplies & Services
Leeds City Council,http://opendatacommunities.org/id/metropolitan-district-council/leeds,29/09/2015,Central & Corporate,Leeds Beckett SU,31/03/2015,2014150604,"3,043.80",0,Neighbourhood grant,Supplies & Services
Leeds City Council,http://opendatacommunities.org/id/metropolitan-district-council/leeds,29/09/2015,Central & Corporate,Leeds Beckett SU,31/03/2015,2014150605,860,0,Neighbourhood grant,Supplies & Services
Leeds City Council,http://opendatacommunities.org/id/metropolitan-district-council/leeds,29/09/2015,Central & Corporate,Leeds Hockey Club,14/05/2014,2014150606,954.12,0,Neighbourhood grant,Supplies & Services
Leeds City Council,http://opendatacommunities.org/id/metropolitan-district-council/leeds,29/09/2015,Central & Corporate,Leeds University Union,28/10/2014,2014150607,"7,043.98",0,Neighbourhood grant,Supplies & Services
Leeds City Council,http://opendatacommunities.org/id/metropolitan-district-council/leeds,29/09/2015,Central & Corporate,Left Bank Leeds,01/04/2015,2014150608,"3,645.00",0,Neighbourhood grant,Supplies & Services
Leeds City Council,http://opendatacommunities.org/id/metropolitan-district-council/leeds,29/09/2015,Central & Corporate,Aireborough Supported Activities Scheme,09/04/2014,2014150609,445.25,0,Neighbourhood grant,Supplies & Services
Leeds City Council,http://opendatacommunities.org/id/metropolitan-district-council/leeds,29/09/2015,Central & Corporate,Aireborough Supported Activities Scheme,01/12/2014,2014150610,"5,000.00",0,Neighbourhood grant,Supplies & Services
Leeds City Council,http://opendatacommunities.org/id/metropolitan-district-council/leeds,29/09/2015,Central & Corporate,Meanwood Junior Playscheme,08/05/2014,2014150611,845,0,Neighbourhood grant,Supplies & Services
Leeds City Council,http://opendatacommunities.org/id/metropolitan-district-council/leeds,29/09/2015,Central & Corporate,Milford Juniors ARLFC,05/08/2014,2014150612,"1,540.00",0,Neighbourhood grant,Supplies & Services
Leeds City Council,http://opendatacommunities.org/id/metropolitan-district-council/leeds,29/09/2015,Central & Corporate,Milford Juniors ARLFC,08/08/2014,2014150613,0,0,Neighbourhood grant,Supplies & Services
Leeds City Council,http://opendatacommunities.org/id/metropolitan-district-council/leeds,29/09/2015,Central & Corporate,Milford Juniors ARLFC,27/01/2015,2014150614,"1,000.00",0,Neighbourhood grant,Supplies & Services
Leeds City Council,http://opendatacommunities.org/id/metropolitan-district-council/leeds,29/09/2015,Central & Corporate,OLDER PEOPLES ACTION IN THE LOCALITY,14/11/2014,2014150615,"4,500.00",0,Neighbourhood grant,Supplies & Services
Leeds City Council,http://opendatacommunities.org/id/metropolitan-district-council/leeds,29/09/2015,Central & Corporate,OLDER PEOPLES ACTION IN THE LOCALITY,07/04/2015,2014150616,"4,500.00",0,Neighbourhood grant,Supplies & Services
Leeds City Council,http://opendatacommunities.org/id/metropolitan-district-council/leeds,29/09/2015,Central & Corporate,OWLS,08/07/2014,2014150617,625,0,Neighbourhood grant,Supplies & Services
Leeds City Council,http://opendatacommunities.org/id/metropolitan-district-council/leeds,29/09/2015,Central & Corporate,OWLS,17/10/2014,2014150618,625,0,Neighbourhood grant,Supplies & Services
Leeds City Council,http://opendatacommunities.org/id/metropolitan-district-council/leeds,29/09/2015,Central & Corporate,OWLS,19/01/2015,2014150619,625,0,Neighbourhood grant,Supplies & Services
Leeds City Council,http://opendatacommunities.org/id/metropolitan-district-council/leeds,29/09/2015,Central & Corporate,OWLS,05/03/2015,2014150620,625,0,Neighbourhood grant,Supplies & Services
Leeds City Council,http://opendatacommunities.org/id/metropolitan-district-council/leeds,29/09/2015,Central & Corporate,St Marys the Blessed Virgin Hawksworth,05/08/2014,2014150621,"1,250.00",0,Neighbourhood grant,Supplies & Services
Leeds City Council,http://opendatacommunities.org/id/metropolitan-district-council/leeds,29/09/2015,Central & Corporate,St Marys the Blessed Virgin Hawksworth,08/08/2014,2014150622,0,0,Neighbourhood grant,Supplies & Services
Leeds City Council,http://opendatacommunities.org/id/metropolitan-district-council/leeds,29/09/2015,Central & Corporate,St Marys the Blessed Virgin Hawksworth,28/10/2014,2014150623,"1,250.00",0,Neighbourhood grant,Supplies & Services
Leeds City Council,http://opendatacommunities.org/id/metropolitan-district-council/leeds,29/09/2015,Central & Corporate,St Marys the Blessed Virgin Hawksworth,20/01/2015,2014150624,"1,250.00",0,Neighbourhood grant,Supplies & Services
Leeds City Council,http://opendatacommunities.org/id/metropolitan-district-council/leeds,29/09/2015,Central & Corporate,The Cardigan Centre,26/08/2014,2014150625,"1,578.75",0,Neighbourhood grant,Supplies & Services
Leeds City Council,http://opendatacommunities.org/id/metropolitan-district-council/leeds,29/09/2015,Central & Corporate,The Cardigan Centre,09/01/2015,2014150626,"2,726.75",0,Neighbourhood grant,Supplies & Services
Leeds City Council,http://opendatacommunities.org/id/metropolitan-district-council/leeds,29/09/2015,Central & Corporate,The Cardigan Centre,09/10/2014,2014150627,"1,300.16",0,Neighbourhood grant,Supplies & Services
Leeds City Council,http://opendatacommunities.org/id/metropolitan-district-council/leeds,29/09/2015,Central & Corporate,The Cardigan Centre,12/09/2014,2014150628,584.2,0,Neighbourhood grant,Supplies & Services
Leeds City Council,http://opendatacommunities.org/id/metropolitan-district-council/leeds,29/09/2015,Central & Corporate,The Leeds Music Hub,09/10/2014,2014150629,624.05,0,Neighbourhood grant,Supplies & Services
Leeds City Council,http://opendatacommunities.org/id/metropolitan-district-council/leeds,29/09/2015,Central & Corporate,The Leeds Music Hub,12/01/2015,2014150630,799.75,0,Neighbourhood grant,Supplies & Services
Leeds City Council,http://opendatacommunities.org/id/metropolitan-district-council/leeds,29/09/2015,Central & Corporate,WOODSLEY ROAD COMMUNITY CENTRE,16/05/2014,2014150631,"2,636.00",0,Neighbourhood grant,Supplies & Services
Leeds City Council,http://opendatacommunities.org/id/metropolitan-district-council/leeds,29/09/2015,Central & Corporate,WOODSLEY ROAD COMMUNITY CENTRE,05/08/2014,2014150632,"1,158.00",0,Neighbourhood grant,Supplies & Services
Leeds City Council,http://opendatacommunities.org/id/metropolitan-district-council/leeds,29/09/2015,Central & Corporate,WOODSLEY ROAD COMMUNITY CENTRE,05/08/2014,2014150633,412,0,Neighbourhood grant,Supplies & Services
Leeds City Council,http://opendatacommunities.org/id/metropolitan-district-council/leeds,29/09/2015,Central & Corporate,WOODSLEY ROAD COMMUNITY CENTRE,27/10/2014,2014150634,"2,113.00",0,Neighbourhood grant,Supplies & Services
Leeds City Council,http://opendatacommunities.org/id/metropolitan-district-council/leeds,29/09/2015,Central & Corporate,WOODSLEY ROAD COMMUNITY CENTRE,19/01/2015,2014150635,"2,113.00",0,Neighbourhood grant,Supplies & Services
Leeds City Council,http://opendatacommunities.org/id/metropolitan-district-council/leeds,29/09/2015,Central & Corporate,Young Minds,06/08/2014,2014150636,"1,020.00",0,Neighbourhood grant,Supplies & Services
Leeds City Council,http://opendatacommunities.org/id/metropolitan-district-council/leeds,29/09/2015,Central & Corporate,Young Minds,03/02/2015,2014150637,"1,720.00",0,Neighbourhood grant,Supplies & Services
Leeds City Council,http://opendatacommunities.org/id/metropolitan-district-council/leeds,29/09/2015,Central & Corporate,Young Minds,15/05/2014,2014150638,"1,243.00",0,Neighbourhood grant,Supplies & Services
Leeds City Council,http://opendatacommunities.org/id/metropolitan-district-council/leeds,29/09/2015,Central & Corporate,Young Minds,03/02/2015,2014150639,"1,817.00",0,Neighbourhood grant,Supplies & Services
Leeds City Council,http://opendatacommunities.org/id/metropolitan-district-council/leeds,29/09/2015,Central & Corporate,Cross Green Community Group,24/07/2014,2014150640,275,0,Neighbourhood grant,Supplies & Services
Leeds City Council,http://opendatacommunities.org/id/metropolitan-district-council/leeds,29/09/2015,Central & Corporate,Council of Christians and Jews,15/09/2014,2014150641,360,0,Neighbourhood grant,Supplies & Services
Leeds City Council,http://opendatacommunities.org/id/metropolitan-district-council/leeds,29/09/2015,Central & Corporate,CATCH,04/03/2015,2014150642,500,0,Neighbourhood grant,Supplies & Services
Leeds City Council,http://opendatacommunities.org/id/metropolitan-district-council/leeds,29/09/2015,Central & Corporate,Get Cooking!,05/12/2014,2014150643,405.69,0,Neighbourhood grant,Supplies & Services
Leeds City Council,http://opendatacommunities.org/id/metropolitan-district-council/leeds,29/09/2015,Central & Corporate,GIPSIL,25/06/2014,2014150644,149.09,0,Neighbourhood grant,Supplies & Services
Leeds City Council,http://opendatacommunities.org/id/metropolitan-district-council/leeds,29/09/2015,Central & Corporate,Leeds Kabaddi Club,09/10/2014,2014150645,367,0,Neighbourhood grant,Supplies & Services
Leeds City Council,http://opendatacommunities.org/id/metropolitan-district-council/leeds,29/09/2015,Central & Corporate,ASYABI UK,07/08/2014,2014150646,500,0,Neighbourhood grant,Supplies & Services
Leeds City Council,http://opendatacommunities.org/id/metropolitan-district-council/leeds,29/09/2015,Central & Corporate,PUROBI BENGALI CULTURAL SOCIETY,23/02/2015,2014150647,500,0,Neighbourhood grant,Supplies & Services
Leeds City Council,http://opendatacommunities.org/id/metropolitan-district-council/leeds,29/09/2015,Central & Corporate,Saxton Gardens Residents Association,04/07/2014,2014150648,500,0,Neighbourhood grant,Supplies & Services
Leeds City Council,http://opendatacommunities.org/id/metropolitan-district-council/leeds,29/09/2015,Central & Corporate,Seacroft Taking Action For Regeneration,23/02/2015,2014150649,500,0,Neighbourhood grant,Supplies & Services
Leeds City Council,http://opendatacommunities.org/id/metropolitan-district-council/leeds,29/09/2015,Central & Corporate,St Agnes United Church,31/07/2014,2014150650,500,0,Neighbourhood grant,Supplies & Services
Leeds City Council,http://opendatacommunities.org/id/metropolitan-district-council/leeds,29/09/2015,Central & Corporate,St Cyprians With St James Church,15/09/2014,2014150651,500,0,Neighbourhood grant,Supplies & Services
Leeds City Council,http://opendatacommunities.org/id/metropolitan-district-council/leeds,29/09/2015,Central & Corporate,Stoney Rock Court Sheltered Housing,23/03/2015,2014150652,500,0,Neighbourhood grant,Supplies & Services
Leeds City Council,http://opendatacommunities.org/id/metropolitan-district-council/leeds,29/09/2015,Central & Corporate,Syrian Community Of Leeds,06/06/2014,2014150653,493,0,Neighbourhood grant,Supplies & Services
Leeds City Council,http://opendatacommunities.org/id/metropolitan-district-council/leeds,29/09/2015,Central & Corporate,The Executives Club,15/01/2015,2014150654,50,0,Neighbourhood grant,Supplies & Services
Leeds City Council,http://opendatacommunities.org/id/metropolitan-district-council/leeds,29/09/2015,Central & Corporate,DAZL,15/09/2014,2014150655,"1,793.00",0,Neighbourhood grant,Supplies & Services
Leeds City Council,http://opendatacommunities.org/id/metropolitan-district-council/leeds,29/09/2015,Central & Corporate,Community Unity,22/12/2014,2014150656,"1,250.00",0,Neighbourhood grant,Supplies & Services
Leeds City Council,http://opendatacommunities.org/id/metropolitan-district-council/leeds,29/09/2015,Central & Corporate,Community Unity,15/08/2014,2014150657,"1,500.00",0,Neighbourhood grant,Supplies & Services
Leeds City Council,http://opendatacommunities.org/id/metropolitan-district-council/leeds,29/09/2015,Central & Corporate,CATCH,09/10/2014,2014150658,"3,300.00",0,Neighbourhood grant,Supplies & Services
Leeds City Council,http://opendatacommunities.org/id/metropolitan-district-council/leeds,29/09/2015,Central & Corporate,CATCH,07/08/2014,2014150659,"3,612.58",0,Neighbourhood grant,Supplies & Services
Leeds City Council,http://opendatacommunities.org/id/metropolitan-district-council/leeds,29/09/2015,Central & Corporate,GETAWAY GIRLS,23/02/2015,2014150660,"2,216.00",0,Neighbourhood grant,Supplies & Services
Leeds City Council,http://opendatacommunities.org/id/metropolitan-district-council/leeds,29/09/2015,Central & Corporate,GETAWAY GIRLS,02/04/2015,2014150661,710,0,Neighbourhood grant,Supplies & Services
Leeds City Council,http://opendatacommunities.org/id/metropolitan-district-council/leeds,29/09/2015,Central & Corporate,GETAWAY GIRLS,03/11/2014,2014150662,"2,500.00",0,Neighbourhood grant,Supplies & Services
Leeds City Council,http://opendatacommunities.org/id/metropolitan-district-council/leeds,29/09/2015,Central & Corporate,GIPSIL,02/03/2015,2014150663,"13,000.00",0,Neighbourhood grant,Supplies & Services
Leeds City Council,http://opendatacommunities.org/id/metropolitan-district-council/leeds,29/09/2015,Central & Corporate,GIPSIL,01/08/2014,2014150664,"6,300.00",0,Neighbourhood grant,Supplies & Services
Leeds City Council,http://opendatacommunities.org/id/metropolitan-district-council/leeds,29/09/2015,Central & Corporate,GIPTON TOGETHER,29/10/2014,2014150665,"1,000.00",0,Neighbourhood grant,Supplies & Services
Leeds City Council,http://opendatacommunities.org/id/metropolitan-district-council/leeds,29/09/2015,Central & Corporate,GIPTON TOGETHER,12/11/2014,2014150666,"2,500.00",0,Neighbourhood grant,Supplies & Services
Leeds City Council,http://opendatacommunities.org/id/metropolitan-district-council/leeds,29/09/2015,Central & Corporate,GROUNDWORK LEEDS,04/03/2015,2014150667,"1,500.00",0,Neighbourhood grant,Supplies & Services
Leeds City Council,http://opendatacommunities.org/id/metropolitan-district-council/leeds,29/09/2015,Central & Corporate,Hamara Healthy Living Centre,12/11/2014,2014150668,"2,395.00",0,Neighbourhood grant,Supplies & Services
Leeds City Council,http://opendatacommunities.org/id/metropolitan-district-council/leeds,29/09/2015,Central & Corporate,HEADS TOGETHER PRODUCTIONS LTD,03/12/2014,2014150669,"2,370.00",0,Neighbourhood grant,Supplies & Services
Leeds City Council,http://opendatacommunities.org/id/metropolitan-district-council/leeds,29/09/2015,Central & Corporate,Health For All (Leeds) Ltd,17/10/2014,2014150670,"3,050.00",0,Neighbourhood grant,Supplies & Services
Leeds City Council,http://opendatacommunities.org/id/metropolitan-district-council/leeds,29/09/2015,Central & Corporate,Irish Arts Foundation,06/01/2015,2014150671,"1,227.07",0,Neighbourhood grant,Supplies & Services
Leeds City Council,http://opendatacommunities.org/id/metropolitan-district-council/leeds,29/09/2015,Central & Corporate,Irish Arts Foundation,19/03/2015,2014150672,"1,172.93",0,Neighbourhood grant,Supplies & Services
Leeds City Council,http://opendatacommunities.org/id/metropolitan-district-council/leeds,29/09/2015,Central & Corporate,Leeds Refugee Forum,23/02/2015,2014150673,"1,000.00",0,Neighbourhood grant,Supplies & Services
Leeds City Council,http://opendatacommunities.org/id/metropolitan-district-council/leeds,29/09/2015,Central & Corporate,Leeds Somali Youth,15/08/2014,2014150674,500,0,Neighbourhood grant,Supplies & Services
Leeds City Council,http://opendatacommunities.org/id/metropolitan-district-council/leeds,29/09/2015,Central & Corporate,Leeds Somali Youth,03/11/2014,2014150675,"1,440.00",0,Neighbourhood grant,Supplies & Services
Leeds City Council,http://opendatacommunities.org/id/metropolitan-district-council/leeds,29/09/2015,Central & Corporate,Leeds Somali Youth,15/01/2015,2014150676,250,0,Neighbourhood grant,Supplies & Services
Leeds City Council,http://opendatacommunities.org/id/metropolitan-district-council/leeds,29/09/2015,Central & Corporate,LEEDS THEATRE TRUST LTD,10/12/2014,2014150677,"2,384.00",0,Neighbourhood grant,Supplies & Services
Leeds City Council,http://opendatacommunities.org/id/metropolitan-district-council/leeds,29/09/2015,Central & Corporate,LIFEFORCE PRODUCTIONS,23/05/2014,2014150678,120,0,Neighbourhood grant,Supplies & Services
Leeds City Council,http://opendatacommunities.org/id/metropolitan-district-council/leeds,29/09/2015,Central & Corporate,LIFEFORCE PRODUCTIONS,21/08/2014,2014150679,"4,010.21",0,Neighbourhood grant,Supplies & Services
Leeds City Council,http://opendatacommunities.org/id/metropolitan-district-council/leeds,29/09/2015,Central & Corporate,LIFEFORCE PRODUCTIONS,09/10/2014,2014150680,"1,727.50",0,Neighbourhood grant,Supplies & Services
Leeds City Council,http://opendatacommunities.org/id/metropolitan-district-council/leeds,29/09/2015,Central & Corporate,Bangladeshi Elderly Group,06/01/2015,2014150681,960,0,Neighbourhood grant,Supplies & Services
Leeds City Council,http://opendatacommunities.org/id/metropolitan-district-council/leeds,29/09/2015,Central & Corporate,RadhaRaman Society,01/10/2014,2014150682,"2,000.00",0,Neighbourhood grant,Supplies & Services
Leeds City Council,http://opendatacommunities.org/id/metropolitan-district-council/leeds,29/09/2015,Central & Corporate,Seacroft Gala,27/01/2015,2014150683,340,0,Neighbourhood grant,Supplies & Services
Leeds City Council,http://opendatacommunities.org/id/metropolitan-district-council/leeds,29/09/2015,Central & Corporate,Seacroft Gala,26/09/2014,2014150684,910,0,Neighbourhood grant,Supplies & Services
Leeds City Council,http://opendatacommunities.org/id/metropolitan-district-council/leeds,29/09/2015,Central & Corporate,SEAGULLS RE-USE LTD,12/03/2015,2014150685,"2,320.00",0,Neighbourhood grant,Supplies & Services
Leeds City Council,http://opendatacommunities.org/id/metropolitan-district-council/leeds,29/09/2015,Central & Corporate,SEAGULLS RE-USE LTD,15/01/2015,2014150686,"1,655.00",0,Neighbourhood grant,Supplies & Services
Leeds City Council,http://opendatacommunities.org/id/metropolitan-district-council/leeds,29/09/2015,Central & Corporate,SHANTONA WOMENS CENTRE,16/12/2014,2014150687,"1,610.00",0,Neighbourhood grant,Supplies & Services
Leeds City Council,http://opendatacommunities.org/id/metropolitan-district-council/leeds,29/09/2015,Central & Corporate,South Seacroft Friends & Neighbours,10/12/2014,2014150688,"2,940.00",0,Neighbourhood grant,Supplies & Services
Leeds City Council,http://opendatacommunities.org/id/metropolitan-district-council/leeds,29/09/2015,Central & Corporate,Space2 Leeds,12/11/2014,2014150689,"3,670.00",0,Neighbourhood grant,Supplies & Services
Leeds City Council,http://opendatacommunities.org/id/metropolitan-district-council/leeds,29/09/2015,Central & Corporate,ST JOHN AMBULANCE,31/07/2014,2014150690,50.48,0,Neighbourhood grant,Supplies & Services
Leeds City Council,http://opendatacommunities.org/id/metropolitan-district-council/leeds,29/09/2015,Central & Corporate,ST JOHN AMBULANCE,29/10/2014,2014150691,31.55,0,Neighbourhood grant,Supplies & Services
Leeds City Council,http://opendatacommunities.org/id/metropolitan-district-council/leeds,29/09/2015,Central & Corporate,Stoney Rock Court Sheltered Housing,25/11/2014,2014150692,500,0,Neighbourhood grant,Supplies & Services
Leeds City Council,http://opendatacommunities.org/id/metropolitan-district-council/leeds,29/09/2015,Central & Corporate,Street Work Soccer Academy Ltd,23/02/2015,2014150693,"2,560.00",0,Neighbourhood grant,Supplies & Services
Leeds City Council,http://opendatacommunities.org/id/metropolitan-district-council/leeds,29/09/2015,Central & Corporate,Street Work Soccer Academy Ltd,12/05/2014,2014150694,"3,000.00",0,Neighbourhood grant,Supplies & Services
Leeds City Council,http://opendatacommunities.org/id/metropolitan-district-council/leeds,29/09/2015,Central & Corporate,Street Work Soccer Academy Ltd,06/11/2014,2014150695,"1,680.00",0,Neighbourhood grant,Supplies & Services
Leeds City Council,http://opendatacommunities.org/id/metropolitan-district-council/leeds,29/09/2015,Central & Corporate,Street Work Soccer Academy Ltd,02/02/2015,2014150696,"1,680.00",0,Neighbourhood grant,Supplies & Services
Leeds City Council,http://opendatacommunities.org/id/metropolitan-district-council/leeds,29/09/2015,Central & Corporate,Street Work Soccer Academy Ltd,31/03/2015,2014150697,"1,640.00",0,Neighbourhood grant,Supplies & Services
Leeds City Council,http://opendatacommunities.org/id/metropolitan-district-council/leeds,29/09/2015,Central & Corporate,Street Work Soccer Academy Ltd,05/02/2015,2014150698,"2,000.00",0,Neighbourhood grant,Supplies & Services
Leeds City Council,http://opendatacommunities.org/id/metropolitan-district-council/leeds,29/09/2015,Central & Corporate,Street Work Soccer Academy Ltd,31/03/2015,2014150699,"1,460.00",0,Neighbourhood grant,Supplies & Services
Leeds City Council,http://opendatacommunities.org/id/metropolitan-district-council/leeds,29/09/2015,Central & Corporate,Street Work Soccer Academy Ltd,19/08/2014,2014150700,"1,920.00",0,Neighbourhood grant,Supplies & Services
Leeds City Council,http://opendatacommunities.org/id/metropolitan-district-council/leeds,29/09/2015,Central & Corporate,Street Work Soccer Academy Ltd,19/08/2014,2014150701,"1,500.00",0,Neighbourhood grant,Supplies & Services
Leeds City Council,http://opendatacommunities.org/id/metropolitan-district-council/leeds,29/09/2015,Central & Corporate,ADVOCACY SUPPORT LIMITED,04/03/2015,2014150702,"3,000.00",0,Neighbourhood grant,Supplies & Services
Leeds City Council,http://opendatacommunities.org/id/metropolitan-district-council/leeds,29/09/2015,Central & Corporate,Syrian Community Of Leeds,28/08/2014,2014150703,300,0,Neighbourhood grant,Supplies & Services
Leeds City Council,http://opendatacommunities.org/id/metropolitan-district-council/leeds,29/09/2015,Central & Corporate,ZEST HEALTH FOR LIFE,09/10/2014,2014150704,"2,481.70",0,Neighbourhood grant,Supplies & Services
Leeds City Council,http://opendatacommunities.org/id/metropolitan-district-council/leeds,29/09/2015,Central & Corporate,East Ardsley United Cricket Club,19/08/2014,2014150705,500,0,Neighbourhood grant,Supplies & Services
Leeds City Council,http://opendatacommunities.org/id/metropolitan-district-council/leeds,29/09/2015,Central & Corporate,Denshaw & Newlands Residents Association,22/08/2014,2014150706,160,0,Neighbourhood grant,Supplies & Services
Leeds City Council,http://opendatacommunities.org/id/metropolitan-district-council/leeds,29/09/2015,Central & Corporate,Fitness Fun & Friendship Group,24/07/2014,2014150707,500,0,Neighbourhood grant,Supplies & Services
Leeds City Council,http://opendatacommunities.org/id/metropolitan-district-council/leeds,29/09/2015,Central & Corporate,Churwell Lions Jfc,02/06/2014,2014150708,500,0,Neighbourhood grant,Supplies & Services
Leeds City Council,http://opendatacommunities.org/id/metropolitan-district-council/leeds,29/09/2015,Central & Corporate,Carlton Village Residents Association,09/12/2014,2014150709,500,0,Neighbourhood grant,Supplies & Services
Leeds City Council,http://opendatacommunities.org/id/metropolitan-district-council/leeds,29/09/2015,Central & Corporate,Kidz & Co,19/08/2014,2014150710,354,0,Neighbourhood grant,Supplies & Services
Leeds City Council,http://opendatacommunities.org/id/metropolitan-district-council/leeds,29/09/2015,Central & Corporate,Beeston Parish Centre,26/11/2014,2014150711,470,0,Neighbourhood grant,Supplies & Services
Leeds City Council,http://opendatacommunities.org/id/metropolitan-district-council/leeds,29/09/2015,Central & Corporate,Morley Cricket Club,19/12/2014,2014150712,500,0,Neighbourhood grant,Supplies & Services
Leeds City Council,http://opendatacommunities.org/id/metropolitan-district-council/leeds,29/09/2015,Central & Corporate,Westerton Close Elderly Community Group,17/12/2014,2014150713,200,0,Neighbourhood grant,Supplies & Services
Leeds City Council,http://opendatacommunities.org/id/metropolitan-district-council/leeds,29/09/2015,Central & Corporate,DAZL,01/04/2015,2014150714,"5,292.00",0,Neighbourhood grant,Supplies & Services
Leeds City Council,http://opendatacommunities.org/id/metropolitan-district-council/leeds,29/09/2015,Central & Corporate,DAZL,25/04/2014,2014150715,"3,180.00",0,Neighbourhood grant,Supplies & Services
Leeds City Council,http://opendatacommunities.org/id/metropolitan-district-council/leeds,29/09/2015,Central & Corporate,Carlton Primary P.T.A.,08/01/2015,2014150716,300,0,Neighbourhood grant,Supplies & Services
Leeds City Council,http://opendatacommunities.org/id/metropolitan-district-council/leeds,29/09/2015,Central & Corporate,Friends Of Thorpe (P.T.A),14/01/2015,2014150717,500,0,Neighbourhood grant,Supplies & Services
Leeds City Council,http://opendatacommunities.org/id/metropolitan-district-council/leeds,29/09/2015,Central & Corporate,Health For All (Leeds) Ltd,20/05/2014,2014150718,"1,637.37",0,Neighbourhood grant,Supplies & Services
Leeds City Council,http://opendatacommunities.org/id/metropolitan-district-council/leeds,29/09/2015,Central & Corporate,Health For All (Leeds) Ltd,02/06/2014,2014150719,"1,637.37",0,Neighbourhood grant,Supplies & Services
Leeds City Council,http://opendatacommunities.org/id/metropolitan-district-council/leeds,29/09/2015,Central & Corporate,Health For All (Leeds) Ltd,06/08/2014,2014150720,"1,673.37",0,Neighbourhood grant,Supplies & Services
Leeds City Council,http://opendatacommunities.org/id/metropolitan-district-council/leeds,29/09/2015,Central & Corporate,Health For All (Leeds) Ltd,14/08/2014,2014150721,"1,637.37",0,Neighbourhood grant,Supplies & Services
Leeds City Council,http://opendatacommunities.org/id/metropolitan-district-council/leeds,29/09/2015,Central & Corporate,Health For All (Leeds) Ltd,03/09/2014,2014150722,72.04,0,Neighbourhood grant,Supplies & Services
Leeds City Council,http://opendatacommunities.org/id/metropolitan-district-council/leeds,29/09/2015,Central & Corporate,Health For All (Leeds) Ltd,09/12/2014,2014150723,"2,367.29",0,Neighbourhood grant,Supplies & Services
Leeds City Council,http://opendatacommunities.org/id/metropolitan-district-council/leeds,29/09/2015,Central & Corporate,Health For All (Leeds) Ltd,14/01/2015,2014150724,"1,693.53",0,Neighbourhood grant,Supplies & Services
Leeds City Council,http://opendatacommunities.org/id/metropolitan-district-council/leeds,29/09/2015,Central & Corporate,Health For All (Leeds) Ltd,29/01/2015,2014150725,"1,637.37",0,Neighbourhood grant,Supplies & Services
Leeds City Council,http://opendatacommunities.org/id/metropolitan-district-council/leeds,29/09/2015,Central & Corporate,Health For All (Leeds) Ltd,31/03/2015,2014150726,"1,637.37",0,Neighbourhood grant,Supplies & Services
Leeds City Council,http://opendatacommunities.org/id/metropolitan-district-council/leeds,29/09/2015,Central & Corporate,Health For All (Leeds) Ltd,01/04/2015,2014150727,"1,637.37",0,Neighbourhood grant,Supplies & Services
Leeds City Council,http://opendatacommunities.org/id/metropolitan-district-council/leeds,29/09/2015,Central & Corporate,LEEDS CIVIC TRUST,15/08/2014,2014150728,250,0,Neighbourhood grant,Supplies & Services
Leeds City Council,http://opendatacommunities.org/id/metropolitan-district-council/leeds,29/09/2015,Central & Corporate,MORLEY COMMUNITY CHURCH,01/08/2014,2014150729,"1,000.00",0,Neighbourhood grant,Supplies & Services
Leeds City Council,http://opendatacommunities.org/id/metropolitan-district-council/leeds,29/09/2015,Central & Corporate,MORLEY COMMUNITY CHURCH,20/05/2014,2014150730,960,0,Neighbourhood grant,Supplies & Services
Leeds City Council,http://opendatacommunities.org/id/metropolitan-district-council/leeds,29/09/2015,Central & Corporate,MORLEY ELDERLY ACTION,04/02/2015,2014150731,751.15,0,Neighbourhood grant,Supplies & Services
Leeds City Council,http://opendatacommunities.org/id/metropolitan-district-council/leeds,29/09/2015,Central & Corporate,MORLEY ELDERLY ACTION,26/08/2014,2014150732,"8,250.00",0,Neighbourhood grant,Supplies & Services
Leeds City Council,http://opendatacommunities.org/id/metropolitan-district-council/leeds,29/09/2015,Central & Corporate,MORLEY ELDERLY ACTION,04/11/2014,2014150733,"8,250.00",0,Neighbourhood grant,Supplies & Services
Leeds City Council,http://opendatacommunities.org/id/metropolitan-district-council/leeds,29/09/2015,Central & Corporate,MORLEY ELDERLY ACTION,04/02/2015,2014150734,"8,250.00",0,Neighbourhood grant,Supplies & Services
Leeds City Council,http://opendatacommunities.org/id/metropolitan-district-council/leeds,29/09/2015,Central & Corporate,Oulton & Woodlesford Design Statement,18/12/2014,2014150735,"1,777.87",0,Neighbourhood grant,Supplies & Services
Leeds City Council,http://opendatacommunities.org/id/metropolitan-district-council/leeds,29/09/2015,Central & Corporate,Playful Anywhere CIC,09/03/2015,2014150736,"2,146.34",0,Neighbourhood grant,Supplies & Services
Leeds City Council,http://opendatacommunities.org/id/metropolitan-district-council/leeds,29/09/2015,Central & Corporate,Rothwell & District Carnival Committee,20/08/2014,2014150737,898,0,Neighbourhood grant,Supplies & Services
Leeds City Council,http://opendatacommunities.org/id/metropolitan-district-council/leeds,29/09/2015,Central & Corporate,Rothwell & District Carnival Committee,06/08/2014,2014150738,500,0,Neighbourhood grant,Supplies & Services
Leeds City Council,http://opendatacommunities.org/id/metropolitan-district-council/leeds,29/09/2015,Central & Corporate,Rothwell & District Carnival Committee,10/10/2014,2014150739,"3,000.00",0,Neighbourhood grant,Supplies & Services
Leeds City Council,http://opendatacommunities.org/id/metropolitan-district-council/leeds,29/09/2015,Central & Corporate,Rothwell & District Live At Home Scheme,09/12/2014,2014150740,640.1,0,Neighbourhood grant,Supplies & Services
Leeds City Council,http://opendatacommunities.org/id/metropolitan-district-council/leeds,29/09/2015,Central & Corporate,ROTHWELL 600,13/01/2015,2014150741,900.7,0,Neighbourhood grant,Supplies & Services
Leeds City Council,http://opendatacommunities.org/id/metropolitan-district-council/leeds,29/09/2015,Central & Corporate,ROTHWELL COMPETITIVE MUSIC FESTIVAL,13/11/2014,2014150742,"1,000.00",0,Neighbourhood grant,Supplies & Services
Leeds City Council,http://opendatacommunities.org/id/metropolitan-district-council/leeds,29/09/2015,Central & Corporate,ROTHWELL COMPETITIVE MUSIC FESTIVAL,11/02/2015,2014150743,"1,000.00",0,Neighbourhood grant,Supplies & Services
Leeds City Council,http://opendatacommunities.org/id/metropolitan-district-council/leeds,29/09/2015,Central & Corporate,South Leeds Community Radio,26/09/2014,2014150744,115,0,Neighbourhood grant,Supplies & Services
Leeds City Council,http://opendatacommunities.org/id/metropolitan-district-council/leeds,29/09/2015,Central & Corporate,Wellington Hill Residents Association,26/01/2015,2014150745,500,0,Neighbourhood grant,Supplies & Services
Leeds City Council,http://opendatacommunities.org/id/metropolitan-district-council/leeds,29/09/2015,Central & Corporate,Farsley Business Forum,21/08/2014,2014150746,500,0,Neighbourhood grant,Supplies & Services
Leeds City Council,http://opendatacommunities.org/id/metropolitan-district-council/leeds,29/09/2015,Central & Corporate,Farsley Cricket and Bowling club,01/07/2014,2014150747,500,0,Neighbourhood grant,Supplies & Services
Leeds City Council,http://opendatacommunities.org/id/metropolitan-district-council/leeds,29/09/2015,Central & Corporate,Bramley Buffaloes Rugby League Community,01/07/2014,2014150748,500,0,Neighbourhood grant,Supplies & Services
Leeds City Council,http://opendatacommunities.org/id/metropolitan-district-council/leeds,29/09/2015,Central & Corporate,Leeds Esprit Gymnastics Club,01/07/2014,2014150749,300,0,Neighbourhood grant,Supplies & Services
Leeds City Council,http://opendatacommunities.org/id/metropolitan-district-council/leeds,29/09/2015,Central & Corporate,Neighbourhood Action in Farnley,16/12/2014,2014150750,500,0,Neighbourhood grant,Supplies & Services
Leeds City Council,http://opendatacommunities.org/id/metropolitan-district-council/leeds,29/09/2015,Central & Corporate,Parish Church of St James the Great,15/10/2014,2014150751,500,0,Neighbourhood grant,Supplies & Services
Leeds City Council,http://opendatacommunities.org/id/metropolitan-district-council/leeds,29/09/2015,Central & Corporate,PUDSEY CARNIVAL COMMITTEE,01/07/2014,2014150752,"1,000.00",0,Neighbourhood grant,Supplies & Services
Leeds City Council,http://opendatacommunities.org/id/metropolitan-district-council/leeds,29/09/2015,Central & Corporate,Farsley Community Initiative,16/05/2014,2014150753,"2,500.00",0,Neighbourhood grant,Supplies & Services
Leeds City Council,http://opendatacommunities.org/id/metropolitan-district-council/leeds,29/09/2015,Central & Corporate,Calverley St. Wilfrids Cricket Club,15/12/2014,2014150754,359,0,Neighbourhood grant,Supplies & Services
Leeds City Council,http://opendatacommunities.org/id/metropolitan-district-council/leeds,29/09/2015,Central & Corporate,Friends Of Post Hill,23/10/2014,2014150755,975,0,Neighbourhood grant,Supplies & Services
Leeds City Council,http://opendatacommunities.org/id/metropolitan-district-council/leeds,29/09/2015,Central & Corporate,ARMLEY JUNIORS,21/10/2014,2014150756,"3,890.32",0,Neighbourhood grant,Supplies & Services
Leeds City Council,http://opendatacommunities.org/id/metropolitan-district-council/leeds,29/09/2015,Central & Corporate,ARMLEY JUNIORS,05/01/2015,2014150757,"4,942.00",0,Neighbourhood grant,Supplies & Services
Leeds City Council,http://opendatacommunities.org/id/metropolitan-district-council/leeds,29/09/2015,Central & Corporate,ARMLEY JUNIORS,10/09/2014,2014150758,"4,942.00",0,Neighbourhood grant,Supplies & Services
Leeds City Council,http://opendatacommunities.org/id/metropolitan-district-council/leeds,29/09/2015,Central & Corporate,ARMLEY JUNIORS,30/06/2014,2014150759,"4,942.00",0,Neighbourhood grant,Supplies & Services
Leeds City Council,http://opendatacommunities.org/id/metropolitan-district-council/leeds,29/09/2015,Central & Corporate,ARMLEY JUNIORS,02/05/2014,2014150760,"4,942.00",0,Neighbourhood grant,Supplies & Services
Leeds City Council,http://opendatacommunities.org/id/metropolitan-district-council/leeds,29/09/2015,Central & Corporate,Love Pudsey,27/01/2015,2014150761,"3,635.90",0,Neighbourhood grant,Supplies & Services
Leeds City Council,http://opendatacommunities.org/id/metropolitan-district-council/leeds,29/09/2015,Central & Corporate,Love Pudsey,27/01/2015,2014150762,"1,246.15",0,Neighbourhood grant,Supplies & Services
Leeds City Council,http://opendatacommunities.org/id/metropolitan-district-council/leeds,29/09/2015,Central & Corporate,Love Pudsey,07/04/2015,2014150763,"3,017.95",0,Neighbourhood grant,Supplies & Services
Leeds City Council,http://opendatacommunities.org/id/metropolitan-district-council/leeds,29/09/2015,Central & Corporate,Ahead Partnership Ltd,10/07/2014,2014150764,"2,500.00",0,Neighbourhood grant,Supplies & Services
Leeds City Council,http://opendatacommunities.org/id/metropolitan-district-council/leeds,29/09/2015,Central & Corporate,Ahead Partnership Ltd,15/01/2015,2014150765,"2,500.00",0,Neighbourhood grant,Supplies & Services
Leeds City Council,http://opendatacommunities.org/id/metropolitan-district-council/leeds,29/09/2015,Central & Corporate,Ahead Partnership Ltd,29/10/2014,2014150766,"2,500.00",0,Neighbourhood grant,Supplies & Services
Leeds City Council,http://opendatacommunities.org/id/metropolitan-district-council/leeds,29/09/2015,Central & Corporate,Ahead Partnership Ltd,31/03/2015,2014150767,"2,500.00",0,Neighbourhood grant,Supplies & Services
Leeds City Council,http://opendatacommunities.org/id/metropolitan-district-council/leeds,29/09/2015,Central & Corporate,Pudsey Bowling and Table Tennis Club,31/03/2015,2014150768,"4,540.00",0,Neighbourhood grant,Supplies & Services
Leeds City Council,http://opendatacommunities.org/id/metropolitan-district-council/leeds,29/09/2015,Central & Corporate,Pudsey In Bloom,11/04/2014,2014150769,500,0,Neighbourhood grant,Supplies & Services
Leeds City Council,http://opendatacommunities.org/id/metropolitan-district-council/leeds,29/09/2015,Central & Corporate,The Works Skatepark Charity,27/10/2014,2014150770,"2,380.00",0,Neighbourhood grant,Supplies & Services
Leeds City Council,http://opendatacommunities.org/id/metropolitan-district-council/leeds,29/09/2015,Central & Corporate,Collingham Music Association,24/07/2014,2014150771,498.94,0,Neighbourhood grant,Supplies & Services
Leeds City Council,http://opendatacommunities.org/id/metropolitan-district-council/leeds,29/09/2015,Central & Corporate,Leeds Jewish Ex-Serviceman & Womens Asso,06/06/2014,2014150772,500,0,Neighbourhood grant,Supplies & Services
Leeds City Council,http://opendatacommunities.org/id/metropolitan-district-council/leeds,29/09/2015,Central & Corporate,MAKOR CHARITABLE TRUST,05/12/2014,2014150773,500,0,Neighbourhood grant,Supplies & Services
Leeds City Council,http://opendatacommunities.org/id/metropolitan-district-council/leeds,29/09/2015,Central & Corporate,RJC PRODUCTIONS LTD,15/01/2015,2014150774,80,0,Neighbourhood grant,Supplies & Services
Leeds City Council,http://opendatacommunities.org/id/metropolitan-district-council/leeds,29/09/2015,Central & Corporate,SHADWELL IN BLOOM,23/03/2015,2014150775,150,0,Neighbourhood grant,Supplies & Services
Leeds City Council,http://opendatacommunities.org/id/metropolitan-district-council/leeds,29/09/2015,Central & Corporate,Thorp Arch Village Society,29/10/2014,2014150776,70.96,0,Neighbourhood grant,Supplies & Services
Leeds City Council,http://opendatacommunities.org/id/metropolitan-district-council/leeds,29/09/2015,Central & Corporate,Wetherby Community Radio,14/07/2014,2014150777,300,0,Neighbourhood grant,Supplies & Services
Leeds City Council,http://opendatacommunities.org/id/metropolitan-district-council/leeds,29/09/2015,Central & Corporate,COLLINGHAM & LINTON SQUASH CLUB,24/09/2014,2014150778,485,0,Neighbourhood grant,Supplies & Services
Leeds City Council,http://opendatacommunities.org/id/metropolitan-district-council/leeds,29/09/2015,Central & Corporate,Friends Of Barwick School,25/11/2014,2014150779,"1,000.00",0,Neighbourhood grant,Supplies & Services
Leeds City Council,http://opendatacommunities.org/id/metropolitan-district-council/leeds,29/09/2015,Central & Corporate,Barwick Bowling Club,04/03/2015,2014150780,"1,360.00",0,Neighbourhood grant,Supplies & Services
Leeds City Council,http://opendatacommunities.org/id/metropolitan-district-council/leeds,29/09/2015,Central & Corporate,Leeds Judean Club For Boys And Girls T/A,14/01/2015,2014150781,900,0,Neighbourhood grant,Supplies & Services
Leeds City Council,http://opendatacommunities.org/id/metropolitan-district-council/leeds,29/09/2015,Central & Corporate,Bardsey Village Hall,23/02/2015,2014150782,"5,000.00",0,Neighbourhood grant,Supplies & Services
Leeds City Council,http://opendatacommunities.org/id/metropolitan-district-council/leeds,29/09/2015,Central & Corporate,Alwoodley Community Association,15/08/2014,2014150783,"5,000.00",0,Neighbourhood grant,Supplies & Services
Leeds City Council,http://opendatacommunities.org/id/metropolitan-district-council/leeds,29/09/2015,Central & Corporate,Alwoodley Allotment Association,21/08/2014,2014150784,"3,500.00",0,Neighbourhood grant,Supplies & Services
Leeds City Council,http://opendatacommunities.org/id/metropolitan-district-council/leeds,29/09/2015,Central & Corporate,MOOR ALLERTON ELDERLY CARE,04/03/2015,2014150785,"1,500.00",0,Neighbourhood grant,Supplies & Services
Leeds City Council,http://opendatacommunities.org/id/metropolitan-district-council/leeds,29/09/2015,Central & Corporate,MOOR ALLERTON ELDERLY CARE,25/09/2014,2014150786,"3,375.00",0,Neighbourhood grant,Supplies & Services
Leeds City Council,http://opendatacommunities.org/id/metropolitan-district-council/leeds,29/09/2015,Central & Corporate,MOOR ALLERTON ELDERLY CARE,30/03/2015,2014150787,"3,375.00",0,Neighbourhood grant,Supplies & Services
Leeds City Council,http://opendatacommunities.org/id/metropolitan-district-council/leeds,29/09/2015,Central & Corporate,MOOR ALLERTON ELDERLY CARE,25/11/2014,2014150788,"3,375.00",0,Neighbourhood grant,Supplies & Services
Leeds City Council,http://opendatacommunities.org/id/metropolitan-district-council/leeds,29/09/2015,Central & Corporate,MOOR ALLERTON ELDERLY CARE,25/03/2015,2014150789,"3,375.00",0,Neighbourhood grant,Supplies & Services
Leeds City Council,http://opendatacommunities.org/id/metropolitan-district-council/leeds,29/09/2015,Central & Corporate,MOOR ALLERTON ELDERLY CARE,11/12/2014,2014150790,"1,500.00",0,Neighbourhood grant,Supplies & Services
Leeds City Council,http://opendatacommunities.org/id/metropolitan-district-council/leeds,29/09/2015,Central & Corporate,Moortown Social Club Over 60s Section,22/01/2015,2014150791,250,0,Neighbourhood grant,Supplies & Services
Leeds City Council,http://opendatacommunities.org/id/metropolitan-district-council/leeds,29/09/2015,Central & Corporate,Moortown Social Club Over 60s Section,27/10/2014,2014150792,350,0,Neighbourhood grant,Supplies & Services
Leeds City Council,http://opendatacommunities.org/id/metropolitan-district-council/leeds,29/09/2015,Central & Corporate,NORTHCALL,29/01/2015,2014150793,227.5,0,Neighbourhood grant,Supplies & Services
Leeds City Council,http://opendatacommunities.org/id/metropolitan-district-council/leeds,29/09/2015,Central & Corporate,NORTHCALL,02/04/2015,2014150794,218,0,Neighbourhood grant,Supplies & Services
Leeds City Council,http://opendatacommunities.org/id/metropolitan-district-council/leeds,29/09/2015,Central & Corporate,NORTHCALL,25/11/2014,2014150795,150,0,Neighbourhood grant,Supplies & Services
Leeds City Council,http://opendatacommunities.org/id/metropolitan-district-council/leeds,29/09/2015,Central & Corporate,NORTHCALL,06/02/2015,2014150796,"2,840.00",0,Neighbourhood grant,Supplies & Services
Leeds City Council,http://opendatacommunities.org/id/metropolitan-district-council/leeds,29/09/2015,Central & Corporate,NORTHCALL,12/11/2014,2014150797,"4,256.80",0,Neighbourhood grant,Supplies & Services
Leeds City Council,http://opendatacommunities.org/id/metropolitan-district-council/leeds,29/09/2015,Central & Corporate,Scarcroft Village Institute,25/11/2014,2014150798,"3,150.00",0,Neighbourhood grant,Supplies & Services
Leeds City Council,http://opendatacommunities.org/id/metropolitan-district-council/leeds,29/09/2015,Central & Corporate,Shadwell Tennis Club,04/03/2015,2014150799,500,0,Neighbourhood grant,Supplies & Services
Leeds City Council,http://opendatacommunities.org/id/metropolitan-district-council/leeds,29/09/2015,Central & Corporate,SLAID HILL IN BLOOM,17/10/2014,2014150800,991,0,Neighbourhood grant,Supplies & Services
Leeds City Council,http://opendatacommunities.org/id/metropolitan-district-council/leeds,29/09/2015,Central & Corporate,Tempo FM,05/12/2014,2014150801,"1,500.00",0,Neighbourhood grant,Supplies & Services
Leeds City Council,http://opendatacommunities.org/id/metropolitan-district-council/leeds,29/09/2015,Central & Corporate,The Leodiensian Club,06/02/2015,2014150802,767.6,0,Neighbourhood grant,Supplies & Services
Leeds City Council,http://opendatacommunities.org/id/metropolitan-district-council/leeds,29/09/2015,Central & Corporate,Wetherby & District Foodbank,12/11/2014,2014150803,"1,250.00",0,Neighbourhood grant,Supplies & Services
Leeds City Council,http://opendatacommunities.org/id/metropolitan-district-council/leeds,29/09/2015,Central & Corporate,Wetherby Arts Festival,22/12/2014,2014150804,750,0,Neighbourhood grant,Supplies & Services
Leeds City Council,http://opendatacommunities.org/id/metropolitan-district-council/leeds,29/09/2015,Central & Corporate,Wetherby Community Radio,23/05/2014,2014150805,"1,500.00",0,Neighbourhood grant,Supplies & Services
Leeds City Council,http://opendatacommunities.org/id/metropolitan-district-council/leeds,29/09/2015,Central & Corporate,Wetherby District Scout Council,05/08/2014,2014150806,"1,900.00",0,Neighbourhood grant,Supplies & Services
Leeds City Council,http://opendatacommunities.org/id/metropolitan-district-council/leeds,29/09/2015,Central & Corporate,Friends Of Parkinson Park,22/07/2014,2014150807,"1,000.00",0,Neighbourhood grant,Supplies & Services
Leeds City Council,http://opendatacommunities.org/id/metropolitan-district-council/leeds,29/09/2015,Central & Corporate,Green Lane Cricket Club,12/01/2015,2014150808,"1,000.00",0,Neighbourhood grant,Supplies & Services
Leeds City Council,http://opendatacommunities.org/id/metropolitan-district-council/leeds,29/09/2015,Central & Corporate,GUISELEY METHODIST CHURCH,16/01/2015,2014150809,"1,000.00",0,Neighbourhood grant,Supplies & Services
Leeds City Council,http://opendatacommunities.org/id/metropolitan-district-council/leeds,29/09/2015,Central & Corporate,Irish Arts Foundation,19/12/2014,2014150810,100,0,Neighbourhood grant,Supplies & Services
Leeds City Council,http://opendatacommunities.org/id/metropolitan-district-council/leeds,29/09/2015,Central & Corporate,ARTHINGTON CRICKET CLUB,20/08/2014,2014150811,"1,000.00",0,Neighbourhood grant,Supplies & Services
Leeds City Council,http://opendatacommunities.org/id/metropolitan-district-council/leeds,29/09/2015,Central & Corporate,Otley Carnival,18/02/2015,2014150812,500,0,Neighbourhood grant,Supplies & Services
Leeds City Council,http://opendatacommunities.org/id/metropolitan-district-council/leeds,29/09/2015,Central & Corporate,Otley Carnival,09/05/2014,2014150813,500,0,Neighbourhood grant,Supplies & Services
Leeds City Council,http://opendatacommunities.org/id/metropolitan-district-council/leeds,29/09/2015,Central & Corporate,ST JOHN AMBULANCE,24/03/2015,2014150814,30.4,0,Neighbourhood grant,Supplies & Services
Leeds City Council,http://opendatacommunities.org/id/metropolitan-district-council/leeds,29/09/2015,Central & Corporate,St Margarets Church,05/01/2015,2014150815,220,0,Neighbourhood grant,Supplies & Services
Leeds City Council,http://opendatacommunities.org/id/metropolitan-district-council/leeds,29/09/2015,Central & Corporate,Tarnfield Bowling Club,11/04/2014,2014150816,571,0,Neighbourhood grant,Supplies & Services
Leeds City Council,http://opendatacommunities.org/id/metropolitan-district-council/leeds,29/09/2015,Central & Corporate,Yeadon Town Hall User Group,13/10/2014,2014150817,500,0,Neighbourhood grant,Supplies & Services
Leeds City Council,http://opendatacommunities.org/id/metropolitan-district-council/leeds,29/09/2015,Central & Corporate,Yeadon Westfield Junior School Pta,09/05/2014,2014150818,500,0,Neighbourhood grant,Supplies & Services
Leeds City Council,http://opendatacommunities.org/id/metropolitan-district-council/leeds,29/09/2015,Central & Corporate,Yeadon Westfield Junior School Pta,20/08/2014,2014150819,"1,000.00",0,Neighbourhood grant,Supplies & Services
Leeds City Council,http://opendatacommunities.org/id/metropolitan-district-council/leeds,29/09/2015,Central & Corporate,COURTHOUSE PROJECT (OTLEY) LTD,18/03/2015,2014150820,"1,746.00",0,Neighbourhood grant,Supplies & Services
Leeds City Council,http://opendatacommunities.org/id/metropolitan-district-council/leeds,29/09/2015,Central & Corporate,COOKRIDGE VILLAGE ASSOCIATION,16/07/2014,2014150821,"9,000.00",0,Neighbourhood grant,Supplies & Services
Leeds City Council,http://opendatacommunities.org/id/metropolitan-district-council/leeds,29/09/2015,Central & Corporate,CITY OF LEEDS YMCA,07/04/2015,2014150822,"1,129.00",0,Neighbourhood grant,Supplies & Services
Leeds City Council,http://opendatacommunities.org/id/metropolitan-district-council/leeds,29/09/2015,Central & Corporate,CITY OF LEEDS YMCA,04/03/2015,2014150823,"1,360.00",0,Neighbourhood grant,Supplies & Services
Leeds City Council,http://opendatacommunities.org/id/metropolitan-district-council/leeds,29/09/2015,Central & Corporate,CITY OF LEEDS YMCA,05/09/2014,2014150824,"1,360.00",0,Neighbourhood grant,Supplies & Services
Leeds City Council,http://opendatacommunities.org/id/metropolitan-district-council/leeds,29/09/2015,Central & Corporate,CITY OF LEEDS YMCA,12/06/2014,2014150825,855.2,0,Neighbourhood grant,Supplies & Services
Leeds City Council,http://opendatacommunities.org/id/metropolitan-district-council/leeds,29/09/2015,Central & Corporate,Churches Together In Horsforth,11/08/2014,2014150826,500,0,Neighbourhood grant,Supplies & Services
Leeds City Council,http://opendatacommunities.org/id/metropolitan-district-council/leeds,29/09/2015,Central & Corporate,CASAC LEEDS LIMITED,12/08/2014,2014150827,"1,800.00",0,Neighbourhood grant,Supplies & Services
Leeds City Council,http://opendatacommunities.org/id/metropolitan-district-council/leeds,29/09/2015,Central & Corporate,CASAC LEEDS LIMITED,06/08/2014,2014150828,"1,950.00",0,Neighbourhood grant,Supplies & Services
Leeds City Council,http://opendatacommunities.org/id/metropolitan-district-council/leeds,29/09/2015,Central & Corporate,CASAC LEEDS LIMITED,16/06/2014,2014150829,"3,150.00",0,Neighbourhood grant,Supplies & Services
Leeds City Council,http://opendatacommunities.org/id/metropolitan-district-council/leeds,29/09/2015,Central & Corporate,GUISELEY (AOS) THEATRE,06/02/2015,2014150830,"4,106.00",0,Neighbourhood grant,Supplies & Services
Leeds City Council,http://opendatacommunities.org/id/metropolitan-district-council/leeds,29/09/2015,Central & Corporate,Guiseley Community Foundation,30/05/2014,2014150831,"2,000.00",0,Neighbourhood grant,Supplies & Services
Leeds City Council,http://opendatacommunities.org/id/metropolitan-district-council/leeds,29/09/2015,Central & Corporate,Guiseley Neighbourhood Watch Association,02/06/2014,2014150832,604.12,0,Neighbourhood grant,Supplies & Services
Leeds City Council,http://opendatacommunities.org/id/metropolitan-district-council/leeds,29/09/2015,Central & Corporate,BRAMHOPE METHODIST CHURCH,01/04/2015,2014150833,"10,000.00",0,Neighbourhood grant,Supplies & Services
Leeds City Council,http://opendatacommunities.org/id/metropolitan-district-council/leeds,29/09/2015,Central & Corporate,Horsforth Hall Park Cricket Club,30/03/2015,2014150834,"4,943.01",0,Neighbourhood grant,Supplies & Services
Leeds City Council,http://opendatacommunities.org/id/metropolitan-district-council/leeds,29/09/2015,Central & Corporate,Aireborough Supported Activities Scheme,22/04/2014,2014150835,"5,265.00",0,Neighbourhood grant,Supplies & Services
Leeds City Council,http://opendatacommunities.org/id/metropolitan-district-council/leeds,29/09/2015,Central & Corporate,Aireborough Supported Activities Scheme,19/12/2014,2014150836,"5,510.00",0,Neighbourhood grant,Supplies & Services
Leeds City Council,http://opendatacommunities.org/id/metropolitan-district-council/leeds,29/09/2015,Central & Corporate,Aireborough Supported Activities Scheme,01/12/2014,2014150837,"3,538.00",0,Neighbourhood grant,Supplies & Services
Leeds City Council,http://opendatacommunities.org/id/metropolitan-district-council/leeds,29/09/2015,Central & Corporate,Aireborough Supported Activities Scheme,25/09/2014,2014150838,"2,662.00",0,Neighbourhood grant,Supplies & Services
Leeds City Council,http://opendatacommunities.org/id/metropolitan-district-council/leeds,29/09/2015,Central & Corporate,Pool In Wharfedale Recreation Ground,09/10/2014,2014150839,"2,487.08",0,Neighbourhood grant,Supplies & Services
Leeds City Council,http://opendatacommunities.org/id/metropolitan-district-council/leeds,29/09/2015,Central & Corporate,Pool In Wharfedale Recreation Ground,26/01/2015,2014150840,"2,649.00",0,Neighbourhood grant,Supplies & Services
Leeds City Council,http://opendatacommunities.org/id/metropolitan-district-council/leeds,29/09/2015,Central & Corporate,Pool In Wharfedale Recreation Ground,10/03/2015,2014150841,863.92,0,Neighbourhood grant,Supplies & Services
Leeds City Council,http://opendatacommunities.org/id/metropolitan-district-council/leeds,29/09/2015,Central & Corporate,Rawdon Cricket Club,25/09/2014,2014150842,"1,000.00",0,Neighbourhood grant,Supplies & Services
Leeds City Council,http://opendatacommunities.org/id/metropolitan-district-council/leeds,29/09/2015,Central & Corporate,Saint Margaret's Horsforth PCC,12/05/2014,2014150843,"3,000.00",0,Neighbourhood grant,Supplies & Services
Leeds City Council,http://opendatacommunities.org/id/metropolitan-district-council/leeds,29/09/2015,Central & Corporate,St Mary & St Abanoub Coptic Orthodox,07/07/2014,2014150844,"2,000.00",0,Neighbourhood grant,Supplies & Services
Leeds City Council,http://opendatacommunities.org/id/metropolitan-district-council/leeds,29/09/2015,Central & Corporate,The Big Hoo-Ha Company,12/06/2014,2014150845,"2,510.00",0,Neighbourhood grant,Supplies & Services
Leeds City Council,http://opendatacommunities.org/id/metropolitan-district-council/leeds,29/09/2015,Central & Corporate,Adel Hockey Club,21/10/2014,2014150846,"10,000.00",0,Neighbourhood grant,Supplies & Services
Leeds City Council,http://opendatacommunities.org/id/metropolitan-district-council/leeds,29/09/2015,Central & Corporate,Adel Association,10/06/2014,2014150847,"1,377.00",0,Neighbourhood grant,Supplies & Services
Leeds City Council,http://opendatacommunities.org/id/metropolitan-district-council/leeds,29/09/2015,Central & Corporate,Garforth & District Crime Prevention,31/07/2014,2014150848,500,0,Neighbourhood grant,Supplies & Services
Leeds City Council,http://opendatacommunities.org/id/metropolitan-district-council/leeds,29/09/2015,Central & Corporate,Garforth Traders Association - CIC,24/03/2015,2014150849,150,0,Neighbourhood grant,Supplies & Services
Leeds City Council,http://opendatacommunities.org/id/metropolitan-district-council/leeds,29/09/2015,Central & Corporate,Oulton & Woodledsford Sports & Social Cl,19/08/2014,2014150850,500,0,Neighbourhood grant,Supplies & Services
Leeds City Council,http://opendatacommunities.org/id/metropolitan-district-council/leeds,29/09/2015,Central & Corporate,Swarcliffe Good Neighbours Scheme,26/11/2014,2014150851,500,0,Neighbourhood grant,Supplies & Services
Leeds City Council,http://opendatacommunities.org/id/metropolitan-district-council/leeds,29/09/2015,Central & Corporate,CHRIST CHURCH HALTON,12/12/2014,2014150852,40,0,Neighbourhood grant,Supplies & Services
Leeds City Council,http://opendatacommunities.org/id/metropolitan-district-council/leeds,29/09/2015,Central & Corporate,CHRIST CHURCH HALTON,12/12/2014,2014150853,40,0,Neighbourhood grant,Supplies & Services
Leeds City Council,http://opendatacommunities.org/id/metropolitan-district-council/leeds,29/09/2015,Central & Corporate,CHRIST CHURCH HALTON,12/12/2014,2014150854,40,0,Neighbourhood grant,Supplies & Services
Leeds City Council,http://opendatacommunities.org/id/metropolitan-district-council/leeds,29/09/2015,Central & Corporate,CHRIST CHURCH HALTON,12/12/2014,2014150855,40,0,Neighbourhood grant,Supplies & Services
Leeds City Council,http://opendatacommunities.org/id/metropolitan-district-council/leeds,29/09/2015,Central & Corporate,Garforth Historical Society,03/02/2015,2014150856,285,0,Neighbourhood grant,Supplies & Services
Leeds City Council,http://opendatacommunities.org/id/metropolitan-district-council/leeds,29/09/2015,Central & Corporate,GROUNDWORK LEEDS,16/02/2015,2014150857,"2,977.61",0,Neighbourhood grant,Supplies & Services
Leeds City Council,http://opendatacommunities.org/id/metropolitan-district-council/leeds,29/09/2015,Central & Corporate,GROUNDWORK LEEDS,18/03/2015,2014150858,"2,500.00",0,Neighbourhood grant,Supplies & Services
Leeds City Council,http://opendatacommunities.org/id/metropolitan-district-council/leeds,29/09/2015,Central & Corporate,Leeds Carnegie Basketball Foundation,02/09/2014,2014150859,130,0,Neighbourhood grant,Supplies & Services
Leeds City Council,http://opendatacommunities.org/id/metropolitan-district-council/leeds,29/09/2015,Central & Corporate,Methleyfest Organisation Committee,10/10/2014,2014150860,"1,300.00",0,Neighbourhood grant,Supplies & Services
Leeds City Council,http://opendatacommunities.org/id/metropolitan-district-council/leeds,29/09/2015,Central & Corporate,NACRO,05/11/2014,2014150861,"1,798.02",0,Neighbourhood grant,Supplies & Services
Leeds City Council,http://opendatacommunities.org/id/metropolitan-district-council/leeds,29/09/2015,Central & Corporate,Neighbourhood Elders Team,13/02/2015,2014150862,205.56,0,Neighbourhood grant,Supplies & Services
Leeds City Council,http://opendatacommunities.org/id/metropolitan-district-council/leeds,29/09/2015,Central & Corporate,Neighbourhood Elders Team,07/11/2014,2014150863,"4,000.00",0,Neighbourhood grant,Supplies & Services
Leeds City Council,http://opendatacommunities.org/id/metropolitan-district-council/leeds,29/09/2015,Central & Corporate,Neighbourhood Elders Team,13/02/2015,2014150864,"4,000.00",0,Neighbourhood grant,Supplies & Services
Leeds City Council,http://opendatacommunities.org/id/metropolitan-district-council/leeds,29/09/2015,Central & Corporate,Playful Anywhere CIC,29/10/2014,2014150865,"4,300.00",0,Neighbourhood grant,Supplies & Services
Leeds City Council,http://opendatacommunities.org/id/metropolitan-district-council/leeds,29/09/2015,Central & Corporate,Swarcliffe Good Neighbours Scheme,16/07/2014,2014150866,"20,000.00",0,Neighbourhood grant,Supplies & Services
Leeds City Council,http://opendatacommunities.org/id/metropolitan-district-council/leeds,29/09/2015,Central & Corporate,Temple Newsam Learning Partnership Trust,02/04/2015,2014150867,"6,110.00",0,Neighbourhood grant,Supplies & Services
Leeds City Council,http://opendatacommunities.org/id/metropolitan-district-council/leeds,29/09/2015,Central & Corporate,1st Cross Gates Guides,13/02/2015,2014150868,791.95,0,Neighbourhood grant,Supplies & Services
Leeds City Council,http://opendatacommunities.org/id/metropolitan-district-council/leeds,29/09/2015,Central & Corporate,1st Cross Gates Brownies,10/02/2015,2014150869,615,0,Neighbourhood grant,Supplies & Services
Leeds City Council,http://opendatacommunities.org/id/metropolitan-district-council/leeds,29/09/2015,Central & Corporate,17th Colton Methodist Templars Scouts,05/03/2015,2014150870,"2,404.22",0,Neighbourhood grant,Supplies & Services
Leeds City Council,http://opendatacommunities.org/id/metropolitan-district-council/leeds,29/09/2015,Central & Corporate,EBOR GARDENS ADVICE CENTRE,21/05/2014,2014150871,"20,000.00",0,Social Inclusion grant,Supplies & Services
Leeds City Council,http://opendatacommunities.org/id/metropolitan-district-council/leeds,29/09/2015,Central & Corporate,WISE,26/02/2015,2014150872,"1,995.00",0,Community grant,Supplies & Services
Leeds City Council,http://opendatacommunities.org/id/metropolitan-district-council/leeds,29/09/2015,Central & Corporate,CROSSGATES AND DISTRICT GOOD NEIGHBOURS,23/12/2014,2014150873,267.43,0,Neighbourhood grant,Supplies & Services
Leeds City Council,http://opendatacommunities.org/id/metropolitan-district-council/leeds,29/09/2015,Central & Corporate,HOPE,08/01/2015,2014150874,755.5,0,Neighbourhood grant,Supplies & Services
Leeds City Council,http://opendatacommunities.org/id/metropolitan-district-council/leeds,29/09/2015,Central & Corporate,Swarcliffe Good Neighbours Scheme,17/04/2014,2014150875,100,0,Neighbourhood grant,Supplies & Services
Leeds City Council,http://opendatacommunities.org/id/metropolitan-district-council/leeds,29/09/2015,Central & Corporate,VOLUNTARY ACTION-LEEDS,20/02/2015,2014150876,"17,205.55",0,Community grant,Supplies & Services
Leeds City Council,http://opendatacommunities.org/id/metropolitan-district-council/leeds,29/09/2015,Central & Corporate,VOLUNTARY ACTION-LEEDS,11/03/2015,2014150877,"17,205.55",0,Community grant,Supplies & Services
Leeds City Council,http://opendatacommunities.org/id/metropolitan-district-council/leeds,29/09/2015,Central & Corporate,ROSEBANK MILLENIUM GREEN TRUST,13/06/2014,2014150878,465,0,Neighbourhood capital grant,Capital Expenditure
Leeds City Council,http://opendatacommunities.org/id/metropolitan-district-council/leeds,29/09/2015,Central & Corporate,ROSEBANK MILLENIUM GREEN TRUST,18/09/2014,2014150879,"1,212.00",0,Neighbourhood capital grant,Capital Expenditure
Leeds City Council,http://opendatacommunities.org/id/metropolitan-district-council/leeds,29/09/2015,Central & Corporate,Calverley St. Wilfrids Cricket Club,16/12/2014,2014150880,"3,500.00",0,Neighbourhood capital grant,Capital Expenditure
Leeds City Council,http://opendatacommunities.org/id/metropolitan-district-council/leeds,29/09/2015,Central & Corporate,Pudsey Bowling and Table Tennis Club,31/03/2015,2014150881,"1,181.00",0,Neighbourhood capital grant,Capital Expenditure
Leeds City Council,http://opendatacommunities.org/id/metropolitan-district-council/leeds,29/09/2015,Central & Corporate,Brackenwood Community Association,08/12/2014,2014150882,"3,050.00",0,Neighbourhood capital grant,Capital Expenditure
Leeds City Council,http://opendatacommunities.org/id/metropolitan-district-council/leeds,29/09/2015,Central & Corporate,Chapel Allerton Methodist Church,29/01/2015,2014150883,"3,000.00",0,Neighbourhood capital grant,Capital Expenditure
Leeds City Council,http://opendatacommunities.org/id/metropolitan-district-council/leeds,29/09/2015,Central & Corporate,Chapel Allerton Methodist Church,12/03/2015,2014150884,"2,599.00",0,Neighbourhood capital grant,Capital Expenditure
Leeds City Council,http://opendatacommunities.org/id/metropolitan-district-council/leeds,29/09/2015,Central & Corporate,HYDE PARK SOURCE,04/07/2014,2014150885,"2,640.00",0,Neighbourhood capital grant,Capital Expenditure
Leeds City Council,http://opendatacommunities.org/id/metropolitan-district-council/leeds,29/09/2015,Central & Corporate,MOOR ALLERTON ELDERLY CARE,17/12/2014,2014150886,"1,000.00",0,Neighbourhood capital grant,Capital Expenditure
Leeds City Council,http://opendatacommunities.org/id/metropolitan-district-council/leeds,29/09/2015,Central & Corporate,MOOR ALLERTON ELDERLY CARE,04/03/2015,2014150887,"1,000.00",0,Neighbourhood capital grant,Capital Expenditure
Leeds City Council,http://opendatacommunities.org/id/metropolitan-district-council/leeds,29/09/2015,Central & Corporate,PUDSEY ST LAWRENCE CRICKET CLUB,25/04/2014,2014150888,"3,900.00",0,Neighbourhood capital grant,Capital Expenditure
Leeds City Council,http://opendatacommunities.org/id/metropolitan-district-council/leeds,29/09/2015,Central & Corporate,PUDSEY ST LAWRENCE CRICKET CLUB,05/06/2014,2014150889,935,0,Neighbourhood capital grant,Capital Expenditure
Leeds City Council,http://opendatacommunities.org/id/metropolitan-district-council/leeds,29/09/2015,Central & Corporate,Pudsey Congs Cricket Club,15/04/2014,2014150890,500,0,Neighbourhood capital grant,Capital Expenditure
Leeds City Council,http://opendatacommunities.org/id/metropolitan-district-council/leeds,29/09/2015,Central & Corporate,Pudsey Congs Cricket Club,24/04/2014,2014150891,"4,500.00",0,Neighbourhood capital grant,Capital Expenditure
Leeds City Council,http://opendatacommunities.org/id/metropolitan-district-council/leeds,29/09/2015,Central & Corporate,Pudsey Congs Cricket Club,25/04/2014,2014150892,0,0,Neighbourhood capital grant,Capital Expenditure
Leeds City Council,http://opendatacommunities.org/id/metropolitan-district-council/leeds,29/09/2015,Central & Corporate,Roundhay Parochial Hall,31/03/2015,2014150893,"3,250.00",0,Neighbourhood capital grant,Capital Expenditure
Leeds City Council,http://opendatacommunities.org/id/metropolitan-district-council/leeds,29/09/2015,Central & Corporate,SHANTONA WOMENS CENTRE,02/04/2015,2014150894,"1,865.00",0,Neighbourhood capital grant,Capital Expenditure
Leeds City Council,http://opendatacommunities.org/id/metropolitan-district-council/leeds,29/09/2015,Strategic & Central,10th Morley (Drighlington) Scouts Group,25/11/2014,2014150895,210,0,Locality Grant,Supplies & Services
Leeds City Council,http://opendatacommunities.org/id/metropolitan-district-council/leeds,29/09/2015,Strategic & Central,10th Morley (Drighlington) Scouts Group,10/02/2015,2014150896,120,0,Locality Grant,Supplies & Services
Leeds City Council,http://opendatacommunities.org/id/metropolitan-district-council/leeds,29/09/2015,Strategic & Central,168 (City of Leeds) ATC,18/11/2014,2014150897,100,0,Locality Grant,Supplies & Services
Leeds City Council,http://opendatacommunities.org/id/metropolitan-district-council/leeds,29/09/2015,Strategic & Central,168(City Of Leeds)Sqd,10/06/2014,2014150898,300,0,Locality Grant,Supplies & Services
Leeds City Council,http://opendatacommunities.org/id/metropolitan-district-council/leeds,29/09/2015,Strategic & Central,ZEST HEALTH FOR LIFE,24/02/2015,2014150899,250,0,Locality Grant,Supplies & Services
Leeds City Council,http://opendatacommunities.org/id/metropolitan-district-council/leeds,29/09/2015,Strategic & Central,1st Barwick In Elmet Scout Group,01/04/2014,2014150900,"1,500.00",0,Locality Grant,Supplies & Services
Leeds City Council,http://opendatacommunities.org/id/metropolitan-district-council/leeds,29/09/2015,Strategic & Central,1st Beeston Brownies,03/06/2014,2014150901,50,0,Locality Grant,Supplies & Services
Leeds City Council,http://opendatacommunities.org/id/metropolitan-district-council/leeds,29/09/2015,Strategic & Central,1st Beeston Brownies,24/02/2015,2014150902,50,0,Locality Grant,Supplies & Services
Leeds City Council,http://opendatacommunities.org/id/metropolitan-district-council/leeds,29/09/2015,Strategic & Central,1st Cross Gates Brownies,10/06/2014,2014150903,100,0,Locality Grant,Supplies & Services
Leeds City Council,http://opendatacommunities.org/id/metropolitan-district-council/leeds,29/09/2015,Strategic & Central,1st Cross Gates Brownies,20/01/2015,2014150904,200,0,Locality Grant,Supplies & Services
Leeds City Council,http://opendatacommunities.org/id/metropolitan-district-council/leeds,29/09/2015,Strategic & Central,ZEST HEALTH FOR LIFE,16/12/2014,2014150905,200,0,Locality Grant,Supplies & Services
Leeds City Council,http://opendatacommunities.org/id/metropolitan-district-council/leeds,29/09/2015,Strategic & Central,1st Cross Gates Brownies,07/07/2014,2014150906,300,0,Locality Grant,Supplies & Services
Leeds City Council,http://opendatacommunities.org/id/metropolitan-district-council/leeds,29/09/2015,Strategic & Central,1st Cross Gates Brownies,10/06/2014,2014150907,300,0,Locality Grant,Supplies & Services
Leeds City Council,http://opendatacommunities.org/id/metropolitan-district-council/leeds,29/09/2015,Strategic & Central,ZEST HEALTH FOR LIFE,09/12/2014,2014150908,200,0,Locality Grant,Supplies & Services
Leeds City Council,http://opendatacommunities.org/id/metropolitan-district-council/leeds,29/09/2015,Strategic & Central,1st Garforth Scout Group,23/09/2014,2014150909,50,0,Locality Grant,Supplies & Services
Leeds City Council,http://opendatacommunities.org/id/metropolitan-district-council/leeds,29/09/2015,Strategic & Central,1st Garforth Scout Group,25/11/2014,2014150910,300,0,Locality Grant,Supplies & Services
Leeds City Council,http://opendatacommunities.org/id/metropolitan-district-council/leeds,29/09/2015,Strategic & Central,1st Gildersome Brownies,10/03/2015,2014150911,100,0,Locality Grant,Supplies & Services
Leeds City Council,http://opendatacommunities.org/id/metropolitan-district-council/leeds,29/09/2015,Strategic & Central,1st Gildersome Brownies,24/03/2015,2014150912,179.97,0,Locality Grant,Supplies & Services
Leeds City Council,http://opendatacommunities.org/id/metropolitan-district-council/leeds,29/09/2015,Strategic & Central,ZEST HEALTH FOR LIFE,29/09/2014,2014150913,300,0,Locality Grant,Supplies & Services
Leeds City Council,http://opendatacommunities.org/id/metropolitan-district-council/leeds,29/09/2015,Strategic & Central,1st Manston Guides,09/04/2014,2014150914,200,0,Locality Grant,Supplies & Services
Leeds City Council,http://opendatacommunities.org/id/metropolitan-district-council/leeds,29/09/2015,Strategic & Central,1st Manston Guides,02/12/2014,2014150915,170,0,Locality Grant,Supplies & Services
